Service Area,Service Division,Expense Type,Expense Code,Detailed Expense Type,Payment Date,Transaction Number,Amount Exc VAT,Supplier Name
Adult and Health Services,Central/Other,Creditors,952288,Creditor-DHSC Rapid Testing Fund Grant,04/05/2021,3862261-RAPIDTESTINGFUND-SLS2/123,"13,781.06",ACCEPT CARE LTD.
Adult and Health Services,Central/Other,Creditors,952288,Creditor-DHSC Rapid Testing Fund Grant,04/05/2021,3862271-RAPIDTESTINGFUND3/7,"14,041.08",AKARI CARE LTD.
Adult and Health Services,Central/Other,Creditors,952288,Creditor-DHSC Rapid Testing Fund Grant,04/05/2021,3862270-RAPIDTESTINGFUND3/116,"14,301.10",AKARI CARE LTD.
Adult and Health Services,Central/Other,Creditors,952288,Creditor-DHSC Rapid Testing Fund Grant,04/05/2021,3862277-RAPIDTESTINGFUND3/25,"10,533.44",ALLIANCE CARE (TRENDLEWOOD) LTD.
Adult and Health Services,Central/Other,Creditors,952288,Creditor-DHSC Rapid Testing Fund Grant,04/05/2021,3862284-RAPIDTESTINGFUND3/110,"19,761.52",ANCHOR HANOVER GROUP.
Adult and Health Services,Central/Other,Creditors,952288,Creditor-DHSC Rapid Testing Fund Grant,04/05/2021,3862300-RAPIDTESTINGFUND3/2,780.06,ASPIRE CARE GROUP.
Adult and Health Services,Central/Other,Creditors,952288,Creditor-DHSC Rapid Testing Fund Grant,04/05/2021,3862299-RAPIDTESTINGFUND3/85,"2,340.18",ASPIRE CARE GROUP.
Adult and Health Services,Central/Other,Creditors,952288,Creditor-DHSC Rapid Testing Fund Grant,04/05/2021,3862301-RAPIDTESTINGFUND3/117,"2,080.16",ASPIRE CARE GROUP.
Adult and Health Services,Central/Other,Creditors,952288,Creditor-DHSC Rapid Testing Fund Grant,04/05/2021,3862305-RAPIDTESTINGFUND3/105,"1,820.14",AUTISM CARE UK (4) LTD.
Adult and Health Services,Central/Other,Creditors,952288,Creditor-DHSC Rapid Testing Fund Grant,04/05/2021,3862312-RAPIDTESTINGFUND3/11,"5,460.42",BEAMISH RESIDENTIAL CARE HOME LTD.
Adult and Health Services,Central/Other,Creditors,952288,Creditor-DHSC Rapid Testing Fund Grant,04/05/2021,3862313-RAPIDTESTINGFUND-SLS2/124,"2,860.22",BEECHFIELD CARE & SUPPORT LTD.
Adult and Health Services,Central/Other,Creditors,952288,Creditor-DHSC Rapid Testing Fund Grant,04/05/2021,3862314-RAPIDTESTINGFUND3/16,"3,380.26",BENTON CARE SERVICES LTD.
Adult and Health Services,Central/Other,Creditors,952288,Creditor-DHSC Rapid Testing Fund Grant,04/05/2021,3862331-RAPIDTESTINGFUND3/23,"12,740.98",BONDCARE WILLINGTON LTD.
Adult and Health Services,Central/Other,Creditors,952288,Creditor-DHSC Rapid Testing Fund Grant,04/05/2021,3862334-RAPIDTESTINGFUND-SLS2/126,"5,200.40",BONDCARE WILLINGTON LTD.
Adult and Health Services,Central/Other,Creditors,952288,Creditor-DHSC Rapid Testing Fund Grant,04/05/2021,3862333-RAPIDTESTINGFUND3/73,"10,400.80",BONDCARE WILLINGTON LTD.
Adult and Health Services,Central/Other,Creditors,952288,Creditor-DHSC Rapid Testing Fund Grant,04/05/2021,3862332-RAPIDTESTINGFUND3/89,"12,740.98",BONDCARE WILLINGTON LTD.
Adult and Health Services,Central/Other,Creditors,952288,Creditor-DHSC Rapid Testing Fund Grant,04/05/2021,3862338-RAPIDTESTINGFUND3/76,"8,840.68",BROOMHOUSE CARE LTD.
Adult and Health Services,Central/Other,Creditors,952288,Creditor-DHSC Rapid Testing Fund Grant,04/05/2021,3862345-RAPIDTESTINGFUND3/30,"5,448.58",CARE UK COMMUNITY PARTNERSHIPS LTD.
Adult and Health Services,Central/Other,Creditors,952288,Creditor-DHSC Rapid Testing Fund Grant,04/05/2021,3862343-RAPIDTESTINGFUND3/61,"3,145.98",CARE UK COMMUNITY PARTNERSHIPS LTD.
Adult and Health Services,Central/Other,Creditors,952288,Creditor-DHSC Rapid Testing Fund Grant,04/05/2021,3862344-RAPIDTESTINGFUND3/103,"9,011.01",CARE UK COMMUNITY PARTNERSHIPS LTD.
Adult and Health Services,Central/Other,Creditors,952288,Creditor-DHSC Rapid Testing Fund Grant,04/05/2021,3862346-RAPIDTESTINGFUND3/101,"14,041.08",CAREWELL (HEALTH CARE) LTD.
Adult and Health Services,Central/Other,Creditors,952288,Creditor-DHSC Rapid Testing Fund Grant,04/05/2021,3862356-RAPIDTESTINGFUND3/26,"7,280.56",CASTLEBANK CARE HOME LTD.
Adult and Health Services,Central/Other,Creditors,952288,Creditor-DHSC Rapid Testing Fund Grant,04/05/2021,3862381-RAPIDTESTINGFUND3/47,"9,360.72",COUNTRYWIDE CARE HOMES (2) LTD.
Adult and Health Services,Central/Other,Creditors,952288,Creditor-DHSC Rapid Testing Fund Grant,04/05/2021,3862382-RAPIDTESTINGFUND3/90,"14,041.08",COUNTRYWIDE CARE HOMES (2) LTD.
Adult and Health Services,Central/Other,Creditors,952288,Creditor-DHSC Rapid Testing Fund Grant,04/05/2021,3862380-RAPIDTESTINGFUND3/122,"20,021.54",COUNTRYWIDE CARE HOMES (2) LTD.
Adult and Health Services,Central/Other,Creditors,952288,Creditor-DHSC Rapid Testing Fund Grant,04/05/2021,3862385-RAPIDTESTINGFUND3/32,"11,440.88",CRAIGARRAN LTD.
Adult and Health Services,Central/Other,Creditors,952288,Creditor-DHSC Rapid Testing Fund Grant,04/05/2021,3862386-RAPIDTESTINGFUND3/92,"23,921.84",CROWN CARE VI LTD.
Adult and Health Services,Central/Other,Creditors,952288,Creditor-DHSC Rapid Testing Fund Grant,04/05/2021,3862391-RAPIDTESTINGFUND3/15,"5,200.40",D3 CARE LTD.
Adult and Health Services,Central/Other,Creditors,952288,Creditor-DHSC Rapid Testing Fund Grant,04/05/2021,3862390-RAPIDTESTINGFUND3/111,"10,400.80",D3 CARE LTD.
Adult and Health Services,Central/Other,Creditors,952288,Creditor-DHSC Rapid Testing Fund Grant,04/05/2021,3862394-RAPIDTESTINGFUND-SLS2/125,"4,680.36",DEACONSTAR LTD.
Adult and Health Services,Central/Other,Creditors,952288,Creditor-DHSC Rapid Testing Fund Grant,04/05/2021,3862402-RAPIDTESTINGFUND3/36,"6,500.50",DEVONSHIRE HOUSE CARE LTD.
Adult and Health Services,Central/Other,Creditors,952287,Creditor-DHSC Infection Control Grant,04/05/2021,3862405-INFECTIONCONTROLFUND3/10,"7,943.76",DIMENSIONS PERSONALISED SUPPORT LTD.
Adult and Health Services,Central/Other,Creditors,952288,Creditor-DHSC Rapid Testing Fund Grant,04/05/2021,3862406-RAPIDTESTINGFUND3/37,"18,201.40",DIPTON CARE HOME LTD.
Adult and Health Services,Central/Other,Creditors,952288,Creditor-DHSC Rapid Testing Fund Grant,04/05/2021,3862415-RAPIDTESTINGFUND3/21,"5,980.46",DURHAM CARELINE LTD.
Adult and Health Services,Central/Other,Creditors,952288,Creditor-DHSC Rapid Testing Fund Grant,04/05/2021,3862416-RAPIDTESTINGFUND3/74,"13,001.00",DURHAM CARELINE LTD.
Adult and Health Services,Central/Other,Creditors,952288,Creditor-DHSC Rapid Testing Fund Grant,04/05/2021,3862413-RAPIDTESTINGFUND3/77,"1,040.08",DURHAM CARELINE LTD.
Adult and Health Services,Central/Other,Creditors,952288,Creditor-DHSC Rapid Testing Fund Grant,04/05/2021,3862414-RAPIDTESTINGFUND3/95,"10,660.82",DURHAM CARELINE LTD.
Adult and Health Services,Central/Other,Creditors,952288,Creditor-DHSC Rapid Testing Fund Grant,04/05/2021,3862439-RAPIDTESTINGFUND3/43,"1,040.08",EDUCATION & SERVICES FOR PEOPLE WITH AUTISM LTD (ESPA).
Adult and Health Services,Central/Other,Creditors,952288,Creditor-DHSC Rapid Testing Fund Grant,04/05/2021,3862435-RAPIDTESTINGFUND3/41,"2,340.18",EDUCATION & SERVICES FOR PEOPLE WITH AUTISM LTD (ESPA).
Adult and Health Services,Central/Other,Creditors,952288,Creditor-DHSC Rapid Testing Fund Grant,04/05/2021,3862436-RAPIDTESTINGFUND3/48,"2,080.16",EDUCATION & SERVICES FOR PEOPLE WITH AUTISM LTD (ESPA).
Adult and Health Services,Central/Other,Creditors,952288,Creditor-DHSC Rapid Testing Fund Grant,04/05/2021,3862438-RAPIDTESTINGFUND3/64,520.04,EDUCATION & SERVICES FOR PEOPLE WITH AUTISM LTD (ESPA).
Adult and Health Services,Central/Other,Creditors,952288,Creditor-DHSC Rapid Testing Fund Grant,04/05/2021,3862437-RAPIDTESTINGFUND3/78,"1,820.14",EDUCATION & SERVICES FOR PEOPLE WITH AUTISM LTD (ESPA).
Adult and Health Services,Central/Other,Creditors,952288,Creditor-DHSC Rapid Testing Fund Grant,04/05/2021,3862447-RAPIDTESTINGFUND3/38,"11,440.88",ELBA CARE LTD.
Adult and Health Services,Central/Other,Creditors,952288,Creditor-DHSC Rapid Testing Fund Grant,04/05/2021,3862460-RAPIDTESTINGFUND3/52,"13,729.75",FOUR SEASONS (NO 9) LTD.
Adult and Health Services,Central/Other,Creditors,952288,Creditor-DHSC Rapid Testing Fund Grant,04/05/2021,3862461-RAPIDTESTINGFUND3/86,"11,321.30",FOUR SEASONS HOMES NO 1 LTD.
Adult and Health Services,Central/Other,Creditors,952288,Creditor-DHSC Rapid Testing Fund Grant,04/05/2021,3862466-RAPIDTESTINGFUND3/66,"16,381.26",GAINFORD CARE HOMES LTD.
Adult and Health Services,Central/Other,Creditors,952288,Creditor-DHSC Rapid Testing Fund Grant,04/05/2021,3862467-RAPIDTESTINGFUND3/69,"14,561.12",GAINFORD CARE HOMES LTD.
Adult and Health Services,Central/Other,Creditors,952288,Creditor-DHSC Rapid Testing Fund Grant,04/05/2021,3862468-RAPIDTESTINGFUND3/67,"14,561.12",GAINFORD CARE HOMES LTD.
Adult and Health Services,Central/Other,Creditors,952288,Creditor-DHSC Rapid Testing Fund Grant,04/05/2021,3862468-RAPIDTESTINGFUND3/68,"7,800.60",GAINFORD CARE HOMES LTD.
Adult and Health Services,Central/Other,Creditors,952288,Creditor-DHSC Rapid Testing Fund Grant,04/05/2021,3862465-RAPIDTESTINGFUND3/70,"14,821.14",GAINFORD CARE HOMES LTD.
Adult and Health Services,Central/Other,Creditors,952288,Creditor-DHSC Rapid Testing Fund Grant,04/05/2021,3862469-RAPIDTESTINGFUND3/71,"16,121.24",GAINFORD CARE HOMES LTD.
Adult and Health Services,Central/Other,Creditors,952288,Creditor-DHSC Rapid Testing Fund Grant,04/05/2021,3862489-RAPIDTESTINGFUND3/42,"13,781.06",HC-ONE BEAMISH LTD.
Adult and Health Services,Central/Other,Creditors,952288,Creditor-DHSC Rapid Testing Fund Grant,04/05/2021,3862492-RAPIDTESTINGFUND3/49,"14,821.14",HC-ONE BEAMISH LTD.
Adult and Health Services,Central/Other,Creditors,952288,Creditor-DHSC Rapid Testing Fund Grant,04/05/2021,3862491-RAPIDTESTINGFUND3/50,"13,261.02",HC-ONE BEAMISH LTD.
Adult and Health Services,Central/Other,Creditors,952288,Creditor-DHSC Rapid Testing Fund Grant,04/05/2021,3862490-RAPIDTESTINGFUND3/75,"22,621.74",HC-ONE BEAMISH LTD.
Adult and Health Services,Central/Other,Creditors,952288,Creditor-DHSC Rapid Testing Fund Grant,04/05/2021,3862488-RAPIDTESTINGFUND3/98,"15,081.16",HC-ONE BEAMISH LTD.
Adult and Health Services,Central/Other,Creditors,952288,Creditor-DHSC Rapid Testing Fund Grant,04/05/2021,3862499-RAPIDTESTINGFUND3/10,"8,320.64",HC-ONE LTD.
Adult and Health Services,Central/Other,Creditors,952288,Creditor-DHSC Rapid Testing Fund Grant,04/05/2021,3862496-RAPIDTESTINGFUND3/19,"13,261.02",HC-ONE LTD.
Adult and Health Services,Central/Other,Creditors,952288,Creditor-DHSC Rapid Testing Fund Grant,04/05/2021,3862495-RAPIDTESTINGFUND3/33,"10,660.82",HC-ONE LTD.
Adult and Health Services,Central/Other,Creditors,952288,Creditor-DHSC Rapid Testing Fund Grant,04/05/2021,3862493-RAPIDTESTINGFUND3/58,"11,180.86",HC-ONE LTD.
Adult and Health Services,Central/Other,Creditors,952288,Creditor-DHSC Rapid Testing Fund Grant,04/05/2021,3862494-RAPIDTESTINGFUND3/72,"12,480.96",HC-ONE LTD.
Adult and Health Services,Central/Other,Creditors,952288,Creditor-DHSC Rapid Testing Fund Grant,04/05/2021,3862497-RAPIDTESTINGFUND3/100,"15,601.20",HC-ONE LTD.
Adult and Health Services,Central/Other,Creditors,952288,Creditor-DHSC Rapid Testing Fund Grant,04/05/2021,3862500-RAPIDTESTINGFUND3/104,"9,360.72",HC-ONE LTD.
Adult and Health Services,Central/Other,Creditors,952288,Creditor-DHSC Rapid Testing Fund Grant,04/05/2021,3862498-RAPIDTESTINGFUND3/106,"10,400.80",HC-ONE LTD.
Adult and Health Services,Central/Other,Creditors,952288,Creditor-DHSC Rapid Testing Fund Grant,04/05/2021,3862506-RAPIDTESTINGFUND3/8,"13,001.00",HILL CARE 3 LTD.
Adult and Health Services,Central/Other,Creditors,952288,Creditor-DHSC Rapid Testing Fund Grant,04/05/2021,3862505-RAPIDTESTINGFUND3/82,"12,220.94",HILL CARE 3 LTD.
Adult and Health Services,Central/Other,Creditors,952288,Creditor-DHSC Rapid Testing Fund Grant,04/05/2021,3862512-RAPIDTESTINGFUND3/94,"16,121.24",IDEAL CARE (NORTH) LTD.
Adult and Health Services,Central/Other,Creditors,952288,Creditor-DHSC Rapid Testing Fund Grant,04/05/2021,3862550-RAPIDTESTINGFUND3/62,"14,821.14",LAMBTON HOUSE LTD.
Adult and Health Services,Central/Other,Creditors,952288,Creditor-DHSC Rapid Testing Fund Grant,04/05/2021,3862560-RAPIDTESTINGFUND3/65,"13,001.00",LEAZES HALL CARE HOME LTD.
Adult and Health Services,Central/Other,Creditors,952288,Creditor-DHSC Rapid Testing Fund Grant,04/05/2021,3862561-RAPIDTESTINGFUND3/22,"6,500.50",LEONARD CHESHIRE DISABILITY.
Adult and Health Services,Central/Other,Creditors,952288,Creditor-DHSC Rapid Testing Fund Grant,04/05/2021,3862564-RAPIDTESTINGFUND3/113,"5,720.44",LIFEWAYS COMMUNITY CARE LTD.
Adult and Health Services,Central/Other,Creditors,952288,Creditor-DHSC Rapid Testing Fund Grant,04/05/2021,3862580-RAPIDTESTINGFUND3/81,"14,041.08",MALHOTRA CARE HOMES LTD.
Adult and Health Services,Central/Other,Creditors,952288,Creditor-DHSC Rapid Testing Fund Grant,04/05/2021,3862582-RAPIDTESTINGFUND3/118,"12,480.96",MARIA MALLABAND CARE GROUP LTD.
Adult and Health Services,Central/Other,Creditors,952288,Creditor-DHSC Rapid Testing Fund Grant,04/05/2021,3862585-RAPIDTESTINGFUND3/35,"11,700.90",MARIPOSA CARE GROUP LTD.
Adult and Health Services,Central/Other,Creditors,952288,Creditor-DHSC Rapid Testing Fund Grant,04/05/2021,3862586-RAPIDTESTINGFUND3/55,"10,660.82",MARIPOSA CARE LTD.
Adult and Health Services,Central/Other,Creditors,952288,Creditor-DHSC Rapid Testing Fund Grant,04/05/2021,3862587-RAPIDTESTINGFUND3/63,"11,960.92",MARTON CARE HOMES LTD T/A LANGLEY PARK CARE HOME.
Adult and Health Services,Central/Other,Creditors,952288,Creditor-DHSC Rapid Testing Fund Grant,04/05/2021,3862588-RAPIDTESTINGFUND3/99,"10,400.80",MARTON CARE HOMES LTD T/A ST HELENS CARE HOME.
Adult and Health Services,Central/Other,Creditors,952288,Creditor-DHSC Rapid Testing Fund Grant,04/05/2021,3862592-RAPIDTESTINGFUND-SLS2/131,"1,040.08",MEARS EXTRA CARE LTD.
Adult and Health Services,Central/Other,Creditors,952288,Creditor-DHSC Rapid Testing Fund Grant,04/05/2021,3862606-RAPIDTESTINGFUND3/56,"2,600.20",MOORLAND HOLDINGS (NE) LTD.
Adult and Health Services,Central/Other,Creditors,952288,Creditor-DHSC Rapid Testing Fund Grant,04/05/2021,3862607-RAPIDTESTINGFUND3/59,"2,080.16",MR & MRS BURNS.
Adult and Health Services,Central/Other,Creditors,952288,Creditor-DHSC Rapid Testing Fund Grant,04/05/2021,3862638-RAPIDTESTINGFUND3/51,"1,820.14",NEWLIFE CARE SERVICES LTD.
Adult and Health Services,Central/Other,Creditors,952288,Creditor-DHSC Rapid Testing Fund Grant,04/05/2021,3862647-RAPIDTESTINGFUND-SLS2/130,"16,121.24",OAKLEA TRUST.
Adult and Health Services,Central/Other,Creditors,952288,Creditor-DHSC Rapid Testing Fund Grant,04/05/2021,3862648-RAPIDTESTINGFUND3/17,"8,060.62",OBJECT QUEST LTD.
Adult and Health Services,Central/Other,Creditors,952288,Creditor-DHSC Rapid Testing Fund Grant,04/05/2021,3862653-RAPIDTESTINGFUND3/121,780.06,OSWALD HOUSE CARE HOME LTD.
Adult and Health Services,Central/Other,Creditors,952288,Creditor-DHSC Rapid Testing Fund Grant,04/05/2021,3862657-RAPIDTESTINGFUND3/46,780.06,OSWALD HOUSE CARE HOME LTD.
Adult and Health Services,Central/Other,Creditors,952288,Creditor-DHSC Rapid Testing Fund Grant,04/05/2021,3862656-RAPIDTESTINGFUND3/45,780.06,OSWALD HOUSE CARE HOME LTD.
Adult and Health Services,Central/Other,Creditors,952288,Creditor-DHSC Rapid Testing Fund Grant,04/05/2021,3862655-RAPIDTESTINGFUND3/97,780.06,OSWALD HOUSE CARE HOME LTD.
Adult and Health Services,Central/Other,Creditors,952288,Creditor-DHSC Rapid Testing Fund Grant,04/05/2021,3862654-RAPIDTESTINGFUND3/79,"2,080.16",OSWALD HOUSE CARE HOME LTD.
Adult and Health Services,Central/Other,Creditors,952288,Creditor-DHSC Rapid Testing Fund Grant,04/05/2021,3862659-RAPIDTESTINGFUND3/44,"2,860.22",PARAMOUNT CARE (GATESHEAD) LTD.
Adult and Health Services,Central/Other,Creditors,952288,Creditor-DHSC Rapid Testing Fund Grant,04/05/2021,3862664-RAPIDTESTINGFUND3/14,"7,800.60",PERFECT CARE LTD.
Adult and Health Services,Central/Other,Creditors,952288,Creditor-DHSC Rapid Testing Fund Grant,04/05/2021,3862674-RAPIDTESTINGFUND3/83,"11,440.88",POPULAR CARE LTD..
Adult and Health Services,Central/Other,Creditors,952288,Creditor-DHSC Rapid Testing Fund Grant,04/05/2021,3862676-RAPIDTESTINGFUND-SLS2/127,"6,500.50",POTENSIAL LTD.
Adult and Health Services,Central/Other,Creditors,952288,Creditor-DHSC Rapid Testing Fund Grant,04/05/2021,3862675-RAPIDTESTINGFUND3/60,"4,160.32",POTENSIAL LTD.
Adult and Health Services,Central/Other,Creditors,952288,Creditor-DHSC Rapid Testing Fund Grant,04/05/2021,3862680-RAPIDTESTINGFUND3/40,"8,060.62",PREMIER CARE HOMES LTD.
Adult and Health Services,Central/Other,Creditors,952288,Creditor-DHSC Rapid Testing Fund Grant,04/05/2021,3862679-RAPIDTESTINGFUND3/84,"22,881.76",PREMIER CARE HOMES LTD.
Adult and Health Services,Central/Other,Creditors,952288,Creditor-DHSC Rapid Testing Fund Grant,04/05/2021,3862693-RAPIDTESTINGFUND3/88,"1,275.16",RESOLVE (CARE NORTHERN) LTD..
Adult and Health Services,Central/Other,Creditors,952288,Creditor-DHSC Rapid Testing Fund Grant,04/05/2021,3862692-RAPIDTESTINGFUND3/53,"1,330.82",RESOLVE (CARE NORTHERN) LTD..
Adult and Health Services,Central/Other,Creditors,952288,Creditor-DHSC Rapid Testing Fund Grant,04/05/2021,3862698-RAPIDTESTINGFUND-SLS2/132,"6,240.48",RICHMOND FELLOWSHIP.
Adult and Health Services,Central/Other,Creditors,952288,Creditor-DHSC Rapid Testing Fund Grant,04/05/2021,3862699-RAPIDTESTINGFUND3/5,"11,960.92",ROBERT PATTINSON.
Adult and Health Services,Central/Other,Creditors,952288,Creditor-DHSC Rapid Testing Fund Grant,04/05/2021,3862701-RAPIDTESTINGFUND3/29,"6,089.54",ROSEBERRY CARE CENTRES GB LTD.
Adult and Health Services,Central/Other,Creditors,952288,Creditor-DHSC Rapid Testing Fund Grant,04/05/2021,3862709-RAPIDTESTINGFUND3/6,"16,901.30",SANCTUARY CARE (ENGLAND) LTD.
Adult and Health Services,Central/Other,Creditors,952288,Creditor-DHSC Rapid Testing Fund Grant,04/05/2021,3862708-RAPIDTESTINGFUND3/18,"11,180.86",SANCTUARY CARE (ENGLAND) LTD.
Adult and Health Services,Central/Other,Creditors,952288,Creditor-DHSC Rapid Testing Fund Grant,04/05/2021,3862706-RAPIDTESTINGFUND3/27,"17,681.36",SANCTUARY CARE (ENGLAND) LTD.
Adult and Health Services,Central/Other,Creditors,952288,Creditor-DHSC Rapid Testing Fund Grant,04/05/2021,3862707-RAPIDTESTINGFUND3/91,"10,660.82",SANCTUARY CARE (ENGLAND) LTD.
Adult and Health Services,Central/Other,Creditors,952288,Creditor-DHSC Rapid Testing Fund Grant,04/05/2021,3862715-RAPIDTESTINGFUND3/34,"9,620.74",SEAHAM CARE LTD.
Adult and Health Services,Central/Other,Creditors,952288,Creditor-DHSC Rapid Testing Fund Grant,04/05/2021,3862714-RAPIDTESTINGFUND3/39,"10,140.78",SEAHAM CARE LTD.
Adult and Health Services,Central/Other,Creditors,952288,Creditor-DHSC Rapid Testing Fund Grant,04/05/2021,3862718-RAPIDTESTINGFUND3/87,"14,821.14",SHAFTESBURY CARE GROUP LTD.
Adult and Health Services,Central/Other,Creditors,952288,Creditor-DHSC Rapid Testing Fund Grant,04/05/2021,3862723-RAPIDTESTINGFUND3/12,"15,601.20",SHERBURN HOUSE CHARITY.
Adult and Health Services,Central/Other,Creditors,952288,Creditor-DHSC Rapid Testing Fund Grant,04/05/2021,3862725-RAPIDTESTINGFUND3/93,"11,700.90",SHOTLEY PARK HOMES FOR THE ELDERLY LTD.
Adult and Health Services,Central/Other,Creditors,952288,Creditor-DHSC Rapid Testing Fund Grant,04/05/2021,3862731-RAPIDTESTINGFUND-SLS2/134,"1,560.12",SOVEREIGN CARE (NORTH EAST) LTD.
Adult and Health Services,Central/Other,Creditors,952288,Creditor-DHSC Rapid Testing Fund Grant,04/05/2021,3862732-RAPIDTESTINGFUND-SLS2/133,"1,300.10",SOVEREIGN CARE (NORTH EAST) LTD.
Adult and Health Services,Central/Other,Creditors,952288,Creditor-DHSC Rapid Testing Fund Grant,04/05/2021,3862732-RAPIDTESTINGFUND3/109,"4,680.36",SOVEREIGN CARE (NORTH EAST) LTD.
Adult and Health Services,Central/Other,Creditors,952288,Creditor-DHSC Rapid Testing Fund Grant,04/05/2021,3862735-RAPIDTESTINGFUND3/96,"11,700.90",ST ANDREWS MPS LTD.
Adult and Health Services,Central/Other,Creditors,952288,Creditor-DHSC Rapid Testing Fund Grant,04/05/2021,3862736-RAPIDTESTINGFUND-SLS2/128,"5,460.42",ST ANNES COMMUNITY SERVICES.
Adult and Health Services,Central/Other,Creditors,952288,Creditor-DHSC Rapid Testing Fund Grant,04/05/2021,3862741-RAPIDTESTINGFUND3/20,"5,714.29",ST PHILIPS CARE LTD.
Adult and Health Services,Central/Other,Creditors,952288,Creditor-DHSC Rapid Testing Fund Grant,04/05/2021,3862740-RAPIDTESTINGFUND3/28,"4,867.52",ST PHILIPS CARE LTD.
Adult and Health Services,Central/Other,Creditors,952288,Creditor-DHSC Rapid Testing Fund Grant,04/05/2021,3862752-RAPIDTESTINGFUND3/107,"8,060.62",SUNNY OKUKPOLOR HUMPHREYS.
Adult and Health Services,Central/Other,Creditors,952288,Creditor-DHSC Rapid Testing Fund Grant,04/05/2021,3862768-RAPIDTESTINGFUND3/4,"15,601.20",TAMARIS HEALTHCARE (ENGLAND) LTD.
Adult and Health Services,Central/Other,Creditors,952288,Creditor-DHSC Rapid Testing Fund Grant,04/05/2021,3862766-RAPIDTESTINGFUND3/9,"16,694.21",TAMARIS HEALTHCARE (ENGLAND) LTD.
Adult and Health Services,Central/Other,Creditors,952288,Creditor-DHSC Rapid Testing Fund Grant,04/05/2021,3862765-RAPIDTESTINGFUND3/24,"9,880.76",TAMARIS HEALTHCARE (ENGLAND) LTD.
Adult and Health Services,Central/Other,Creditors,952288,Creditor-DHSC Rapid Testing Fund Grant,04/05/2021,3862767-RAPIDTESTINGFUND3/54,"16,121.24",TAMARIS HEALTHCARE (ENGLAND) LTD.
Adult and Health Services,Central/Other,Creditors,952288,Creditor-DHSC Rapid Testing Fund Grant,04/05/2021,3862777-RAPIDTESTINGFUND3/108,"6,240.48",THE FIELDS CARE HOME.
Adult and Health Services,Central/Other,Creditors,952288,Creditor-DHSC Rapid Testing Fund Grant,04/05/2021,3862778-RAPIDTESTINGFUND3/3,"12,220.94",THE HAWTHORNS LODGE LTD.
Adult and Health Services,Central/Other,Creditors,952288,Creditor-DHSC Rapid Testing Fund Grant,04/05/2021,3862781-RAPIDTESTINGFUND3/1,"4,160.32",THE HUMAN SUPPORT GROUP LTD.
Adult and Health Services,Central/Other,Creditors,952288,Creditor-DHSC Rapid Testing Fund Grant,04/05/2021,3862782-RAPIDTESTINGFUND-SLS2/129,520.04,THE INTEGRATION TRUST LTD.
Adult and Health Services,Central/Other,Creditors,952288,Creditor-DHSC Rapid Testing Fund Grant,04/05/2021,3862785-RAPIDTESTINGFUND3/102,"4,680.36",THE ORDER OF THE GOOD & PERPETUAL SUCCOUR.
Adult and Health Services,Central/Other,Creditors,952288,Creditor-DHSC Rapid Testing Fund Grant,04/05/2021,3862798-RAPIDTESTINGFUND3/80,"10,920.84",TRIMS GYM LTD.
Adult and Health Services,Central/Other,Creditors,952288,Creditor-DHSC Rapid Testing Fund Grant,04/05/2021,3862810-RAPIDTESTINGFUND3/114,"2,600.20",VALDIGARTH RESIDENTIAL CARE HOME.
Adult and Health Services,Central/Other,Creditors,952288,Creditor-DHSC Rapid Testing Fund Grant,04/05/2021,3862821-RAPIDTESTINGFUND3/13,"1,820.14",VOYAGE 1 LTD.
Adult and Health Services,Central/Other,Creditors,952288,Creditor-DHSC Rapid Testing Fund Grant,04/05/2021,3862820-RAPIDTESTINGFUND3/31,"1,040.08",VOYAGE 1 LTD.
Adult and Health Services,Central/Other,Creditors,952288,Creditor-DHSC Rapid Testing Fund Grant,04/05/2021,3862819-RAPIDTESTINGFUND3/119,"2,080.16",VOYAGE 1 LTD.
Adult and Health Services,Central/Other,Creditors,952288,Creditor-DHSC Rapid Testing Fund Grant,04/05/2021,3862819-RAPIDTESTINGFUND3/120,"1,560.12",VOYAGE 1 LTD.
Adult and Health Services,Central/Other,Creditors,952288,Creditor-DHSC Rapid Testing Fund Grant,04/05/2021,3862822-RAPIDTESTINGFUND-SLS2/135,"2,340.18",WADDINGTON STREET CENTRE LTD.
Adult and Health Services,Central/Other,Creditors,952288,Creditor-DHSC Rapid Testing Fund Grant,04/05/2021,3862832-RAPIDTESTINGFUND3/115,"15,601.20",WEST LODGE CARE HOMES LTD.
Adult and Health Services,Central/Other,Creditors,952288,Creditor-DHSC Rapid Testing Fund Grant,04/05/2021,3862836-RAPIDTESTINGFUND3/57,"10,400.80",WILLIAMS & SPENCELEY LTD.
Adult and Health Services,Commissioning inc Supporting People,Third Party Payments,479101,Purchase of Care,04/05/2021,3862774-4810019332,"4,425.67",TEES ESK & WEAR VALLEYS NHS FOUNDATION TRUST.
Adult and Health Services,Head of Adults,Transport,230005,Contract Hire,04/05/2021,3862328-8062-1/7/20,851.23,BOBBY DOVE PRIVATE HIRE.
Adult and Health Services,Head of Adults,Third Party Payments,479150,Purchase of Care,04/05/2021,3862394-INFECTIONCONTROLFUND3/164,"5,725.10",DEACONSTAR LTD.
Adult and Health Services,Head of Adults,Third Party Payments,479150,Purchase of Care,04/05/2021,3862427-INFECTIONCONTROLFUND3/167,"10,383.73",EBONEY HOME CARE LTD.
Adult and Health Services,Head of Adults,Third Party Payments,479150,Purchase of Care,04/05/2021,3862780-INFECTIONCONTROLFUND3/174,"1,646.21",THE HOSPITAL OF GOD AT GREATHAM.
Adult and Health Services,Head of Adults,Third Party Payments,479150,Purchase of Care,04/05/2021,3862788-INFECTIONCONTROLFUND3/178,"8,012.00",THOMPSON & HOWE LTD.
Adult and Health Services,Head of Adults,Third Party Payments,479150,Purchase of Care,04/05/2021,3862788-INFECTIONCONTROLFUND3/181,"12,948.32",THOMPSON & HOWE LTD.
Adult and Health Services,Head of Adults,Creditors,952287,Creditor-DHSC Infection Control Grant,04/05/2021,3862699-INFECTIONCONTROLFUND3/35,"10,595.18",ROBERT PATTINSON.
Adult and Health Services,Head of Adults,Creditors,952287,Creditor-DHSC Infection Control Grant,04/05/2021,3862706-INFECTIONCONTROLFUND3/57,"15,662.44",SANCTUARY CARE (ENGLAND) LTD.
Adult and Health Services,Public Health CC0450,Supplies and Services,384899,Miscellaneous Expenses,04/05/2021,3862323-CAS-04-2021-221,"1,162.00",BISHOP HOGARTH CATHOLIC EDUCATION TRUST T/A  ST JOHN`S SCHOOL & SIXTH FORM COLLEGE.
Adult and Health Services,Public Health CC0450,Supplies and Services,384899,Miscellaneous Expenses,04/05/2021,3862326-CAS-04-2021-222,"2,418.00",BISHOP WILKINSON CE TRUST.
Adult and Health Services,Public Health CC0450,Supplies and Services,384899,Miscellaneous Expenses,04/05/2021,3862326-CAS-04-2021-223,"2,783.00",BISHOP WILKINSON CE TRUST.
Children and Young Peoples Services,Head of Childrens Social Care,Third Party Payments,440038,Other third party payments E440,04/05/2021,3862700-5531,"20,640.00",ROC FAMILY SUPPORT LTD.
Children and Young Peoples Services,Head of Childrens Social Care,Third Party Payments,440038,Other third party payments E440,04/05/2021,3862700-5566,"18,320.00",ROC FAMILY SUPPORT LTD.
Children and Young Peoples Services,Head of Childrens Social Care,Third Party Payments,440038,Other third party payments E440,04/05/2021,3862700-5567,"17,600.00",ROC FAMILY SUPPORT LTD.
Children and Young Peoples Services,Head of Childrens Social Care,Third Party Payments,440039,Other third party payments E440,04/05/2021,3862700-5528,"14,880.00",ROC FAMILY SUPPORT LTD.
Children and Young Peoples Services,Head of Childrens Social Care,Third Party Payments,440039,Other third party payments E440,04/05/2021,3862700-5568,"12,380.00",ROC FAMILY SUPPORT LTD.
Children and Young Peoples Services,Head of Childrens Social Care,Third Party Payments,440039,Other third party payments E440,04/05/2021,3862700-5569,"12,380.00",ROC FAMILY SUPPORT LTD.
Children and Young Peoples Services,Head of Childrens Social Care,Supplies and Services,338044,Services,04/05/2021,3862458-284/1,"1,019.24",FOCUS MENTAL HEALTH.
Children and Young Peoples Services,Head of Childrens Social Care,Supplies and Services,364359,Grants to Voluntary Organisations,04/05/2021,3862371-CAS-05-2021-001,584.20,CLEVER CLOGS DAY NURSERY (DURHAM) LTD.
Children and Young Peoples Services,Head of Education and Skills,Transport,230012,Contract Hire,04/05/2021,3862602-01072020,"1,334.06",MJ TIMNEY T/A KDC & C&M TAXIS.
Children and Young Peoples Services,Head of Education and Skills,Transport,230007,Contract Hire,04/05/2021,3862635-1JULY2020,899.34,NC TAXI`S.
Children and Young Peoples Services,Head of Education and Skills,Transport,230003,Contract Hire,04/05/2021,3862762-0507SL,801.32,T MOORE & SON.
Children and Young Peoples Services,Head of Education and Skills,Transport,230008,Contract Hire,04/05/2021,3862577-43,"1,170.00",M&C`S CABS LTD.
Children and Young Peoples Services,Head of Education and Skills,Third Party Payments,440999,Other third party payments E440,04/05/2021,3862419-LPT5-8TNV-START,750.00,DURHAM SCHOOL.*
Children and Young Peoples Services,Head of Education and Skills,Transport,230008,Contract Hire,04/05/2021,3862523-1834,957.71,JDS PRIVATE HIRE DURHAM.
Children and Young Peoples Services,Head of Education and Skills,Transport,230008,Contract Hire,04/05/2021,3862795-10JULY20,"1,159.86",TRIDENT TAXIS.
Children and Young Peoples Services,Head of Education and Skills,Transport,230006,Contract Hire,04/05/2021,3862259-602,646.97,A BARKER.
Children and Young Peoples Services,Head of Education and Skills,Transport,230006,Contract Hire,04/05/2021,3862259-605,579.45,A BARKER.
Dedicated Schools Grant BG0015,DSG Early Years Block,Transfer Payments,510030,School Children,04/05/2021,3862327-25366,"7,467.53",(USE 189028) BISHOP WILKINSON CE TRUST T/A ST BENET`S RCVA PRIMARY SCHOOL.
Dedicated Schools Grant BG0015,DSG Early Years Block,Transfer Payments,510030,School Children,04/05/2021,3862265-25220,"8,905.98",ADVENTURE VALLEY DAY NURSERY LTD.
Dedicated Schools Grant BG0015,DSG Early Years Block,Transfer Payments,510030,School Children,04/05/2021,3862308-25234,"3,385.20",AYCLIFFE DAY NURSERY.
Dedicated Schools Grant BG0015,DSG Early Years Block,Transfer Payments,510030,School Children,04/05/2021,3862322-25237,"9,661.62",BISHOP AUCKLAND COLLEGE NURSERY.
Dedicated Schools Grant BG0015,DSG Early Years Block,Transfer Payments,510030,School Children,04/05/2021,3862324-25368,"6,076.98",BISHOP HOGARTH CATHOLIC EDUCATION TRUST.
Dedicated Schools Grant BG0015,DSG Early Years Block,Transfer Payments,510030,School Children,04/05/2021,3862337-25241,"13,063.44",BRIGHT STAR NURSERY.
Dedicated Schools Grant BG0015,DSG Early Years Block,Transfer Payments,510030,School Children,04/05/2021,3862340-25242,"6,807.94",BURNOPFIELD DAY CARE.
Dedicated Schools Grant BG0015,DSG Early Years Block,Transfer Payments,510030,School Children,04/05/2021,3862341-25243,"7,234.50",BYERLEY ROAD PRE SCHOOL.
Dedicated Schools Grant BG0015,DSG Early Years Block,Transfer Payments,510030,School Children,04/05/2021,3862354-25249,"6,029.89",CASTLE KINDERGARTEN LTD.
Dedicated Schools Grant BG0015,DSG Early Years Block,Transfer Payments,510030,School Children,04/05/2021,3862353-25248,"9,508.20",CASTLE KINDERGARTEN LTD.
Dedicated Schools Grant BG0015,DSG Early Years Block,Transfer Payments,510030,School Children,04/05/2021,3862355-25250,"46,473.57",CASTLE VIEW PRIVATE DAY NURSERY LTD.
Dedicated Schools Grant BG0015,DSG Early Years Block,Transfer Payments,510030,School Children,04/05/2021,3862375-25261,"2,583.36",CONKERS LIFE LTD (NURSERY SCHOOL).
Dedicated Schools Grant BG0015,DSG Early Years Block,Transfer Payments,510030,School Children,04/05/2021,3862379-25263,"7,319.82",COUNDON & LEEHOLME EARLY YEARS CENTRE LTD.
Dedicated Schools Grant BG0015,DSG Early Years Block,Transfer Payments,510030,School Children,04/05/2021,3862384-25264,"1,429.84",CRAGHEAD CHILDCARE CENTRE.
Dedicated Schools Grant BG0015,DSG Early Years Block,Transfer Payments,510030,School Children,04/05/2021,3862384-25265,"7,966.24",CRAGHEAD CHILDCARE CENTRE.
Dedicated Schools Grant BG0015,DSG Early Years Block,Transfer Payments,510030,School Children,04/05/2021,3862411-25293,"2,429.05",DURHAM & NEWCASTLE DIOCESAN LEARNING TRUST T/A INGLETON CE PRIMARY SCHOOL
Dedicated Schools Grant BG0015,DSG Early Years Block,Transfer Payments,510030,School Children,04/05/2021,3862412-25369,"7,050.42",DURHAM & NEWCASTLE DIOCESAN LEARNING TRUST T/A STANHOPE BARRINGTON C OF E PRIMARY SCHOOL.
Dedicated Schools Grant BG0015,DSG Early Years Block,Transfer Payments,510030,School Children,04/05/2021,3862422-25276,"1,620.49",EARLY LEARNERS PRIVATE DAY NURSERY.
Dedicated Schools Grant BG0015,DSG Early Years Block,Transfer Payments,510030,School Children,04/05/2021,3862424-25348,"8,268.00",EAST DURHAM COLLEGE.
Dedicated Schools Grant BG0015,DSG Early Years Block,Transfer Payments,510030,School Children,04/05/2021,3862429-25239,"5,415.54",EDEN ACADEMY TRUST LTD T/A BLUEBELL MEADOW PRIMARY SCHOOL.
Dedicated Schools Grant BG0015,DSG Early Years Block,Transfer Payments,510030,School Children,04/05/2021,3862430-25277,"9,725.63",EDEN GARDEN NURSERY.
Dedicated Schools Grant BG0015,DSG Early Years Block,Transfer Payments,510030,School Children,04/05/2021,3862431-25255,"12,815.40",EDEN LEARNING TRUST T/A CHILTON ACADEMY.
Dedicated Schools Grant BG0015,DSG Early Years Block,Transfer Payments,510030,School Children,04/05/2021,3862449-25279,"8,474.70",EMERALDS LITTLE GEMS DAYCARE LTD.
Dedicated Schools Grant BG0015,DSG Early Years Block,Transfer Payments,510030,School Children,04/05/2021,3862449-25280,"21,290.10",EMERALDS LITTLE GEMS DAYCARE LTD.
Dedicated Schools Grant BG0015,DSG Early Years Block,Transfer Payments,510030,School Children,04/05/2021,3862475-25286,"2,990.82",GIANT STEPS LTD.
Dedicated Schools Grant BG0015,DSG Early Years Block,Transfer Payments,510030,School Children,04/05/2021,3862476-25285,"12,255.75",GIANT STEPS LTD.
Dedicated Schools Grant BG0015,DSG Early Years Block,Transfer Payments,510030,School Children,04/05/2021,3862477-25284,"9,650.55",GIANT STEPS LTD.
Dedicated Schools Grant BG0015,DSG Early Years Block,Transfer Payments,510030,School Children,04/05/2021,3862479-25287,"14,329.58",GREEN LANE NURSERY & CHILDCARE CENTRE.
Dedicated Schools Grant BG0015,DSG Early Years Block,Transfer Payments,510030,School Children,04/05/2021,3862481-25328,"3,431.03",H WATSON-GREENWELL T/A LITTLE STARS NURSERY (ST BEDES).
Dedicated Schools Grant BG0015,DSG Early Years Block,Transfer Payments,510030,School Children,04/05/2021,3862486-25288,"9,921.60",HARTSIDE PRIMARY ACADEMY.
Dedicated Schools Grant BG0015,DSG Early Years Block,Transfer Payments,510030,School Children,04/05/2021,3862519-25296,817.05,JACQUELINE I`ANSON T/A JACKIES TOTS.
Dedicated Schools Grant BG0015,DSG Early Years Block,Transfer Payments,510030,School Children,04/05/2021,3862524-25346,"7,871.18",JIGSAW LEARNING TRUST.
Dedicated Schools Grant BG0015,DSG Early Years Block,Transfer Payments,510030,School Children,04/05/2021,3862526-25267,"7,978.62",JOANNE HARDY T/A DAYBREAK NURSERY.
Dedicated Schools Grant BG0015,DSG Early Years Block,Transfer Payments,510030,School Children,04/05/2021,3862539-25312,"7,377.34",KELLOE PHOENIX CENTRE (CHILDCARE).
Dedicated Schools Grant BG0015,DSG Early Years Block,Transfer Payments,510030,School Children,04/05/2021,3862543-25315,"11,234.44",KIDZONE.
Dedicated Schools Grant BG0015,DSG Early Years Block,Transfer Payments,510030,School Children,04/05/2021,3862545-25316,"6,552.59",KIRK MERRINGTON PRE SCHOOL.
Dedicated Schools Grant BG0015,DSG Early Years Block,Transfer Payments,510030,School Children,04/05/2021,3862546-25317,"7,987.98",KIRKLANDS DAY NURSERY.
Dedicated Schools Grant BG0015,DSG Early Years Block,Transfer Payments,510030,School Children,04/05/2021,3862558-25324,"8,880.30",LEADGATE CHILD CENTRE LTD.
Dedicated Schools Grant BG0015,DSG Early Years Block,Transfer Payments,510030,School Children,04/05/2021,3862568-25326,"7,319.82",LITTLE ACORNS NORTH EAST LTD.
Dedicated Schools Grant BG0015,DSG Early Years Block,Transfer Payments,510030,School Children,04/05/2021,3862569-25329,"9,301.50",LITTLE WAVES DAY NURSERY LTD.
Dedicated Schools Grant BG0015,DSG Early Years Block,Transfer Payments,510030,School Children,04/05/2021,3862598-25306,531.70,MISS JA MYERS T/A CHATTERBOX CHILDCARE.
Dedicated Schools Grant BG0015,DSG Early Years Block,Transfer Payments,510030,School Children,04/05/2021,3862618-25281,960.38,MRS EMMA HECKLES T/A CONSETT KIDS.
Dedicated Schools Grant BG0015,DSG Early Years Block,Transfer Payments,510030,School Children,04/05/2021,3862636-25342,"6,770.40",NELLIE`S DAY NURSERY LTD.
Dedicated Schools Grant BG0015,DSG Early Years Block,Transfer Payments,510030,School Children,04/05/2021,3862637-25343,"7,776.12",NEW BEGINNINGS (MOORSIDE) CO LTD.
Dedicated Schools Grant BG0015,DSG Early Years Block,Transfer Payments,510030,School Children,04/05/2021,3862642-25347,"5,719.35",NORTHUMBRIAN TRUST DAY NURSERIES LTD.
Dedicated Schools Grant BG0015,DSG Early Years Block,Transfer Payments,510030,School Children,04/05/2021,3862645-25344,"9,094.80",NURSERY TIME.
Dedicated Schools Grant BG0015,DSG Early Years Block,Transfer Payments,510030,School Children,04/05/2021,3862650-25345,"6,054.75",OLD BRIDGE NURSERY.
Dedicated Schools Grant BG0015,DSG Early Years Block,Transfer Payments,510030,School Children,04/05/2021,3862687-25352,"17,156.10",RAINBOW NURSERY LTD (MIDDLESTONE MOOR).
Dedicated Schools Grant BG0015,DSG Early Years Block,Transfer Payments,510030,School Children,04/05/2021,3862501-25290,"1,614.60",REDACTED - PAYMENT TO INDIVIDUAL
Dedicated Schools Grant BG0015,DSG Early Years Block,Transfer Payments,510030,School Children,04/05/2021,3862547-25318,630.24,REDACTED - PAYMENT TO INDIVIDUAL
Dedicated Schools Grant BG0015,DSG Early Years Block,Transfer Payments,510030,School Children,04/05/2021,3862487-25289,996.94,REDACTED - PAYMENT TO INDIVIDUAL
Dedicated Schools Grant BG0015,DSG Early Years Block,Transfer Payments,510030,School Children,04/05/2021,3862291-25231,"1,196.33",REDACTED - PAYMENT TO INDIVIDUAL
Dedicated Schools Grant BG0015,DSG Early Years Block,Transfer Payments,510030,School Children,04/05/2021,3862756-25376,598.17,REDACTED - PAYMENT TO INDIVIDUAL
Dedicated Schools Grant BG0015,DSG Early Years Block,Transfer Payments,510030,School Children,04/05/2021,3862720-25362,"1,196.33",REDACTED - PAYMENT TO INDIVIDUAL
Dedicated Schools Grant BG0015,DSG Early Years Block,Transfer Payments,510030,School Children,04/05/2021,3862632-25341,"2,961.81",REDACTED - PAYMENT TO INDIVIDUAL
Dedicated Schools Grant BG0015,DSG Early Years Block,Transfer Payments,510030,School Children,04/05/2021,3862584-25336,"1,152.45",REDACTED - PAYMENT TO INDIVIDUAL
Dedicated Schools Grant BG0015,DSG Early Years Block,Transfer Payments,510030,School Children,04/05/2021,3862573-25332,612.79,REDACTED - PAYMENT TO INDIVIDUAL
Dedicated Schools Grant BG0015,DSG Early Years Block,Transfer Payments,510030,School Children,04/05/2021,3862583-25335,598.17,REDACTED - PAYMENT TO INDIVIDUAL
Dedicated Schools Grant BG0015,DSG Early Years Block,Transfer Payments,510030,School Children,04/05/2021,3862593-25339,758.55,REDACTED - PAYMENT TO INDIVIDUAL
Dedicated Schools Grant BG0015,DSG Early Years Block,Transfer Payments,510030,School Children,04/05/2021,3862522-25299,784.26,REDACTED - PAYMENT TO INDIVIDUAL
Dedicated Schools Grant BG0015,DSG Early Years Block,Transfer Payments,510030,School Children,04/05/2021,3862571-25330,"1,816.43",REDACTED - PAYMENT TO INDIVIDUAL
Dedicated Schools Grant BG0015,DSG Early Years Block,Transfer Payments,510030,School Children,04/05/2021,3862616-25272,583.54,REDACTED - PAYMENT TO INDIVIDUAL
Dedicated Schools Grant BG0015,DSG Early Years Block,Transfer Payments,510030,School Children,04/05/2021,3862574-25333,653.06,REDACTED - PAYMENT TO INDIVIDUAL
Dedicated Schools Grant BG0015,DSG Early Years Block,Transfer Payments,510030,School Children,04/05/2021,3862554-25322,768.30,REDACTED - PAYMENT TO INDIVIDUAL
Dedicated Schools Grant BG0015,DSG Early Years Block,Transfer Payments,510030,School Children,04/05/2021,3862351-25247,778.05,REDACTED - PAYMENT TO INDIVIDUAL
Dedicated Schools Grant BG0015,DSG Early Years Block,Transfer Payments,510030,School Children,04/05/2021,3862518-25295,797.55,REDACTED - PAYMENT TO INDIVIDUAL
Dedicated Schools Grant BG0015,DSG Early Years Block,Transfer Payments,510030,School Children,04/05/2021,3862397-25269,758.55,REDACTED - PAYMENT TO INDIVIDUAL
Dedicated Schools Grant BG0015,DSG Early Years Block,Transfer Payments,510030,School Children,04/05/2021,3862536-25308,984.75,REDACTED - PAYMENT TO INDIVIDUAL
Dedicated Schools Grant BG0015,DSG Early Years Block,Transfer Payments,510030,School Children,04/05/2021,3862286-25226,768.30,REDACTED - PAYMENT TO INDIVIDUAL
Dedicated Schools Grant BG0015,DSG Early Years Block,Transfer Payments,510030,School Children,04/05/2021,3862367-25257,768.30,REDACTED - PAYMENT TO INDIVIDUAL
Dedicated Schools Grant BG0015,DSG Early Years Block,Transfer Payments,510030,School Children,04/05/2021,3862521-25298,"1,580.32",REDACTED - PAYMENT TO INDIVIDUAL
Dedicated Schools Grant BG0015,DSG Early Years Block,Transfer Payments,510030,School Children,04/05/2021,3862503-25292,"1,033.50",REDACTED - PAYMENT TO INDIVIDUAL
Dedicated Schools Grant BG0015,DSG Early Years Block,Transfer Payments,510030,School Children,04/05/2021,3862541-25314,"1,225.58",REDACTED - PAYMENT TO INDIVIDUAL
Dedicated Schools Grant BG0015,DSG Early Years Block,Transfer Payments,510030,School Children,04/05/2021,3862686-25351,583.54,REDACTED - PAYMENT TO INDIVIDUAL
Dedicated Schools Grant BG0015,DSG Early Years Block,Transfer Payments,510030,School Children,04/05/2021,3862552-25320,576.23,REDACTED - PAYMENT TO INDIVIDUAL
Dedicated Schools Grant BG0015,DSG Early Years Block,Transfer Payments,510030,School Children,04/05/2021,3862696-25356,"16,122.60",RIBBON ACADEMY TRUST.
Dedicated Schools Grant BG0015,DSG Early Years Block,Transfer Payments,510030,School Children,04/05/2021,3862697-25357,"9,921.60",RIBBON DAYCARE.
Dedicated Schools Grant BG0015,DSG Early Years Block,Transfer Payments,510030,School Children,04/05/2021,3862704-25358,"4,547.40",SACRISTON ACADEMY - EARLY YEARS T/A PRIVATE NURSERY.
Dedicated Schools Grant BG0015,DSG Early Years Block,Transfer Payments,510030,School Children,04/05/2021,3862716-25360,"3,880.99",SEASIDE LANE NURSERY.
Dedicated Schools Grant BG0015,DSG Early Years Block,Transfer Payments,510030,School Children,04/05/2021,3862717-25361,638.04,SEDGEFIELD OUT OF SCHOOL FUN CLUB.
Dedicated Schools Grant BG0015,DSG Early Years Block,Transfer Payments,510030,School Children,04/05/2021,3862739-25367,"11,191.20",ST OSWALD`S SUNSHINE CLUB.
Dedicated Schools Grant BG0015,DSG Early Years Block,Transfer Payments,510030,School Children,04/05/2021,3862744-25238,"1,481.03",STANLEY LEARNING PARTNERSHIP.
Dedicated Schools Grant BG0015,DSG Early Years Block,Transfer Payments,510030,School Children,04/05/2021,3862743-25365,"8,039.85",STANLEY LEARNING PARTNERSHIP.
Dedicated Schools Grant BG0015,DSG Early Years Block,Transfer Payments,510030,School Children,04/05/2021,3862746-25370,"6,347.25",STEPHENSON WAY ACADEMY & NURSERY SCHOOL.
Dedicated Schools Grant BG0015,DSG Early Years Block,Transfer Payments,510030,School Children,04/05/2021,3862747-25371,"10,620.39",STEPPING STONES CO-OP NURSERY LTD.
Dedicated Schools Grant BG0015,DSG Early Years Block,Transfer Payments,510030,School Children,04/05/2021,3862748-25372,"5,640.87",STEPPING STONES DAY NURSERY (DURHAM).
Dedicated Schools Grant BG0015,DSG Early Years Block,Transfer Payments,510030,School Children,04/05/2021,3862753-25373,"15,915.90",SUNSHINE DAY NURSERY LTD.
Dedicated Schools Grant BG0015,DSG Early Years Block,Transfer Payments,510030,School Children,04/05/2021,3862755-25374,"12,482.93",SUNSHINE DAY NURSERY LTD.
Dedicated Schools Grant BG0015,DSG Early Years Block,Transfer Payments,510030,School Children,04/05/2021,3862754-25375,"7,234.50",SUNSHINE DAY NURSERY LTD.
Dedicated Schools Grant BG0015,DSG Early Years Block,Transfer Payments,510030,School Children,04/05/2021,3862784-25379,"11,030.18",THE NURSERY.
Dedicated Schools Grant BG0015,DSG Early Years Block,Transfer Payments,510030,School Children,04/05/2021,3862789-25294,"11,161.80",TM NURSERY ENTERPRISES LTD T/A JACK IN THE BOX DAYCARE.
Dedicated Schools Grant BG0015,DSG Early Years Block,Transfer Payments,510030,School Children,04/05/2021,3862797-25382,"2,018.25",TRIMDON`S LITTLE TYKES LTD.
Dedicated Schools Grant BG0015,DSG Early Years Block,Transfer Payments,510030,School Children,04/05/2021,3862800-25364,"3,445.00",TUDHOE LEARNING TRUST T/A SOUTH HETTON PRIMARY SCHOOL.
Dedicated Schools Grant BG0015,DSG Early Years Block,Transfer Payments,510030,School Children,04/05/2021,3862807-25275,"10,494.90",UNIVERSITY OF DURHAM DAY NURSERY.
Dedicated Schools Grant BG0015,DSG Early Years Block,Transfer Payments,510030,School Children,04/05/2021,3862809-25383,"5,646.72",USHAW MOOR DAYCARE.
Dedicated Schools Grant BG0015,DSG Early Years Block,Transfer Payments,510030,School Children,04/05/2021,3862812-25385,"4,950.86",VICTORIA LANE ACADEMY.
Dedicated Schools Grant BG0015,DSG Early Years Block,Transfer Payments,510030,School Children,04/05/2021,3862828-25252,"5,374.20",WAYMAN DEVELOPMENTS LTD T/A CHILDSPLAY PRIVATE NURSERY.
Dedicated Schools Grant BG0015,DSG Early Years Block,Transfer Payments,510030,School Children,04/05/2021,3862827-25253,"5,019.30",WAYMAN DEVELOPMENTS LTD T/A CHILDSPLAY PRIVATE NURSERY.
Dedicated Schools Grant BG0015,DSG Early Years Block,Transfer Payments,510030,School Children,04/05/2021,3862826-25254,"13,522.28",WAYMAN DEVELOPMENTS LTD T/A CHILDSPLAY PRIVATE NURSERY.
Dedicated Schools Grant BG0015,DSG Early Years Block,Transfer Payments,510030,School Children,04/05/2021,3862834-25388,"6,256.58",WHEATLEY HILL COMMUNITY NURSERY LTD.
Dedicated Schools Grant BG0015,DSG Early Years Block,Transfer Payments,510030,School Children,04/05/2021,3862837-25389,"4,726.80",WINGATE COMMUNITY CHILDCARE LTD.
Dedicated Schools Grant BG0015,DSG Early Years Block,Transfer Payments,510030,School Children,04/05/2021,3862841-25390,"14,675.70",YORK HOUSE NURSERY.
Dedicated Schools Grant BG0015,DSG Early Years Block,Transfer Payments,510032,School Children,04/05/2021,3862265-25099,"1,794.98",ADVENTURE VALLEY DAY NURSERY LTD.
Dedicated Schools Grant BG0015,DSG Early Years Block,Transfer Payments,510032,School Children,04/05/2021,3862289-25101,"1,282.13",ANN SMITH T/A ANN`S ANGELS.
Dedicated Schools Grant BG0015,DSG Early Years Block,Transfer Payments,510032,School Children,04/05/2021,3862308-25103,"3,589.95",AYCLIFFE DAY NURSERY.
Dedicated Schools Grant BG0015,DSG Early Years Block,Transfer Payments,510032,School Children,04/05/2021,3862322-25104,"1,487.27",BISHOP AUCKLAND COLLEGE NURSERY.
Dedicated Schools Grant BG0015,DSG Early Years Block,Transfer Payments,510032,School Children,04/05/2021,3862337-25106,"4,444.70",BRIGHT STAR NURSERY.
Dedicated Schools Grant BG0015,DSG Early Years Block,Transfer Payments,510032,School Children,04/05/2021,3862340-25107,"1,538.55",BURNOPFIELD DAY CARE.
Dedicated Schools Grant BG0015,DSG Early Years Block,Transfer Payments,510032,School Children,04/05/2021,3862341-25108,"2,564.25",BYERLEY ROAD PRE SCHOOL.
Dedicated Schools Grant BG0015,DSG Early Years Block,Transfer Payments,510032,School Children,04/05/2021,3862354-25113,"1,282.13",CASTLE KINDERGARTEN LTD.
Dedicated Schools Grant BG0015,DSG Early Years Block,Transfer Payments,510032,School Children,04/05/2021,3862353-25112,"4,872.08",CASTLE KINDERGARTEN LTD.
Dedicated Schools Grant BG0015,DSG Early Years Block,Transfer Payments,510032,School Children,04/05/2021,3862379-25121,"5,128.50",COUNDON & LEEHOLME EARLY YEARS CENTRE LTD.
Dedicated Schools Grant BG0015,DSG Early Years Block,Transfer Payments,510032,School Children,04/05/2021,3862384-25122,512.85,CRAGHEAD CHILDCARE CENTRE.
Dedicated Schools Grant BG0015,DSG Early Years Block,Transfer Payments,510032,School Children,04/05/2021,3862384-25123,"2,051.40",CRAGHEAD CHILDCARE CENTRE.
Dedicated Schools Grant BG0015,DSG Early Years Block,Transfer Payments,510032,School Children,04/05/2021,3862422-25129,"3,077.10",EARLY LEARNERS PRIVATE DAY NURSERY.
Dedicated Schools Grant BG0015,DSG Early Years Block,Transfer Payments,510032,School Children,04/05/2021,3862424-25178,"2,307.83",EAST DURHAM COLLEGE.
Dedicated Schools Grant BG0015,DSG Early Years Block,Transfer Payments,510032,School Children,04/05/2021,3862429-25105,"1,794.98",EDEN ACADEMY TRUST LTD T/A BLUEBELL MEADOW PRIMARY SCHOOL.
Dedicated Schools Grant BG0015,DSG Early Years Block,Transfer Payments,510032,School Children,04/05/2021,3862430-25130,"3,589.95",EDEN GARDEN NURSERY.
Dedicated Schools Grant BG0015,DSG Early Years Block,Transfer Payments,510032,School Children,04/05/2021,3862449-25133,"6,154.20",EMERALDS LITTLE GEMS DAYCARE LTD.
Dedicated Schools Grant BG0015,DSG Early Years Block,Transfer Payments,510032,School Children,04/05/2021,3862449-25134,"8,974.88",EMERALDS LITTLE GEMS DAYCARE LTD.
Dedicated Schools Grant BG0015,DSG Early Years Block,Transfer Payments,510032,School Children,04/05/2021,3862457-25135,512.85,FIRST FOUR KIDZ CHILDCARE.
Dedicated Schools Grant BG0015,DSG Early Years Block,Transfer Payments,510032,School Children,04/05/2021,3862475-25137,"1,794.98",GIANT STEPS LTD.
Dedicated Schools Grant BG0015,DSG Early Years Block,Transfer Payments,510032,School Children,04/05/2021,3862476-25136,"3,589.95",GIANT STEPS LTD.
Dedicated Schools Grant BG0015,DSG Early Years Block,Transfer Payments,510032,School Children,04/05/2021,3862479-25138,"1,538.55",GREEN LANE NURSERY & CHILDCARE CENTRE.
Dedicated Schools Grant BG0015,DSG Early Years Block,Transfer Payments,510032,School Children,04/05/2021,3862481-25164,"1,025.70",H WATSON-GREENWELL T/A LITTLE STARS NURSERY (ST BEDES).
Dedicated Schools Grant BG0015,DSG Early Years Block,Transfer Payments,510032,School Children,04/05/2021,3862526-25124,"1,538.55",JOANNE HARDY T/A DAYBREAK NURSERY.
Dedicated Schools Grant BG0015,DSG Early Years Block,Transfer Payments,510032,School Children,04/05/2021,3862539-25154,"1,538.55",KELLOE PHOENIX CENTRE (CHILDCARE).
Dedicated Schools Grant BG0015,DSG Early Years Block,Transfer Payments,510032,School Children,04/05/2021,3862543-25157,"5,384.93",KIDZONE.
Dedicated Schools Grant BG0015,DSG Early Years Block,Transfer Payments,510032,School Children,04/05/2021,3862546-25158,769.28,KIRKLANDS DAY NURSERY.
Dedicated Schools Grant BG0015,DSG Early Years Block,Transfer Payments,510032,School Children,04/05/2021,3862558-25161,"3,846.38",LEADGATE CHILD CENTRE LTD.
Dedicated Schools Grant BG0015,DSG Early Years Block,Transfer Payments,510032,School Children,04/05/2021,3862568-25163,"4,359.23",LITTLE ACORNS NORTH EAST LTD.
Dedicated Schools Grant BG0015,DSG Early Years Block,Transfer Payments,510032,School Children,04/05/2021,3862569-25165,"5,384.93",LITTLE WAVES DAY NURSERY LTD.
Dedicated Schools Grant BG0015,DSG Early Years Block,Transfer Payments,510032,School Children,04/05/2021,3862636-25172,"2,307.83",NELLIE`S DAY NURSERY LTD.
Dedicated Schools Grant BG0015,DSG Early Years Block,Transfer Payments,510032,School Children,04/05/2021,3862637-25173,"1,282.13",NEW BEGINNINGS (MOORSIDE) CO LTD.
Dedicated Schools Grant BG0015,DSG Early Years Block,Transfer Payments,510032,School Children,04/05/2021,3862642-25177,"2,051.40",NORTHUMBRIAN TRUST DAY NURSERIES LTD.
Dedicated Schools Grant BG0015,DSG Early Years Block,Transfer Payments,510032,School Children,04/05/2021,3862645-25174,"3,333.53",NURSERY TIME.
Dedicated Schools Grant BG0015,DSG Early Years Block,Transfer Payments,510032,School Children,04/05/2021,3862687-25181,"3,333.53",RAINBOW NURSERY LTD (MIDDLESTONE MOOR).
Dedicated Schools Grant BG0015,DSG Early Years Block,Transfer Payments,510032,School Children,04/05/2021,3862632-25171,"1,410.34",REDACTED - PAYMENT TO INDIVIDUAL
Dedicated Schools Grant BG0015,DSG Early Years Block,Transfer Payments,510032,School Children,04/05/2021,3862662-25176,769.28,REDACTED - PAYMENT TO INDIVIDUAL
Dedicated Schools Grant BG0015,DSG Early Years Block,Transfer Payments,510032,School Children,04/05/2021,3862571-25166,512.85,REDACTED - PAYMENT TO INDIVIDUAL
Dedicated Schools Grant BG0015,DSG Early Years Block,Transfer Payments,510032,School Children,04/05/2021,3862711-25185,512.85,REDACTED - PAYMENT TO INDIVIDUAL
Dedicated Schools Grant BG0015,DSG Early Years Block,Transfer Payments,510032,School Children,04/05/2021,3862616-25126,512.85,REDACTED - PAYMENT TO INDIVIDUAL
Dedicated Schools Grant BG0015,DSG Early Years Block,Transfer Payments,510032,School Children,04/05/2021,3862554-25160,512.85,REDACTED - PAYMENT TO INDIVIDUAL
Dedicated Schools Grant BG0015,DSG Early Years Block,Transfer Payments,510032,School Children,04/05/2021,3862351-25111,512.85,REDACTED - PAYMENT TO INDIVIDUAL
Dedicated Schools Grant BG0015,DSG Early Years Block,Transfer Payments,510032,School Children,04/05/2021,3862537-25150,512.85,REDACTED - PAYMENT TO INDIVIDUAL
Dedicated Schools Grant BG0015,DSG Early Years Block,Transfer Payments,510032,School Children,04/05/2021,3862536-25149,769.28,REDACTED - PAYMENT TO INDIVIDUAL
Dedicated Schools Grant BG0015,DSG Early Years Block,Transfer Payments,510032,School Children,04/05/2021,3862350-25110,512.85,REDACTED - PAYMENT TO INDIVIDUAL
Dedicated Schools Grant BG0015,DSG Early Years Block,Transfer Payments,510032,School Children,04/05/2021,3862503-25142,"1,538.55",REDACTED - PAYMENT TO INDIVIDUAL
Dedicated Schools Grant BG0015,DSG Early Years Block,Transfer Payments,510032,School Children,04/05/2021,3862541-25156,769.28,REDACTED - PAYMENT TO INDIVIDUAL
Dedicated Schools Grant BG0015,DSG Early Years Block,Transfer Payments,510032,School Children,04/05/2021,3862685-25179,512.85,REDACTED - PAYMENT TO INDIVIDUAL
Dedicated Schools Grant BG0015,DSG Early Years Block,Transfer Payments,510032,School Children,04/05/2021,3862686-25180,"1,025.70",REDACTED - PAYMENT TO INDIVIDUAL
Dedicated Schools Grant BG0015,DSG Early Years Block,Transfer Payments,510032,School Children,04/05/2021,3862721-25189,512.85,REDACTED - PAYMENT TO INDIVIDUAL
Dedicated Schools Grant BG0015,DSG Early Years Block,Transfer Payments,510032,School Children,04/05/2021,3862697-25183,"7,949.18",RIBBON DAYCARE.
Dedicated Schools Grant BG0015,DSG Early Years Block,Transfer Payments,510032,School Children,04/05/2021,3862716-25186,"1,794.98",SEASIDE LANE NURSERY.
Dedicated Schools Grant BG0015,DSG Early Years Block,Transfer Payments,510032,School Children,04/05/2021,3862743-25190,769.28,STANLEY LEARNING PARTNERSHIP.
Dedicated Schools Grant BG0015,DSG Early Years Block,Transfer Payments,510032,School Children,04/05/2021,3862753-25191,"5,384.93",SUNSHINE DAY NURSERY LTD.
Dedicated Schools Grant BG0015,DSG Early Years Block,Transfer Payments,510032,School Children,04/05/2021,3862755-25192,"4,359.23",SUNSHINE DAY NURSERY LTD.
Dedicated Schools Grant BG0015,DSG Early Years Block,Transfer Payments,510032,School Children,04/05/2021,3862754-25193,"3,333.53",SUNSHINE DAY NURSERY LTD.
Dedicated Schools Grant BG0015,DSG Early Years Block,Transfer Payments,510032,School Children,04/05/2021,3862784-25194,"4,359.23",THE NURSERY.
Dedicated Schools Grant BG0015,DSG Early Years Block,Transfer Payments,510032,School Children,04/05/2021,3862789-25143,"4,359.23",TM NURSERY ENTERPRISES LTD T/A JACK IN THE BOX DAYCARE.
Dedicated Schools Grant BG0015,DSG Early Years Block,Transfer Payments,510032,School Children,04/05/2021,3862797-25196,"1,282.13",TRIMDON`S LITTLE TYKES LTD.
Dedicated Schools Grant BG0015,DSG Early Years Block,Transfer Payments,510032,School Children,04/05/2021,3862807-25128,769.28,UNIVERSITY OF DURHAM DAY NURSERY.
Dedicated Schools Grant BG0015,DSG Early Years Block,Transfer Payments,510032,School Children,04/05/2021,3862809-25197,"5,128.50",USHAW MOOR DAYCARE.
Dedicated Schools Grant BG0015,DSG Early Years Block,Transfer Payments,510032,School Children,04/05/2021,3862828-25116,"3,589.95",WAYMAN DEVELOPMENTS LTD T/A CHILDSPLAY PRIVATE NURSERY.
Dedicated Schools Grant BG0015,DSG Early Years Block,Transfer Payments,510032,School Children,04/05/2021,3862827-25117,"2,564.25",WAYMAN DEVELOPMENTS LTD T/A CHILDSPLAY PRIVATE NURSERY.
Dedicated Schools Grant BG0015,DSG Early Years Block,Transfer Payments,510032,School Children,04/05/2021,3862826-25118,"5,641.35",WAYMAN DEVELOPMENTS LTD T/A CHILDSPLAY PRIVATE NURSERY.
Dedicated Schools Grant BG0015,DSG Early Years Block,Transfer Payments,510032,School Children,04/05/2021,3862834-25199,"2,820.68",WHEATLEY HILL COMMUNITY NURSERY LTD.
Dedicated Schools Grant BG0015,DSG Early Years Block,Transfer Payments,510032,School Children,04/05/2021,3862837-25200,"5,128.50",WINGATE COMMUNITY CHILDCARE LTD.
Dedicated Schools Grant BG0015,DSG Early Years Block,Transfer Payments,510032,School Children,04/05/2021,3862841-25201,"1,794.98",YORK HOUSE NURSERY.
Neighbourhoods and Climate Change,Environmental Services,Supplies and Services,304221,Equipment and Materials,04/05/2021,3862309-INV144611,"1,140.00",AZTEC CHEMICALS LTD.
Neighbourhoods and Climate Change,Environmental Services,Transport,230710,Contract Hire,04/05/2021,3862727-220/21/0014837,"85,772.05",SIEMENS FINANCIAL SERVICES LTD.
Neighbourhoods and Climate Change,Environmental Services,Transport,215005,Running Costs of Vehicles,04/05/2021,3862649-748861,"11,763.92",OIL NRG LTD.
Neighbourhoods and Climate Change,Environmental Services,Transport,230710,Contract Hire,04/05/2021,3862727-220/21/0014835,"6,233.07",SIEMENS FINANCIAL SERVICES LTD.
Neighbourhoods and Climate Change,Environmental Services,Transport,230710,Contract Hire,04/05/2021,3862727-220/21/0014836,"2,149.67",SIEMENS FINANCIAL SERVICES LTD.
Neighbourhoods and Climate Change,Environmental Services,Transport,215005,Running Costs of Vehicles,04/05/2021,3862649-748831,"12,703.28",OIL NRG LTD.
Neighbourhoods and Climate Change,Environmental Services,Transport,215022,Running Costs of Vehicles,04/05/2021,3862649-748839,"1,554.14",OIL NRG LTD.
Neighbourhoods and Climate Change,Environmental Services,Transport,230710,Contract Hire,04/05/2021,3862727-220/21/0014849,"1,973.75",SIEMENS FINANCIAL SERVICES LTD.
Neighbourhoods and Climate Change,Technical Services CM0300,Stock A926,926900,Stock in hand-Inventory system,04/05/2021,3862661-XL269688,"1,400.00",PARK ELECTRICAL DISTRIBUTORS LTD.
Neighbourhoods and Climate Change,Technical Services CM0300,Stock A926,926900,Stock in hand-Inventory system,04/05/2021,3862661-XL269759,"6,871.20",PARK ELECTRICAL DISTRIBUTORS LTD.
Neighbourhoods and Climate Change,Technical Services CM0300,Stock A926,926900,Stock in hand-Inventory system,04/05/2021,3862839-72140966,"1,794.24",WOLSELEY UK LTD.
Neighbourhoods and Climate Change,Technical Services CM0300,Supplies and Services,304221,Equipment and Materials,04/05/2021,3862631-0000098928,"1,188.39",NAL LTD.
Neighbourhoods and Climate Change,Technical Services CM0300,Supplies and Services,304221,Equipment and Materials,04/05/2021,3862325-BMPR/404/BJW,"1,390.00",BISHOP MIDDLEHAM PLANT & RECYCLING LTD.
Neighbourhoods and Climate Change,Technical Services CM0300,Supplies and Services,304358,Equipment and Materials,04/05/2021,3862360-1815,"5,412.60",CG SIMPSON & SON.
Neighbourhoods and Climate Change,Technical Services CM0300,Supplies and Services,304357,Equipment and Materials,04/05/2021,3862470-DCC040421,"13,459.11",GAP GROUP LTD.
Neighbourhoods and Climate Change,Technical Services CM0300,Supplies and Services,304357,Equipment and Materials,04/05/2021,3862470-DCC110421,"13,567.53",GAP GROUP LTD.
Neighbourhoods and Climate Change,Technical Services CM0300,Supplies and Services,304357,Equipment and Materials,04/05/2021,3862470-DCC180421,"17,421.04",GAP GROUP LTD.
Neighbourhoods and Climate Change,Technical Services CM0300,Supplies and Services,304221,Equipment and Materials,04/05/2021,3862504-IN088717,"14,441.20",HILL & SMITH LTD.
Neighbourhoods and Climate Change,Technical Services CM0300,Supplies and Services,304358,Equipment and Materials,04/05/2021,3862515-1953/2020,550.00,J & JG GILL & SONS LTD.
Neighbourhoods and Climate Change,Technical Services CM0300,Supplies and Services,304221,Equipment and Materials,04/05/2021,3862565-CINV-082799,"1,758.87",LIMELIGHT SIGNS LTD.
Neighbourhoods and Climate Change,Technical Services CM0300,Supplies and Services,304358,Equipment and Materials,04/05/2021,3862576-MS2657,"1,047.15",M SPENCE SURFACING LTD.
Neighbourhoods and Climate Change,Technical Services CM0300,Supplies and Services,304358,Equipment and Materials,04/05/2021,3862576-MS2709,"1,323.45",M SPENCE SURFACING LTD.
Neighbourhoods and Climate Change,Technical Services CM0300,Supplies and Services,304358,Equipment and Materials,04/05/2021,3862576-MS2710,950.18,M SPENCE SURFACING LTD.
Neighbourhoods and Climate Change,Technical Services CM0300,Supplies and Services,304358,Equipment and Materials,04/05/2021,3862576-MS2721,"1,244.25",M SPENCE SURFACING LTD.
Neighbourhoods and Climate Change,Technical Services CM0300,Supplies and Services,304358,Equipment and Materials,04/05/2021,3862576-MS2722,870.98,M SPENCE SURFACING LTD.
Neighbourhoods and Climate Change,Technical Services CM0300,Supplies and Services,304358,Equipment and Materials,04/05/2021,3862576-MS2744,"1,008.00",M SPENCE SURFACING LTD.
Neighbourhoods and Climate Change,Technical Services CM0300,Supplies and Services,304358,Equipment and Materials,04/05/2021,3862576-MS2745,705.60,M SPENCE SURFACING LTD.
Neighbourhoods and Climate Change,Technical Services CM0300,Supplies and Services,304358,Equipment and Materials,04/05/2021,3862576-MS2749,"1,244.25",M SPENCE SURFACING LTD.
Neighbourhoods and Climate Change,Technical Services CM0300,Supplies and Services,304358,Equipment and Materials,04/05/2021,3862576-MS2750,870.97,M SPENCE SURFACING LTD.
Neighbourhoods and Climate Change,Technical Services CM0300,Supplies and Services,304358,Equipment and Materials,04/05/2021,3862576-MS2770,"1,116.00",M SPENCE SURFACING LTD.
Neighbourhoods and Climate Change,Technical Services CM0300,Supplies and Services,304358,Equipment and Materials,04/05/2021,3862576-MS2771,813.60,M SPENCE SURFACING LTD.
Neighbourhoods and Climate Change,Technical Services CM0300,Supplies and Services,304358,Equipment and Materials,04/05/2021,3862576-MS2780,992.25,M SPENCE SURFACING LTD.
Neighbourhoods and Climate Change,Technical Services CM0300,Supplies and Services,304358,Equipment and Materials,04/05/2021,3862576-MS2781,694.58,M SPENCE SURFACING LTD.
Neighbourhoods and Climate Change,Technical Services CM0300,Supplies and Services,304358,Equipment and Materials,04/05/2021,3862579-6005,"3,979.50",MAKEPEACE MOTORS.
Neighbourhoods and Climate Change,Technical Services CM0300,Supplies and Services,304358,Equipment and Materials,04/05/2021,3862579-6006,"3,979.50",MAKEPEACE MOTORS.
Neighbourhoods and Climate Change,Technical Services CM0300,Supplies and Services,304358,Equipment and Materials,04/05/2021,3862579-6007,503.50,MAKEPEACE MOTORS.
Neighbourhoods and Climate Change,Technical Services CM0300,Supplies and Services,304358,Equipment and Materials,04/05/2021,3862579-6010,"6,025.50",MAKEPEACE MOTORS.
Neighbourhoods and Climate Change,Technical Services CM0300,Supplies and Services,304358,Equipment and Materials,04/05/2021,3862579-6011,"6,001.50",MAKEPEACE MOTORS.
Neighbourhoods and Climate Change,Technical Services CM0300,Supplies and Services,304358,Equipment and Materials,04/05/2021,3862579-6012,717.00,MAKEPEACE MOTORS.
Neighbourhoods and Climate Change,Technical Services CM0300,Supplies and Services,304221,Equipment and Materials,04/05/2021,3862769-9043321037,626.29,TARMAC TRADING LTD.
Neighbourhoods and Climate Change,Technical Services CM0300,Supplies and Services,304221,Equipment and Materials,04/05/2021,3862769-9043403691,726.65,TARMAC TRADING LTD.
Neighbourhoods and Climate Change,Technical Services CM0300,Supplies and Services,304221,Equipment and Materials,04/05/2021,3862802-220794,"1,218.71",TYNEDALE ROADSTONE LTD.
Neighbourhoods and Climate Change,Technical Services CM0300,Supplies and Services,304221,Equipment and Materials,04/05/2021,3862802-220954,738.76,TYNEDALE ROADSTONE LTD.
Neighbourhoods and Climate Change,Technical Services CM0300,Supplies and Services,304221,Equipment and Materials,04/05/2021,3862802-221156,947.70,TYNEDALE ROADSTONE LTD.
Neighbourhoods and Climate Change,Technical Services CM0300,Supplies and Services,304221,Equipment and Materials,04/05/2021,3862802-221157,696.97,TYNEDALE ROADSTONE LTD.
Neighbourhoods and Climate Change,Technical Services CM0300,Supplies and Services,304221,Equipment and Materials,04/05/2021,3862802-221161,735.84,TYNEDALE ROADSTONE LTD.
Neighbourhoods and Climate Change,Technical Services CM0300,Supplies and Services,304221,Equipment and Materials,04/05/2021,3862802-221422,860.32,TYNEDALE ROADSTONE LTD.
Neighbourhoods and Climate Change,Technical Services CM0300,Supplies and Services,304221,Equipment and Materials,04/05/2021,3862802-221425,999.91,TYNEDALE ROADSTONE LTD.
Neighbourhoods and Climate Change,Technical Services CM0300,Supplies and Services,304221,Equipment and Materials,04/05/2021,3862802-221541,"1,008.82",TYNEDALE ROADSTONE LTD.
Neighbourhoods and Climate Change,Technical Services CM0300,Supplies and Services,304221,Equipment and Materials,04/05/2021,3862802-221542,"1,076.14",TYNEDALE ROADSTONE LTD.
Neighbourhoods and Climate Change,Technical Services CM0300,Supplies and Services,304221,Equipment and Materials,04/05/2021,3862802-221601,"1,088.02",TYNEDALE ROADSTONE LTD.
"Regeneration, Economy and Growth",Business Durham CL0850,Supplies and Services,384899,Miscellaneous Expenses,04/05/2021,3862269-DBRG-04-2021-117,726.75,AK SPORTS THERAPY & MASSAGE.
"Regeneration, Economy and Growth",Business Durham CL0850,Supplies and Services,384899,Miscellaneous Expenses,04/05/2021,3862269-DBRG-04-2021-118,573.00,AK SPORTS THERAPY & MASSAGE.
"Regeneration, Economy and Growth",Business Durham CL0850,Supplies and Services,384899,Miscellaneous Expenses,04/05/2021,3862269-DBRG-04-2021-119,920.96,AK SPORTS THERAPY & MASSAGE.
"Regeneration, Economy and Growth",Business Durham CL0850,Supplies and Services,384899,Miscellaneous Expenses,04/05/2021,3862280-DBRG-04-2021-111,"14,359.05",ALTEC ENGINEERING LTD.
"Regeneration, Economy and Growth",Business Durham CL0850,Supplies and Services,384899,Miscellaneous Expenses,04/05/2021,3862410-DBRG-04-2021-113,"1,327.50",DUNELM OPTICAL COMPANY LTD.
"Regeneration, Economy and Growth",Business Durham CL0850,Supplies and Services,384899,Miscellaneous Expenses,04/05/2021,3862418-DBRG-04-2021-114,"40,000.00",DURHAM PRECISION ENGINEERING LTD.
"Regeneration, Economy and Growth",Business Durham CL0850,Supplies and Services,384899,Miscellaneous Expenses,04/05/2021,3862464-DBRG-04-2021-115,862.50,FUNSHOOT PHOTOBOOTHS.
"Regeneration, Economy and Growth",Business Durham CL0850,Supplies and Services,384899,Miscellaneous Expenses,04/05/2021,3862528-DBRG-04-2021-120,"2,250.00",JP HEALTH NE LTD.
"Regeneration, Economy and Growth",Business Durham CL0850,Supplies and Services,384899,Miscellaneous Expenses,04/05/2021,3862528-DBRG-04-2021-124,"1,003.50",JP HEALTH NE LTD.
"Regeneration, Economy and Growth",Business Durham CL0850,Supplies and Services,384899,Miscellaneous Expenses,04/05/2021,3862838-DBRG-04-2021-112,"40,000.00",WISE ENGINEERING LTD.
"Regeneration, Economy and Growth",Corporate Property and Land,Premises,120037,Energy Costs,04/05/2021,3862266-13444,"1,269.84",AFTERWOOD LTD.
"Regeneration, Economy and Growth",Corporate Property and Land,Third Party Payments,430100,Rendered by Private Contractors,04/05/2021,3862303-7856,"2,403.00",ATLAS WASHROOM SYSTEMS LTD.
"Regeneration, Economy and Growth",Corporate Property and Land,Supplies and Services,304221,Equipment and Materials,04/05/2021,3862761-JE02148-1-TL-HLB,"1,510.00",T MANNERS & SONS LTD.
"Regeneration, Economy and Growth",Corporate Property and Land,Supplies and Services,304221,Equipment and Materials,04/05/2021,3862790-34580,"4,300.00",TOTAL PUMP SOLUTIONS LTD.
"Regeneration, Economy and Growth",Corporate Property and Land,Supplies and Services,304221,Equipment and Materials,04/05/2021,3862790-34589,"1,437.00",TOTAL PUMP SOLUTIONS LTD.
"Regeneration, Economy and Growth",Corporate Property and Land,Supplies and Services,304221,Equipment and Materials,04/05/2021,3862307-279519,865.69,AVIRE LTD.
"Regeneration, Economy and Growth",Corporate Property and Land,Supplies and Services,304221,Equipment and Materials,04/05/2021,3862562-00019602,"8,333.00",LESTER CONTROL SYSTEMS LTD.
"Regeneration, Economy and Growth",Corporate Property and Land,Supplies and Services,304221,Equipment and Materials,04/05/2021,3862724-0000118896,"3,044.00",SHORTS INDUSTRIES LTD T/A SHORTS LIFTS.
"Regeneration, Economy and Growth",Corporate Property and Land,Supplies and Services,304221,Equipment and Materials,04/05/2021,3862763-0000142337,552.29,TA PLASTIC SUPPLIES LTD.
"Regeneration, Economy and Growth",Culture Sport and Tourism,Supplies and Services,312013,Newspapers books and periodicals E312,04/05/2021,3862298-6455973,601.89,ASKEWS & HOLTS LIBRARY SERVICES LTD.
"Regeneration, Economy and Growth",Culture Sport and Tourism,Supplies and Services,312013,Newspapers books and periodicals E312,04/05/2021,3862298-6461959,560.55,ASKEWS & HOLTS LIBRARY SERVICES LTD.
"Regeneration, Economy and Growth",Culture Sport and Tourism,Supplies and Services,312013,Newspapers books and periodicals E312,04/05/2021,3862298-6465027,569.92,ASKEWS & HOLTS LIBRARY SERVICES LTD.
"Regeneration, Economy and Growth",Development and Housing,Premises,106080,Centrally Controlled Rep and Maint,04/05/2021,3862825-14918,"6,947.79",WATERMAN ENVIRONMENTAL SERVICES.
"Regeneration, Economy and Growth",Transport and Contracted Services,Third Party Payments,460151,Contract Payments,04/05/2021,3862517-25178,550.76,JACK COUPE & SONS LTD T/A COUPE LINE.
Resources BK0010,Digital and Customer Services,Vehicles Equipment Furniture and Fittings,912701,Computer equipment,04/05/2021,3862840-KZ14410,"1,251.36",XMA LTD.
Adult and Health Services,Commissioning inc Supporting People,Third Party Payments,442002,Supporting People E442,05/05/2021,3863567-1971027,"19,868.48",CREATIVE SUPPORT LTD.
Adult and Health Services,Commissioning inc Supporting People,Third Party Payments,441001,Supporting People E441,05/05/2021,3863677-1971056,"26,849.32",HOME GROUP LTD FORMERLY STONHAM HOUSING ASSOCIATION LTD.
Adult and Health Services,Commissioning inc Supporting People,Third Party Payments,442002,Supporting People E442,05/05/2021,3863677-1971059,"27,962.72",HOME GROUP LTD FORMERLY STONHAM HOUSING ASSOCIATION LTD.
Adult and Health Services,Commissioning inc Supporting People,Third Party Payments,442002,Supporting People E442,05/05/2021,3863751-1971029,"5,469.72",MENTAL HEALTH MATTERS.
Adult and Health Services,Commissioning inc Supporting People,Third Party Payments,441001,Supporting People E441,05/05/2021,3863839-1971031,"9,423.88",RICHMOND FELLOWSHIP.
Adult and Health Services,Commissioning inc Supporting People,Third Party Payments,442002,Supporting People E442,05/05/2021,3863839-1971030,"11,729.08",RICHMOND FELLOWSHIP.
Adult and Health Services,Commissioning inc Supporting People,Third Party Payments,442002,Supporting People E442,05/05/2021,3863913-1971037,"5,088.84",THIRTEEN HOUSING GROUP LTD.
Adult and Health Services,Commissioning inc Supporting People,Third Party Payments,441001,Supporting People E441,05/05/2021,3863948-1971033,"2,367.20",WADDINGTON STREET CENTRE LTD.
Adult and Health Services,Commissioning inc Supporting People,Third Party Payments,442002,Supporting People E442,05/05/2021,3863948-1971042,873.44,WADDINGTON STREET CENTRE LTD.
Adult and Health Services,Commissioning inc Supporting People,Third Party Payments,479111,Purchase of Care,05/05/2021,3863454-1971038,"3,297.48",ANCHOR HANOVER GROUP.
Adult and Health Services,Commissioning inc Supporting People,Third Party Payments,442002,Supporting People E442,05/05/2021,3863488-1971034,"16,448.04",BID SERVICES.
Adult and Health Services,Commissioning inc Supporting People,Third Party Payments,479111,Purchase of Care,05/05/2021,3863677-1971066,940.80,HOME GROUP LTD FORMERLY STONHAM HOUSING ASSOCIATION LTD.
Adult and Health Services,Commissioning inc Supporting People,Third Party Payments,441001,Supporting People E441,05/05/2021,3863596-1971032,"5,483.40",EAST DURHAM COMMUNITY INITIATIVES LTD.
Adult and Health Services,Commissioning inc Supporting People,Third Party Payments,441001,Supporting People E441,05/05/2021,3863677-1971054,"54,465.72",HOME GROUP LTD FORMERLY STONHAM HOUSING ASSOCIATION LTD.
Adult and Health Services,Commissioning inc Supporting People,Third Party Payments,442002,Supporting People E442,05/05/2021,3863677-1971052,"22,862.56",HOME GROUP LTD FORMERLY STONHAM HOUSING ASSOCIATION LTD.
Adult and Health Services,Commissioning inc Supporting People,Third Party Payments,442002,Supporting People E442,05/05/2021,3863759-1971048,"2,620.48",MOVING ON HOUSING.
Adult and Health Services,Commissioning inc Supporting People,Third Party Payments,442002,Supporting People E442,05/05/2021,3863868-1971049,"6,331.08",SINGLE HOMELESS ACTION INITIATIVE IN DURHAM LTD (SHAID).
Adult and Health Services,Commissioning inc Supporting People,Third Party Payments,441001,Supporting People E441,05/05/2021,3863913-1971040,"22,933.96",THIRTEEN HOUSING GROUP LTD.
Adult and Health Services,Commissioning inc Supporting People,Third Party Payments,441001,Supporting People E441,05/05/2021,3863592-1971045,"25,243.12",DURHAM ACTION ON SINGLE HOUSING LTD.
Adult and Health Services,Commissioning inc Supporting People,Third Party Payments,442002,Supporting People E442,05/05/2021,3863632-1971065,"14,482.44",FOUNDATION.
Adult and Health Services,Commissioning inc Supporting People,Third Party Payments,441001,Supporting People E441,05/05/2021,3863663-1971028,"18,082.80",HARBOUR SUPPORT SERVICES.
Adult and Health Services,Commissioning inc Supporting People,Third Party Payments,442002,Supporting People E442,05/05/2021,3863677-1971025,"91,080.12",HOME GROUP LTD FORMERLY STONHAM HOUSING ASSOCIATION LTD.
Adult and Health Services,Commissioning inc Supporting People,Third Party Payments,442002,Supporting People E442,05/05/2021,3863687-1971026,"33,554.16",HUMANKIND CHARITY.
Adult and Health Services,Commissioning inc Supporting People,Third Party Payments,441001,Supporting People E441,05/05/2021,3863902-1971035,"19,231.20",THE CYRENIANS LTD T/A CHANGING LIVES.
Adult and Health Services,Commissioning inc Supporting People,Third Party Payments,441001,Supporting People E441,05/05/2021,3863913-1971039,"7,776.68",THIRTEEN HOUSING GROUP LTD.
Adult and Health Services,Commissioning inc Supporting People,Third Party Payments,441001,Supporting People E441,05/05/2021,3863952-1971068,"9,542.60",WEAR VALLEY WOMENS AID LTD.
Adult and Health Services,Head of Adults,Transport,230005,Contract Hire,05/05/2021,3863443-0044,"1,029.48",AIRPORT TAXIS 4U.
Adult and Health Services,Head of Adults,Transport,230005,Contract Hire,05/05/2021,3863665-19-APRIL21,639.00,HARDIP SINGH MAHIL T/A AMBER CARS.
Adult and Health Services,Head of Adults,Transport,230005,Contract Hire,05/05/2021,3863918-0002231,"3,040.00",TONY RIDLEY T/A COLORS TAXIS LTD.
Adult and Health Services,Head of Adults,Supplies and Services,342051,Computers and Communications,05/05/2021,3863803-16933,"6,526.60",OXFORD COMPUTER CONSULTANTS LTD.
Adult and Health Services,Head of Adults,Third Party Payments,478151,Purchase of Care,05/05/2021,3863820-77001888,"1,386.87",POTENSIAL LTD.
Adult and Health Services,Head of Adults,Third Party Payments,478151,Purchase of Care,05/05/2021,3863821-26001565,"2,029.81",POTENSIAL LTD.
Adult and Health Services,Head of Adults,Third Party Payments,478151,Purchase of Care,05/05/2021,3863834-SLSINV/00044027,"1,631.60",REAL LIFE OPTIONS.
Adult and Health Services,Head of Adults,Third Party Payments,478151,Purchase of Care,05/05/2021,3863873-29421,"1,085.90",SOVEREIGN CARE (NORTH EAST) LTD.
Adult and Health Services,Public Health CC0450,Supplies and Services,384899,Miscellaneous Expenses,05/05/2021,316272-CAS-04-2021-159,"1,297.00",ST JOSEPHS RC DURHAM ROAD USHAW MOOR.
Adult and Health Services,Public Health CC0450,Third Party Payments,460803,Contract Payments,05/05/2021,3863663-DCCVC013,"4,321.41",HARBOUR SUPPORT SERVICES.
Adult and Health Services,Public Health CC0450,Third Party Payments,460803,Contract Payments,05/05/2021,3863663-DCCVC014,"4,321.41",HARBOUR SUPPORT SERVICES.
Children and Young Peoples Services,Childrens Services Operational Support,Supplies and Services,352001,Conference Expenses,05/05/2021,3863523-CW410,"7,777.50",CAREERWAVE LTD.
Children and Young Peoples Services,Head of Childrens Social Care,Third Party Payments,425021,Rendered by Voluntary Organisations,05/05/2021,3863554-DH09,"36,577.00",CO & CARE LTD.
Children and Young Peoples Services,Head of Childrens Social Care,Third Party Payments,425021,Rendered by Voluntary Organisations,05/05/2021,3863554-DH10,"36,577.00",CO & CARE LTD.
Children and Young Peoples Services,Head of Childrens Social Care,Transport,230005,Contract Hire,05/05/2021,3863568-110582,878.80,CROFT BUSINESS SERVICES (UK) LTD T/A CROFT TAXIS.
Children and Young Peoples Services,Head of Childrens Social Care,Transport,230005,Contract Hire,05/05/2021,3863568-110583,878.80,CROFT BUSINESS SERVICES (UK) LTD T/A CROFT TAXIS.
Children and Young Peoples Services,Head of Childrens Social Care,Supplies and Services,338044,Services,05/05/2021,3863719-RG-1-200421,634.90,KENMOR PSYCHOLOGICAL CONSULTANCY (KPC) LTD.
Children and Young Peoples Services,Head of Childrens Social Care,Supplies and Services,338044,Services,05/05/2021,3863732-210524,626.50,LEXTOX.
Children and Young Peoples Services,Head of Childrens Social Care,Transport,230005,Contract Hire,05/05/2021,3863551-CLUB2116G,695.00,CLUBMAN CABS.
Children and Young Peoples Services,Head of Early Help Inclusion & Vulnerable Children.,Supplies and Services,304259,Equipment and Materials,05/05/2021,3863930-INUK11763,636.90,TRIPLE P UK LTD.
Children and Young Peoples Services,Head of Education and Skills,Supplies and Services,338044,Services,05/05/2021,3863629-CAS-05-2021-032,750.00,FLOWERPOTS NURSERY.
Children and Young Peoples Services,Head of Education and Skills,Transfer Payments,510026,School Children,05/05/2021,3863490-YS21/22TOPUP,"1,203.00",BISHOP AUCKLAND COLLEGE NURSERY.
Children and Young Peoples Services,Head of Education and Skills,Transfer Payments,510027,School Children,05/05/2021,3863514-YS21/22TOPUP,"3,208.00",BUDDIES CHILDCARE CENTRE.
Children and Young Peoples Services,Head of Education and Skills,Transfer Payments,510027,School Children,05/05/2021,3863565-YS21/22TOPUP,668.00,CRAGHEAD CHILDCARE CENTRE.
Children and Young Peoples Services,Head of Education and Skills,Transfer Payments,510027,School Children,05/05/2021,3863599-YS21/22TOPUP2,943.00,EDEN ACADEMY TRUST LTD T/A BLUEBELL MEADOW PRIMARY SCHOOL.
Children and Young Peoples Services,Head of Education and Skills,Transfer Payments,510026,School Children,05/05/2021,3863616-YS21/22TOPUP,"1,203.00",EMERALDS LITTLE GEMS DAYCARE LTD.
Children and Young Peoples Services,Head of Education and Skills,Transfer Payments,510027,School Children,05/05/2021,3863616-YS21/22TOPUP2,"1,069.00",EMERALDS LITTLE GEMS DAYCARE LTD.
Children and Young Peoples Services,Head of Education and Skills,Transfer Payments,510027,School Children,05/05/2021,3863735-YS21/22TOPUP,633.00,LITTLE WAVES DAY NURSERY LTD.
Children and Young Peoples Services,Head of Education and Skills,Transfer Payments,510026,School Children,05/05/2021,3863832-YS21/22TOPUP,"2,005.00",RAINBOW NURSERY LTD (MIDDLESTONE MOOR).
Children and Young Peoples Services,Head of Education and Skills,Transfer Payments,510026,School Children,05/05/2021,3863838-YS21/22TOPUP,"1,604.00",RIBBON DAYCARE.
Children and Young Peoples Services,Head of Education and Skills,Transfer Payments,510026,School Children,05/05/2021,3863859-YS21/22TOPUP,802.00,SEAHAM HOUSE DAY NURSERY.
Children and Young Peoples Services,Head of Education and Skills,Transfer Payments,510027,School Children,05/05/2021,3863887-YS21/22TOPUP,"2,005.00",SUNSHINE DAY NURSERY LTD.
Children and Young Peoples Services,Head of Education and Skills,Transfer Payments,510027,School Children,05/05/2021,3863888-YS21/22TOPUP,668.00,SUNSHINE DAY NURSERY LTD.
Children and Young Peoples Services,Head of Education and Skills,Transport,230007,Contract Hire,05/05/2021,3863466-835,"1,455.00",AT TAXIS LTD.
Children and Young Peoples Services,Head of Education and Skills,Transport,230007,Contract Hire,05/05/2021,3863954-16121,"1,303.50",WEARDALE MOTOR SERVICES LTD.
Children and Young Peoples Services,Head of Education and Skills,Transport,230034,Contract Hire,05/05/2021,3863761-239,"1,066.00",MR BRIAN JOHNSON T/A BRYS TAXIS.
Children and Young Peoples Services,Head of Education and Skills,Transport,230007,Contract Hire,05/05/2021,3863452-DCC080,"1,011.50",ALSTON ROAD GARAGE.
Children and Young Peoples Services,Head of Education and Skills,Transport,230008,Contract Hire,05/05/2021,3863466-834,"1,455.00",AT TAXIS LTD.
Children and Young Peoples Services,Head of Education and Skills,Transport,230012,Contract Hire,05/05/2021,3863537-060,"1,530.00",CHANNER`S CABS.
Children and Young Peoples Services,Head of Education and Skills,Transport,230034,Contract Hire,05/05/2021,3863466-833,"1,065.00",AT TAXIS LTD.
Children and Young Peoples Services,Head of Education and Skills,Transport,230034,Contract Hire,05/05/2021,3863542-5208/07,690.00,CHRISTOPHER MADDISON (TAXI).
Children and Young Peoples Services,Head of Education and Skills,Transport,230009,Contract Hire,05/05/2021,3863639-1-APRIL21,"1,080.00",G ANGHEL T/A A TAXI.
Children and Young Peoples Services,Head of Education and Skills,Transport,230034,Contract Hire,05/05/2021,3863425-8-APRIL21,938.00,A & C TAXIS.
Children and Young Peoples Services,Head of Education and Skills,Transport,230008,Contract Hire,05/05/2021,3863918-0002232,"1,830.00",TONY RIDLEY T/A COLORS TAXIS LTD.
Children and Young Peoples Services,Head of Education and Skills,Transport,230034,Contract Hire,05/05/2021,3863462-APRIL21,840.00,ARMSTRONG`S TAXIS.
Children and Young Peoples Services,Head of Education and Skills,Transport,230034,Contract Hire,05/05/2021,3863765-168,900.00,MR JOHN ALLINSON T/A AALPHA TAXIS.
Children and Young Peoples Services,Head of Education and Skills,Transport,230009,Contract Hire,05/05/2021,3863469-30421,"1,613.55",AVALON TAXIS.
Children and Young Peoples Services,Head of Education and Skills,Transport,230007,Contract Hire,05/05/2021,3863542-5269/08,570.00,CHRISTOPHER MADDISON (TAXI).
Children and Young Peoples Services,Head of Education and Skills,Transport,230007,Contract Hire,05/05/2021,3863484-8-APRIL21,"1,515.00",BENNETTS TAXIS.
Children and Young Peoples Services,Head of Education and Skills,Transport,230009,Contract Hire,05/05/2021,3863954-16119,"2,915.66",WEARDALE MOTOR SERVICES LTD.
Children and Young Peoples Services,Head of Education and Skills,Transport,230035,Contract Hire,05/05/2021,3863574-WHIT300421,737.10,D IRVING T/A BJ TAXIS.
Children and Young Peoples Services,Head of Education and Skills,Transport,230007,Contract Hire,05/05/2021,3863506-101H,"2,340.00",BOBS TAXIS.
Children and Young Peoples Services,Head of Education and Skills,Transport,230007,Contract Hire,05/05/2021,3863765-167,870.00,MR JOHN ALLINSON T/A AALPHA TAXIS.
Children and Young Peoples Services,Head of Education and Skills,Transport,230007,Contract Hire,05/05/2021,3863452-DCC079,"1,851.00",ALSTON ROAD GARAGE.
Children and Young Peoples Services,Head of Education and Skills,Transport,230007,Contract Hire,05/05/2021,3863466-836,"1,358.00",AT TAXIS LTD.
Children and Young Peoples Services,Head of Education and Skills,Transport,230008,Contract Hire,05/05/2021,3863547-INV-055,933.40,CLARE LYNSEY STEWART T/A K&C TAXIS.
Children and Young Peoples Services,Head of Education and Skills,Transport,230008,Contract Hire,05/05/2021,3863753-INV211,"1,153.00",MICHAEL COBB T/A HAIL TAXIS.
Children and Young Peoples Services,Head of Education and Skills,Transport,230007,Contract Hire,05/05/2021,3863665-08-APRIL21,"1,028.85",HARDIP SINGH MAHIL T/A AMBER CARS.
Children and Young Peoples Services,Head of Education and Skills,Transport,230034,Contract Hire,05/05/2021,3863574-SEDGEFIELD300421,696.00,D IRVING T/A BJ TAXIS.
Children and Young Peoples Services,Head of Education and Skills,Transport,230009,Contract Hire,05/05/2021,3863573-18APR21,"1,170.00",D CROOK T/A CK TAXIS.
Children and Young Peoples Services,Head of Education and Skills,Transport,230003,Contract Hire,05/05/2021,3863892-28006SL,"1,355.86",T MOORE & SON.
Children and Young Peoples Services,Head of Education and Skills,Transport,230003,Contract Hire,05/05/2021,3863892-27706SB,541.20,T MOORE & SON.
Children and Young Peoples Services,Head of Education and Skills,Transport,230008,Contract Hire,05/05/2021,3863467-27,"2,160.00",AUCKLAND TRAVEL.
Children and Young Peoples Services,Head of Education and Skills,Transport,230007,Contract Hire,05/05/2021,3863506-101G,"1,680.00",BOBS TAXIS.
Children and Young Peoples Services,Head of Education and Skills,Transport,230007,Contract Hire,05/05/2021,3863720-010421,"1,412.71",KEVIN EDMUNDSON.
Children and Young Peoples Services,Head of Education and Skills,Transport,230034,Contract Hire,05/05/2021,3863760-AT236,768.00,MR AG WILSON T/A ALAN`S TAXIS (DURHAM CITY).
Children and Young Peoples Services,Head of Education and Skills,Transport,230034,Contract Hire,05/05/2021,3863485-FRAM/CA0421,780.00,BENS TAXIS.
Children and Young Peoples Services,Head of Education and Skills,Transport,230034,Contract Hire,05/05/2021,3863710-238,795.00,JOHN ROBSON T/A ACE TAXIS.
Children and Young Peoples Services,Head of Education and Skills,Transport,230008,Contract Hire,05/05/2021,3863456-APR21-E064,"1,433.25",ANDREW PYGALL T/A ARP TAXIS.
Children and Young Peoples Services,Head of Education and Skills,Transport,230008,Contract Hire,05/05/2021,3863467-030,"2,775.00",AUCKLAND TRAVEL.
Children and Young Peoples Services,Head of Education and Skills,Transport,230008,Contract Hire,05/05/2021,3863965-03JUN20,"3,915.00",WISS TAXIS.
Children and Young Peoples Services,Head of Education and Skills,Transport,230008,Contract Hire,05/05/2021,3863520-W112022,"1,233.00",C & R TAXIS.
Children and Young Peoples Services,Head of Education and Skills,Transport,230008,Contract Hire,05/05/2021,3863481-957,"1,182.86",BEELINE MINI BUSES.
Children and Young Peoples Services,Head of Education and Skills,Transport,230008,Contract Hire,05/05/2021,3863456-APR21-M002,"1,412.32",ANDREW PYGALL T/A ARP TAXIS.
Children and Young Peoples Services,Head of Education and Skills,Transport,230008,Contract Hire,05/05/2021,3863462-APRIL212,"1,023.12",ARMSTRONG`S TAXIS.
Children and Young Peoples Services,Head of Education and Skills,Transport,230008,Contract Hire,05/05/2021,3863489-INV-446,"1,160.00",BILL SCOTT TAXIS LTD.
Children and Young Peoples Services,Head of Education and Skills,Transport,230008,Contract Hire,05/05/2021,3863489-INV-462,870.00,BILL SCOTT TAXIS LTD.
Children and Young Peoples Services,Head of Education and Skills,Transport,230008,Contract Hire,05/05/2021,3863520-S006019,939.00,C & R TAXIS.
Children and Young Peoples Services,Head of Education and Skills,Transport,230008,Contract Hire,05/05/2021,3863467-28,"1,890.00",AUCKLAND TRAVEL.
Children and Young Peoples Services,Head of Education and Skills,Transport,230008,Contract Hire,05/05/2021,3863467-29,"2,010.00",AUCKLAND TRAVEL.
Children and Young Peoples Services,Head of Education and Skills,Transport,230008,Contract Hire,05/05/2021,3863481-956,"1,564.65",BEELINE MINI BUSES.
Children and Young Peoples Services,Head of Education and Skills,Transport,230008,Contract Hire,05/05/2021,3863557-1586,951.60,CONNORS MINI BUSES.*
Children and Young Peoples Services,Head of Education and Skills,Transport,230008,Contract Hire,05/05/2021,3863557-1718,"1,494.00",CONNORS MINI BUSES.*
Children and Young Peoples Services,Head of Education and Skills,Transport,230008,Contract Hire,05/05/2021,3863557-1719,"1,739.55",CONNORS MINI BUSES.*
Children and Young Peoples Services,Head of Education and Skills,Transport,230008,Contract Hire,05/05/2021,3863557-1720,"1,540.80",CONNORS MINI BUSES.*
Children and Young Peoples Services,Head of Education and Skills,Transport,230008,Contract Hire,05/05/2021,3863557-1721,"1,954.65",CONNORS MINI BUSES.*
Children and Young Peoples Services,Head of Education and Skills,Transport,230006,Contract Hire,05/05/2021,3863918-0002230,"1,305.00",TONY RIDLEY T/A COLORS TAXIS LTD.
Children and Young Peoples Services,Head of Education and Skills,Transport,230008,Contract Hire,05/05/2021,3863469-300421,"1,611.00",AVALON TAXIS.
Children and Young Peoples Services,Head of Education and Skills,Transport,230016,Contract Hire,05/05/2021,3863520-S02101,"1,065.00",C & R TAXIS.
Children and Young Peoples Services,Head of Education and Skills,Transport,230008,Contract Hire,05/05/2021,3863520-W030019,"1,680.00",C & R TAXIS.
Children and Young Peoples Services,Head of Education and Skills,Transport,230008,Contract Hire,05/05/2021,3863918-0002229,"1,455.00",TONY RIDLEY T/A COLORS TAXIS LTD.
Children and Young Peoples Services,Head of Education and Skills,Transport,230008,Contract Hire,05/05/2021,3863466-830,"1,925.70",AT TAXIS LTD.
Children and Young Peoples Services,Head of Education and Skills,Transport,230008,Contract Hire,05/05/2021,3863466-831,630.00,AT TAXIS LTD.
Children and Young Peoples Services,Head of Education and Skills,Transport,230008,Contract Hire,05/05/2021,3863466-832,"2,205.00",AT TAXIS LTD.
Children and Young Peoples Services,Head of Education and Skills,Transport,230008,Contract Hire,05/05/2021,3863520-W046019,"1,813.80",C & R TAXIS.
Children and Young Peoples Services,Head of Education and Skills,Transport,230008,Contract Hire,05/05/2021,3863853-217,"1,830.00",SAM MONTAGUE T/A 8 SEATER TRAVEL.
Children and Young Peoples Services,Head of Education and Skills,Transport,230008,Contract Hire,05/05/2021,3863742-70,954.75,MALCOLM CARR T/A CARLY CABS.
Children and Young Peoples Services,Head of Education and Skills,Transport,230010,Contract Hire,05/05/2021,3863444-100,"1,883.23",AJ JOBLING T/A CASTLE TAXIS.
Children and Young Peoples Services,Head of Education and Skills,Transport,230006,Contract Hire,05/05/2021,3863457-17,"1,156.40",ANDREW ROBSON`S TAXI.
Children and Young Peoples Services,Head of Education and Skills,Transport,230006,Contract Hire,05/05/2021,3863483-22,"1,664.64",BELMONT TAXIS.
Children and Young Peoples Services,Head of Education and Skills,Transport,230006,Contract Hire,05/05/2021,3863504-94-2021,558.00,BL TAXIS.
Children and Young Peoples Services,Head of Education and Skills,Transport,230006,Contract Hire,05/05/2021,3863665-51,756.74,HARDIP SINGH MAHIL T/A AMBER CARS.
Children and Young Peoples Services,Head of Education and Skills,Transport,230006,Contract Hire,05/05/2021,3863892-27806BC,577.20,T MOORE & SON.
Dedicated Schools Grant BG0015,DSG High Needs Block,Transfer Payments,510025,School Children,05/05/2021,3863434-YS21/22TOPUP2,"1,887.00",ADVANCE LEARNING PARTNERSHIP.
Dedicated Schools Grant BG0015,DSG High Needs Block,Transfer Payments,510025,School Children,05/05/2021,3863438-YS21/22TOPUP,"2,005.00",ADVENTURE VALLEY DAY NURSERY LTD.
Dedicated Schools Grant BG0015,DSG High Needs Block,Transfer Payments,510025,School Children,05/05/2021,3863505-YS21/22TOPUP,"3,609.00",BLUE SKY CHILDCARE.
Dedicated Schools Grant BG0015,DSG High Needs Block,Transfer Payments,510025,School Children,05/05/2021,3863514-YS21/22TOPUP1,802.00,BUDDIES CHILDCARE CENTRE.
Dedicated Schools Grant BG0015,DSG High Needs Block,Transfer Payments,510025,School Children,05/05/2021,3863517-YS21/22TOPUP,"4,411.00",BUSY BEARS (DURHAM) LTD.
Dedicated Schools Grant BG0015,DSG High Needs Block,Transfer Payments,510025,School Children,05/05/2021,3863518-YS21/22TOPUP,"2,807.00",BUSY BEES (DURHAM) LTD.
Dedicated Schools Grant BG0015,DSG High Needs Block,Transfer Payments,510025,School Children,05/05/2021,3863518-YS21/22TOPUP1,"1,203.00",BUSY BEES (DURHAM) LTD.
Dedicated Schools Grant BG0015,DSG High Needs Block,Transfer Payments,510025,School Children,05/05/2021,3863519-YS21/22TOPUP,"1,604.00",BYERLEY ROAD PRE SCHOOL.
Dedicated Schools Grant BG0015,DSG High Needs Block,Transfer Payments,510025,School Children,05/05/2021,3863529-YS21/22TOPUP,"4,678.00",CASTLE KINDERGARTEN LTD.
Dedicated Schools Grant BG0015,DSG High Needs Block,Transfer Payments,510025,School Children,05/05/2021,3863548-YS21/22TOPUP,"2,406.00",CLEVER CLOGS DAY NURSERY (DURHAM) LTD.
Dedicated Schools Grant BG0015,DSG High Needs Block,Transfer Payments,510025,School Children,05/05/2021,3863549-YS21/22TOPUP2,"1,887.00",CLEVES CROSS LEARNING TRUST.
Dedicated Schools Grant BG0015,DSG High Needs Block,Transfer Payments,510025,School Children,05/05/2021,3863563-YS21/22TOPUP,"2,382.00",COUNDON & LEEHOLME EARLY YEARS CENTRE LTD.
Dedicated Schools Grant BG0015,DSG High Needs Block,Transfer Payments,510025,School Children,05/05/2021,3863565-YS21/22TOPUP1,"2,005.00",CRAGHEAD CHILDCARE CENTRE.
Dedicated Schools Grant BG0015,DSG High Needs Block,Transfer Payments,510025,School Children,05/05/2021,3863579-YS21/22TOPUP,"5,614.00",DAYPARK LTD T/A YELLOW WELLIES.
Dedicated Schools Grant BG0015,DSG High Needs Block,Transfer Payments,510025,School Children,05/05/2021,3863578-YS21/22TOPUP,"2,139.00",DAYPARK LTD T/A YELLOW WELLIES.
Dedicated Schools Grant BG0015,DSG High Needs Block,Transfer Payments,510025,School Children,05/05/2021,3863590-YS21/22TOPUP1,"5,136.00",DURHAM & NEWCASTLE DIOCESAN LEARNING TRUST T/A INGLETON CE PRIMARY SCHOOL
Dedicated Schools Grant BG0015,DSG High Needs Block,Transfer Payments,510025,School Children,05/05/2021,3863599-YS21/22TOPUP3,"4,245.00",EDEN ACADEMY TRUST LTD T/A BLUEBELL MEADOW PRIMARY SCHOOL.
Dedicated Schools Grant BG0015,DSG High Needs Block,Transfer Payments,510025,School Children,05/05/2021,3863615-YS21/22TOPUP,"6,015.00",EMERALDS LITTLE GEMS DAYCARE LTD.
Dedicated Schools Grant BG0015,DSG High Needs Block,Transfer Payments,510025,School Children,05/05/2021,3863616-YS21/22TOPUP1,"2,406.00",EMERALDS LITTLE GEMS DAYCARE LTD.
Dedicated Schools Grant BG0015,DSG High Needs Block,Transfer Payments,510025,School Children,05/05/2021,3863616-YS21/22TOPUP3,"2,139.00",EMERALDS LITTLE GEMS DAYCARE LTD.
Dedicated Schools Grant BG0015,DSG High Needs Block,Transfer Payments,510025,School Children,05/05/2021,3863623-YS21/22TOPUP,"2,005.00",EXPLORERS DAY CARE.
Dedicated Schools Grant BG0015,DSG High Needs Block,Transfer Payments,510025,School Children,05/05/2021,3863650-YS21/22TOPUP,"1,604.00",GIANT STEPS LTD.
Dedicated Schools Grant BG0015,DSG High Needs Block,Transfer Payments,510025,School Children,05/05/2021,3863681-YS21/22TOPUP,"1,604.00",HOUSE OF EDEN LTD.
Dedicated Schools Grant BG0015,DSG High Needs Block,Transfer Payments,510025,School Children,05/05/2021,3863682-YS21/22TOPUP,"2,406.00",HOUSE OF EDEN LTD.
Dedicated Schools Grant BG0015,DSG High Needs Block,Transfer Payments,510025,School Children,05/05/2021,3863685-YS21/22TOPUP,"1,887.00",HOWLETCH & SHOTTON CHILDCARE LTD.
Dedicated Schools Grant BG0015,DSG High Needs Block,Transfer Payments,510025,School Children,05/05/2021,3863684-YS21/22TOPUP,"3,208.00",HOWLETCH & SHOTTON CHILDCARE LTD.
Dedicated Schools Grant BG0015,DSG High Needs Block,Transfer Payments,510025,School Children,05/05/2021,3863717-YS21/22TOPUP,"2,139.00",KELLOE PHOENIX CENTRE (CHILDCARE).
Dedicated Schools Grant BG0015,DSG High Needs Block,Transfer Payments,510025,School Children,05/05/2021,3863721-YS21/22TOPUP,"4,010.00",KIDS 1ST NURSERIES DURHAM.
Dedicated Schools Grant BG0015,DSG High Needs Block,Transfer Payments,510025,School Children,05/05/2021,3863722-YS21/22TOPUP,"3,609.00",KIDZONE.
Dedicated Schools Grant BG0015,DSG High Needs Block,Transfer Payments,510025,School Children,05/05/2021,3863735-YS21/22TOPUP1,"8,421.00",LITTLE WAVES DAY NURSERY LTD.
Dedicated Schools Grant BG0015,DSG High Needs Block,Transfer Payments,510025,School Children,05/05/2021,3863762-YS21/22TOPUP,"1,337.00",MR D YOUNG T/A LITTLE TOTS ACADEMY.
Dedicated Schools Grant BG0015,DSG High Needs Block,Transfer Payments,510025,School Children,05/05/2021,3863793-YS21/22TOPUP,"1,337.00",NURSERY TIME.
Dedicated Schools Grant BG0015,DSG High Needs Block,Transfer Payments,510025,School Children,05/05/2021,3863832-YS21/22TOPUP1,"2,722.00",RAINBOW NURSERY LTD (MIDDLESTONE MOOR).
Dedicated Schools Grant BG0015,DSG High Needs Block,Transfer Payments,510025,School Children,05/05/2021,3863837-YS21/22TOPUP2,"3,302.00",RIBBON ACADEMY TRUST.
Dedicated Schools Grant BG0015,DSG High Needs Block,Transfer Payments,510025,School Children,05/05/2021,3863859-YS21/22TOPUP1,"4,411.00",SEAHAM HOUSE DAY NURSERY.
Dedicated Schools Grant BG0015,DSG High Needs Block,Transfer Payments,510025,School Children,05/05/2021,3863864-YS21/22TOPUP,"7,218.00",SHOTLEY BRIDGE NURSERY SCHOOL LTD.
Dedicated Schools Grant BG0015,DSG High Needs Block,Transfer Payments,510025,School Children,05/05/2021,3863878-YS21/22TOPUP,"4,010.00",ST OSWALD`S PRE SCHOOL LEARNING CENTRE.
Dedicated Schools Grant BG0015,DSG High Needs Block,Transfer Payments,510025,School Children,05/05/2021,3863883-YS21/22TOPUP,"1,203.00",STEPPING STONES DAY NURSERY (DURHAM).
Dedicated Schools Grant BG0015,DSG High Needs Block,Transfer Payments,510025,School Children,05/05/2021,3863887-YS21/22TOPUP1,"2,807.00",SUNSHINE DAY NURSERY LTD.
Dedicated Schools Grant BG0015,DSG High Needs Block,Transfer Payments,510025,School Children,05/05/2021,3863888-YS21/22TOPUP1,"7,352.00",SUNSHINE DAY NURSERY LTD.
Dedicated Schools Grant BG0015,DSG High Needs Block,Transfer Payments,510025,School Children,05/05/2021,3863908-YS21/22TOPUP,"6,181.00",THE LAURELS CHILD CARE COMPANY LTD.
Dedicated Schools Grant BG0015,DSG High Needs Block,Transfer Payments,510025,School Children,05/05/2021,3863910-YS21/22TOPUP,"7,619.00",THE NURSERY.
Dedicated Schools Grant BG0015,DSG High Needs Block,Transfer Payments,510025,School Children,05/05/2021,3863916-YS21/22TOPUP,"8,421.00",TM NURSERY ENTERPRISES LTD T/A JACK IN THE BOX DAYCARE.
Dedicated Schools Grant BG0015,DSG High Needs Block,Transfer Payments,510025,School Children,05/05/2021,3863923-YS21/22TOPUP,"4,144.00",TOTS `R` US.
Dedicated Schools Grant BG0015,DSG High Needs Block,Transfer Payments,510025,School Children,05/05/2021,3863951-YS21/22TOPUP,"1,203.00",WAYMAN DEVELOPMENTS LTD T/A CHILDSPLAY PRIVATE NURSERY.
Dedicated Schools Grant BG0015,DSG High Needs Block,Transfer Payments,510025,School Children,05/05/2021,3863960-YS21/22TOPUP,"4,278.00",WHEATLEY HILL COMMUNITY NURSERY LTD.
Dedicated Schools Grant BG0015,DSG High Needs Block,Transfer Payments,510025,School Children,05/05/2021,3863964-YS21/22TOPUP,"1,604.00",WINGATE COMMUNITY CHILDCARE LTD.
Dedicated Schools Grant BG0015,DSG High Needs Block,Transfer Payments,510025,School Children,05/05/2021,3863968-YS21/22TOPUP,"2,359.00",WOODLANDS DAY NURSERY.
Dedicated Schools Grant BG0015,DSG High Needs Block,Transfer Payments,510025,School Children,05/05/2021,3863972-YS21/22TOPUP,"2,406.00",YORK HOUSE NURSERY.
Dedicated Schools Grant BG0015,DSG High Needs Block,Central Support and Other Recharges,689988,Unclassified E690,05/05/2021,3863499-YS21/22TOPUP,"2,924.00",(USE 189028) BISHOP WILKINSON CE TRUST T/A OUR LADY QUEEN OF MARTYRS RCVA PRIMARY SCHOOL.
Dedicated Schools Grant BG0015,DSG High Needs Block,Central Support and Other Recharges,689988,Unclassified E690,05/05/2021,3863500-YS21/22TOPUP,"8,883.00",(USE 189028) BISHOP WILKINSON CE TRUST T/A ST BEDES RCVA PRIMARY SCHOOL.
Dedicated Schools Grant BG0015,DSG High Needs Block,Central Support and Other Recharges,689989,Unclassified E690,05/05/2021,3863500-YS21/22TOPUP1,"4,414.00",(USE 189028) BISHOP WILKINSON CE TRUST T/A ST BEDES RCVA PRIMARY SCHOOL.
Dedicated Schools Grant BG0015,DSG High Needs Block,Central Support and Other Recharges,689988,Unclassified E690,05/05/2021,3863501-YS21/22TOPUP,"4,650.00",(USE 189028) BISHOP WILKINSON CE TRUST T/A ST JOSEPHS CATHOLIC PRIMARY PRE-SCHOOL.
Dedicated Schools Grant BG0015,DSG High Needs Block,Central Support and Other Recharges,689989,Unclassified E690,05/05/2021,3863501-YS21/22TOPUP1,"7,882.00",(USE 189028) BISHOP WILKINSON CE TRUST T/A ST JOSEPHS CATHOLIC PRIMARY PRE-SCHOOL.
Dedicated Schools Grant BG0015,DSG High Needs Block,Central Support and Other Recharges,689988,Unclassified E690,05/05/2021,3863431-YS21/22TOPUP,"12,355.00",ACRE RIGG ACADEMY.
Dedicated Schools Grant BG0015,DSG High Needs Block,Central Support and Other Recharges,689988,Unclassified E690,05/05/2021,3863434-YS21/22TOPUP,"12,001.00",ADVANCE LEARNING PARTNERSHIP.
Dedicated Schools Grant BG0015,DSG High Needs Block,Central Support and Other Recharges,689989,Unclassified E690,05/05/2021,3863434-YS21/22TOPUP1,"4,499.00",ADVANCE LEARNING PARTNERSHIP.
Dedicated Schools Grant BG0015,DSG High Needs Block,Central Support and Other Recharges,689988,Unclassified E690,05/05/2021,3863493-YS21/22TOPUP,"6,481.00",BISHOP CHADWICK CATHOLIC EDUCATION TRUST (NSCET).
Dedicated Schools Grant BG0015,DSG High Needs Block,Central Support and Other Recharges,689988,Unclassified E690,05/05/2021,3863494-YS21/22TOPUP,"9,334.00",BISHOP CHADWICK CATHOLIC EDUCATION TRUST (NSCET).
Dedicated Schools Grant BG0015,DSG High Needs Block,Central Support and Other Recharges,689988,Unclassified E690,05/05/2021,3863496-YS21/22TOPUP,"13,358.00",BISHOP HOGARTH CATHOLIC EDUCATION TRUST T/A ST JOSEPHS PRIMARY SCHOOL.
Dedicated Schools Grant BG0015,DSG High Needs Block,Central Support and Other Recharges,689988,Unclassified E690,05/05/2021,3863497-YS21/22TOPUP,"10,189.00",BISHOP IAN RAMSEY C OF E PRIMARY SCHOOL.
Dedicated Schools Grant BG0015,DSG High Needs Block,Central Support and Other Recharges,689989,Unclassified E690,05/05/2021,3863497-YS21/22TOPUP1,"3,649.00",BISHOP IAN RAMSEY C OF E PRIMARY SCHOOL.
Dedicated Schools Grant BG0015,DSG High Needs Block,Central Support and Other Recharges,689988,Unclassified E690,05/05/2021,3863512-YS21/22TOPUP,"5,857.00",BROWNEY PRIMARY ACADEMY.
Dedicated Schools Grant BG0015,DSG High Needs Block,Central Support and Other Recharges,689989,Unclassified E690,05/05/2021,3863512-YS21/22TOPUP1,"11,509.00",BROWNEY PRIMARY ACADEMY.
Dedicated Schools Grant BG0015,DSG High Needs Block,Central Support and Other Recharges,689988,Unclassified E690,05/05/2021,3863549-YS21/22TOPUP,"20,925.00",CLEVES CROSS LEARNING TRUST.
Dedicated Schools Grant BG0015,DSG High Needs Block,Central Support and Other Recharges,689988,Unclassified E690,05/05/2021,3863549-YS21/22TOPUP3,"11,606.00",CLEVES CROSS LEARNING TRUST.
Dedicated Schools Grant BG0015,DSG High Needs Block,Central Support and Other Recharges,689989,Unclassified E690,05/05/2021,3863549-YS21/22TOPUP1,"9,899.00",CLEVES CROSS LEARNING TRUST.
Dedicated Schools Grant BG0015,DSG High Needs Block,Central Support and Other Recharges,689989,Unclassified E690,05/05/2021,3863549-YS21/22TOPUP4,"8,978.00",CLEVES CROSS LEARNING TRUST.
Dedicated Schools Grant BG0015,DSG High Needs Block,Central Support and Other Recharges,689988,Unclassified E690,05/05/2021,3863582-YS21/22TOPUP,"16,123.00",DENE HOUSE PRIMARY SCHOOL (ACADEMY).
Dedicated Schools Grant BG0015,DSG High Needs Block,Central Support and Other Recharges,689989,Unclassified E690,05/05/2021,3863582-YS21/22TOPUP1,"7,799.00",DENE HOUSE PRIMARY SCHOOL (ACADEMY).
Dedicated Schools Grant BG0015,DSG High Needs Block,Central Support and Other Recharges,689989,Unclassified E690,05/05/2021,3863590-YS21/22TOPUP,"4,605.00",DURHAM & NEWCASTLE DIOCESAN LEARNING TRUST T/A INGLETON CE PRIMARY SCHOOL
Dedicated Schools Grant BG0015,DSG High Needs Block,Central Support and Other Recharges,689988,Unclassified E690,05/05/2021,3863591-YS21/22TOPUP,"5,786.00",DURHAM & NEWCASTLE DIOCESAN LEARNING TRUST T/A STANHOPE BARRINGTON C OF E PRIMARY SCHOOL.
Dedicated Schools Grant BG0015,DSG High Needs Block,Central Support and Other Recharges,689989,Unclassified E690,05/05/2021,3863591-YS21/22TOPUP1,"14,623.00",DURHAM & NEWCASTLE DIOCESAN LEARNING TRUST T/A STANHOPE BARRINGTON C OF E PRIMARY SCHOOL.
Dedicated Schools Grant BG0015,DSG High Needs Block,Central Support and Other Recharges,689988,Unclassified E690,05/05/2021,3863599-YS21/22TOPUP,"7,526.00",EDEN ACADEMY TRUST LTD T/A BLUEBELL MEADOW PRIMARY SCHOOL.
Dedicated Schools Grant BG0015,DSG High Needs Block,Central Support and Other Recharges,689989,Unclassified E690,05/05/2021,3863599-YS21/22TOPUP1,"26,634.00",EDEN ACADEMY TRUST LTD T/A BLUEBELL MEADOW PRIMARY SCHOOL.
Dedicated Schools Grant BG0015,DSG High Needs Block,Central Support and Other Recharges,689988,Unclassified E690,05/05/2021,3863600-YS21/22TOPUP,"4,131.00",EDEN LEARNING TRUST T/A CHILTON ACADEMY.
Dedicated Schools Grant BG0015,DSG High Needs Block,Central Support and Other Recharges,689989,Unclassified E690,05/05/2021,3863600-YS21/22TOPUP1,"6,142.00",EDEN LEARNING TRUST T/A CHILTON ACADEMY.
Dedicated Schools Grant BG0015,DSG High Needs Block,Central Support and Other Recharges,689988,Unclassified E690,05/05/2021,3863706-YS21/22TOPUP,"17,388.00",JIGSAW LEARNING TRUST.
Dedicated Schools Grant BG0015,DSG High Needs Block,Central Support and Other Recharges,689989,Unclassified E690,05/05/2021,3863706-YS21/22TOPUP1,"3,616.00",JIGSAW LEARNING TRUST.
Dedicated Schools Grant BG0015,DSG High Needs Block,Central Support and Other Recharges,689988,Unclassified E690,05/05/2021,3863782-YS21/22TOPUP,"11,366.00",NORTH EAST LEARNING TRUST (NELT).
Dedicated Schools Grant BG0015,DSG High Needs Block,Central Support and Other Recharges,689988,Unclassified E690,05/05/2021,3863837-YS21/22TOPUP,"31,938.00",RIBBON ACADEMY TRUST.
Dedicated Schools Grant BG0015,DSG High Needs Block,Central Support and Other Recharges,689989,Unclassified E690,05/05/2021,3863837-YS21/22TOPUP1,"4,452.00",RIBBON ACADEMY TRUST.
Dedicated Schools Grant BG0015,DSG High Needs Block,Central Support and Other Recharges,689988,Unclassified E690,05/05/2021,3863863-YS21/22TOPUP,"3,360.00",SHIELD ROW ACADEMY.
Dedicated Schools Grant BG0015,DSG High Needs Block,Central Support and Other Recharges,689988,Unclassified E690,05/05/2021,316272-YS21/22TOPUP,"10,991.00",ST JOSEPHS RC DURHAM ROAD USHAW MOOR.
Dedicated Schools Grant BG0015,DSG High Needs Block,Central Support and Other Recharges,689988,Unclassified E690,05/05/2021,3863879-YS21/22TOPUP,"14,820.00",STANLEY LEARNING PARTNERSHIP.
Dedicated Schools Grant BG0015,DSG High Needs Block,Central Support and Other Recharges,689988,Unclassified E690,05/05/2021,3863880-YS21/22TOPUP2,"1,583.00",STANLEY LEARNING PARTNERSHIP.
Dedicated Schools Grant BG0015,DSG High Needs Block,Central Support and Other Recharges,689988,Unclassified E690,05/05/2021,3863880-YS21/22TOPUP3,"24,334.00",STANLEY LEARNING PARTNERSHIP.
Dedicated Schools Grant BG0015,DSG High Needs Block,Central Support and Other Recharges,689989,Unclassified E690,05/05/2021,3863879-YS21/22TOPUP1,"1,666.00",STANLEY LEARNING PARTNERSHIP.
Dedicated Schools Grant BG0015,DSG High Needs Block,Central Support and Other Recharges,689989,Unclassified E690,05/05/2021,3863880-YS21/22TOPUP,"3,541.00",STANLEY LEARNING PARTNERSHIP.
Dedicated Schools Grant BG0015,DSG High Needs Block,Central Support and Other Recharges,689989,Unclassified E690,05/05/2021,3863880-YS21/22TOPUP1,"2,992.00",STANLEY LEARNING PARTNERSHIP.
Dedicated Schools Grant BG0015,DSG High Needs Block,Central Support and Other Recharges,689989,Unclassified E690,05/05/2021,3863880-YS21/22TOPUP4,"8,212.00",STANLEY LEARNING PARTNERSHIP.
Dedicated Schools Grant BG0015,DSG High Needs Block,Central Support and Other Recharges,689988,Unclassified E690,05/05/2021,3863882-YS21/22TOPUP,"2,015.00",STEPHENSON WAY ACADEMY & NURSERY SCHOOL.
Dedicated Schools Grant BG0015,DSG High Needs Block,Central Support and Other Recharges,689989,Unclassified E690,05/05/2021,3863882-YS21/22TOPUP1,"2,478.00",STEPHENSON WAY ACADEMY & NURSERY SCHOOL.
Dedicated Schools Grant BG0015,DSG High Needs Block,Central Support and Other Recharges,689988,Unclassified E690,05/05/2021,3863932-YS21/22TOPUP,"12,071.00",TUDHOE LEARNING TRUST T/A SOUTH HETTON PRIMARY SCHOOL.
Dedicated Schools Grant BG0015,DSG High Needs Block,Central Support and Other Recharges,689989,Unclassified E690,05/05/2021,3863932-YS21/22TOPUP1,"5,896.00",TUDHOE LEARNING TRUST T/A SOUTH HETTON PRIMARY SCHOOL.
Dedicated Schools Grant BG0015,DSG High Needs Block,Central Support and Other Recharges,689988,Unclassified E690,05/05/2021,3863933-YS21/22TOPUP,"9,942.00",TUDHOE LEARNING TRUST T/A TUDHOE COLLIERY PRIMARY SCHOOL.
Dedicated Schools Grant BG0015,DSG High Needs Block,Central Support and Other Recharges,689988,Unclassified E690,05/05/2021,3863943-YS21/22TOPUP,"7,449.00",VICTORIA LANE ACADEMY.
Dedicated Schools Grant BG0015,DSG High Needs Block,Central Support and Other Recharges,689988,Unclassified E690,05/05/2021,3863502-YS21/22TOPUP,"25,275.00",(USE 189028) BISHOP WILKINSON CE TRUST T/A ST LEONARD`S CATHOLIC SCHOOL.
Dedicated Schools Grant BG0015,DSG High Needs Block,Central Support and Other Recharges,689988,Unclassified E690,05/05/2021,3863437-YS21/22TOPUP,"17,848.00",ADVANCE LEARNING PARTNERSHIP.
Dedicated Schools Grant BG0015,DSG High Needs Block,Central Support and Other Recharges,689988,Unclassified E690,05/05/2021,3863437-YS21/22TOPUP1,"8,985.00",ADVANCE LEARNING PARTNERSHIP.
Dedicated Schools Grant BG0015,DSG High Needs Block,Central Support and Other Recharges,689988,Unclassified E690,05/05/2021,3863436-YS21/22TOPUP,"9,118.00",ADVANCE LEARNING PARTNERSHIP.
Dedicated Schools Grant BG0015,DSG High Needs Block,Central Support and Other Recharges,689988,Unclassified E690,05/05/2021,3863435-YS21/22TOPUP,"16,545.00",ADVANCE LEARNING PARTNERSHIP.
Dedicated Schools Grant BG0015,DSG High Needs Block,Central Support and Other Recharges,689989,Unclassified E690,05/05/2021,3863436-YS21/22TOPUP1,"1,053.00",ADVANCE LEARNING PARTNERSHIP.
Dedicated Schools Grant BG0015,DSG High Needs Block,Central Support and Other Recharges,689988,Unclassified E690,05/05/2021,3863492-YS21/22TOPUP,"10,083.00",BISHOP CHADWICK CATHOLIC EDUCATION TRUST (NSCET).
Dedicated Schools Grant BG0015,DSG High Needs Block,Central Support and Other Recharges,689988,Unclassified E690,05/05/2021,3863495-YS21/22TOPUP,"15,690.00",BISHOP HOGARTH CATHOLIC EDUCATION TRUST T/A  ST JOHN`S SCHOOL & SIXTH FORM COLLEGE.
Dedicated Schools Grant BG0015,DSG High Needs Block,Central Support and Other Recharges,689988,Unclassified E690,05/05/2021,3863581-YS21/22TOPUP,"14,403.00",DENE ACADEMY.
Dedicated Schools Grant BG0015,DSG High Needs Block,Central Support and Other Recharges,689989,Unclassified E690,05/05/2021,3863581-YS21/22TOPUP1,"11,873.00",DENE ACADEMY.
Dedicated Schools Grant BG0015,DSG High Needs Block,Central Support and Other Recharges,689988,Unclassified E690,05/05/2021,3863594-YS21/22TOPUP,754.00,DURHAM UTC LTD (UNIVERSITY TECHNICAL COLLEGE).
Dedicated Schools Grant BG0015,DSG High Needs Block,Central Support and Other Recharges,689988,Unclassified E690,05/05/2021,3863601-YS21/22TOPUP,"11,466.00",EDEN LEARNING TRUST T/A FERRYHILL BUSINESS & ENTERPRISE COLLEGE.
Dedicated Schools Grant BG0015,DSG High Needs Block,Central Support and Other Recharges,689988,Unclassified E690,05/05/2021,3863602-YS21/22TOPUP,"27,781.00",EDEN LEARNING TRUST T/A SEAHAM HIGH SCHOOL.
Dedicated Schools Grant BG0015,DSG High Needs Block,Central Support and Other Recharges,689988,Unclassified E690,05/05/2021,3863603-YS21/22TOPUP,"2,711.00",EDEN LEARNING TRUST T/A TANFIELD SCHOOL.
Dedicated Schools Grant BG0015,DSG High Needs Block,Central Support and Other Recharges,689988,Unclassified E690,05/05/2021,3863604-YS21/22TOPUP,"10,963.00",EDEN LEARNING TRUST T/A WOODHAM ACADEMY.
Dedicated Schools Grant BG0015,DSG High Needs Block,Central Support and Other Recharges,689988,Unclassified E690,05/05/2021,3863622-YS21/22TOPUP,"32,864.00",EXCEL ACADEMY PARTNERSHIP T/A FRAMWELLGATE SCHOOL DURHAM.
Dedicated Schools Grant BG0015,DSG High Needs Block,Central Support and Other Recharges,689989,Unclassified E690,05/05/2021,3863622-YS21/22TOPUP1,"5,716.00",EXCEL ACADEMY PARTNERSHIP T/A FRAMWELLGATE SCHOOL DURHAM.
Dedicated Schools Grant BG0015,DSG High Needs Block,Central Support and Other Recharges,689988,Unclassified E690,05/05/2021,3863672-YS21/22TOPUP,"29,769.00",HERMITAGE ACADEMY (NORTH EAST LEARNING ACADEMY).
Dedicated Schools Grant BG0015,DSG High Needs Block,Central Support and Other Recharges,689986,Unclassified E690,05/05/2021,3863672-YS21/22TOPUP2,"4,695.00",HERMITAGE ACADEMY (NORTH EAST LEARNING ACADEMY).
Dedicated Schools Grant BG0015,DSG High Needs Block,Central Support and Other Recharges,689989,Unclassified E690,05/05/2021,3863672-YS21/22TOPUP1,"2,886.00",HERMITAGE ACADEMY (NORTH EAST LEARNING ACADEMY).
Dedicated Schools Grant BG0015,DSG High Needs Block,Central Support and Other Recharges,689988,Unclassified E690,05/05/2021,3863724-YS21/22TOPUP,"19,674.00",KING JAMES I ACADEMY.
Dedicated Schools Grant BG0015,DSG High Needs Block,Central Support and Other Recharges,689988,Unclassified E690,05/05/2021,3863772-YS21/22TOPUP,"11,773.00",NEW COLLEGE ACADEMIES TRUST - CONSETT ACADEMY.
Dedicated Schools Grant BG0015,DSG High Needs Block,Central Support and Other Recharges,689988,Unclassified E690,05/05/2021,3863779-YS21/22TOPUP,"15,677.00",NORTH DURHAM ACADEMY.
Dedicated Schools Grant BG0015,DSG High Needs Block,Central Support and Other Recharges,689988,Unclassified E690,05/05/2021,3863782-YS21/22TOPUP2,"15,321.00",NORTH EAST LEARNING TRUST (NELT).
Dedicated Schools Grant BG0015,DSG High Needs Block,Central Support and Other Recharges,689988,Unclassified E690,05/05/2021,3863782-YS21/22TOPUP3,511.00,NORTH EAST LEARNING TRUST (NELT).
Dedicated Schools Grant BG0015,DSG High Needs Block,Central Support and Other Recharges,689988,Unclassified E690,05/05/2021,3863782-YS21/22TOPUP4,"7,088.00",NORTH EAST LEARNING TRUST (NELT).
Dedicated Schools Grant BG0015,DSG High Needs Block,Central Support and Other Recharges,689989,Unclassified E690,05/05/2021,3863782-YS21/22TOPUP1,"7,809.00",NORTH EAST LEARNING TRUST (NELT).
Dedicated Schools Grant BG0015,DSG High Needs Block,Central Support and Other Recharges,689988,Unclassified E690,05/05/2021,3863807-YS21/22TOPUP,"31,354.00",PARK VIEW ACADEMY.
Dedicated Schools Grant BG0015,DSG High Needs Block,Central Support and Other Recharges,689988,Unclassified E690,05/05/2021,3863861-YS21/22TOPUP,"5,704.00",SEDGEFIELD COMMUNITY COLLEGE.
Dedicated Schools Grant BG0015,DSG High Needs Block,Central Support and Other Recharges,689988,Unclassified E690,05/05/2021,3863877-YS21/22TOPUP,"34,308.00",ST BEDES CATHOLIC ACADEMY (LANCHESTER).
Dedicated Schools Grant BG0015,DSG High Needs Block,Central Support and Other Recharges,689986,Unclassified E690,05/05/2021,3863877-YS21/22TOPUP1,"6,348.00",ST BEDES CATHOLIC ACADEMY (LANCHESTER).
Dedicated Schools Grant BG0015,DSG High Needs Block,Central Support and Other Recharges,689987,Unclassified E690,05/05/2021,3863784-YS21/22TOPUP,"4,057.00",(USE 185791) NORTH VIEW ACADEMY.
Dedicated Schools Grant BG0015,DSG High Needs Block,Central Support and Other Recharges,689988,Unclassified E690,05/05/2021,3863476-YS21/22TOPUP1,"2,973.00",BARBARA PRIESTMAN ACADEMY.
Dedicated Schools Grant BG0015,DSG High Needs Block,Central Support and Other Recharges,689987,Unclassified E690,05/05/2021,3863476-YS21/22TOPUP,"14,436.00",BARBARA PRIESTMAN ACADEMY.
Dedicated Schools Grant BG0015,DSG High Needs Block,Central Support and Other Recharges,689988,Unclassified E690,05/05/2021,3863511-YS21/22TOPUP,"2,197.00",BRIGHTER ACADEMY TRUST T/A FARRINGDON COMMUNITY ACADEMY.
Dedicated Schools Grant BG0015,DSG High Needs Block,Central Support and Other Recharges,689988,Unclassified E690,05/05/2021,3863525-YS21/22TOPUP,"11,436.00",CARMEL COLLEGE.*
Dedicated Schools Grant BG0015,DSG High Needs Block,Central Support and Other Recharges,689987,Unclassified E690,05/05/2021,3863531-YS21/22TOPUP,"20,621.00",CATCOTE ACADEMY.
Dedicated Schools Grant BG0015,DSG High Needs Block,Central Support and Other Recharges,689988,Unclassified E690,05/05/2021,3863558-YS21/22TOPUP,"4,352.00",CONSILIUM ACADEMIES T/A THORNHILL ACADEMY.
Dedicated Schools Grant BG0015,DSG High Needs Block,Central Support and Other Recharges,689988,Unclassified E690,05/05/2021,3863589-YS21/22TOPUP,"7,314.00",DURHAM & NEWCASTLE DIOCESAN LEARNING TRUST T/A HEIGHINGTON CE PRIMARY SCHOOL.
Dedicated Schools Grant BG0015,DSG High Needs Block,Central Support and Other Recharges,689988,Unclassified E690,05/05/2021,3863593-YS21/22TOPUP,"6,618.00",DURHAM HIGH SCHOOL.
Dedicated Schools Grant BG0015,DSG High Needs Block,Central Support and Other Recharges,689987,Unclassified E690,05/05/2021,3863598-YS21/22TOPUP,"3,518.00",EDEN ACADEMY T/A HEXHAM PRIORY SCHOOL.
Dedicated Schools Grant BG0015,DSG High Needs Block,Central Support and Other Recharges,689988,Unclassified E690,05/05/2021,3863624-YS21/22TOPUP,"1,849.00",FATFIELD ACADEMY.
Dedicated Schools Grant BG0015,DSG High Needs Block,Central Support and Other Recharges,689988,Unclassified E690,05/05/2021,3863641-YS21/22TOPUP,"3,077.00",GATESHEAD COUNCIL.
Dedicated Schools Grant BG0015,DSG High Needs Block,Central Support and Other Recharges,689987,Unclassified E690,05/05/2021,3863640-YS21/22TOPUP,"14,038.00",GATESHEAD COUNCIL.
Dedicated Schools Grant BG0015,DSG High Needs Block,Central Support and Other Recharges,689987,Unclassified E690,05/05/2021,3863642-YS21/22TOPUP,"6,299.00",GATESHEAD COUNCIL.
Dedicated Schools Grant BG0015,DSG High Needs Block,Central Support and Other Recharges,689987,Unclassified E690,05/05/2021,3863651-YS21/22TOPUP,"5,452.00",GIBSIDE SCHOOL.
Dedicated Schools Grant BG0015,DSG High Needs Block,Central Support and Other Recharges,689988,Unclassified E690,05/05/2021,3863673-YS21/22TOPUP,"3,547.00",HIGH SPEN PRIMARY SCHOOL.
Dedicated Schools Grant BG0015,DSG High Needs Block,Central Support and Other Recharges,689987,Unclassified E690,05/05/2021,3863675-YS21/22TOPUP,"5,348.00",HILL TOP SCHOOL.
Dedicated Schools Grant BG0015,DSG High Needs Block,Central Support and Other Recharges,689988,Unclassified E690,05/05/2021,3863740-YS21/22TOPUP,904.00,LORD LAWSON OF BEAMISH ACADEMY.
Dedicated Schools Grant BG0015,DSG High Needs Block,Central Support and Other Recharges,689987,Unclassified E690,05/05/2021,3863745-YS21/22TOPUP,"8,040.00",MARCHBANK FREE SCHOOL.
Dedicated Schools Grant BG0015,DSG High Needs Block,Central Support and Other Recharges,689987,Unclassified E690,05/05/2021,3863745-YS21/22TOPUP1,"49,478.00",MARCHBANK FREE SCHOOL.
Dedicated Schools Grant BG0015,DSG High Needs Block,Central Support and Other Recharges,689988,Unclassified E690,05/05/2021,316265-YS21/22TOPUP,"3,194.00",MILL HILL PRIMARY SCHOOL.
Dedicated Schools Grant BG0015,DSG High Needs Block,Central Support and Other Recharges,689988,Unclassified E690,05/05/2021,3863792-YS21/22TOPUP,"3,859.00",NUNTHORPE ACADEMY LTD.
Dedicated Schools Grant BG0015,DSG High Needs Block,Central Support and Other Recharges,689987,Unclassified E690,05/05/2021,3863794-YS21/22TOPUP,"6,701.00",OAK LEARNING PARTNERSHIP.
Dedicated Schools Grant BG0015,DSG High Needs Block,Central Support and Other Recharges,689988,Unclassified E690,05/05/2021,3863802-YS21/22TOPUP,"1,901.00",OUTWOOD ACADEMY BISHOPSGARTH.
Dedicated Schools Grant BG0015,DSG High Needs Block,Central Support and Other Recharges,689988,Unclassified E690,05/05/2021,316269-YS21/22TOPUP,"5,968.00",OXCLOSE COMMUNITY ACADEMY.
Dedicated Schools Grant BG0015,DSG High Needs Block,Central Support and Other Recharges,689988,Unclassified E690,05/05/2021,3863810-YS21/22TOPUP,"2,592.00",PELE TRUST T/A HEDDON ST ANDREWS C OF E PRIMARY SCHOOL.
Dedicated Schools Grant BG0015,DSG High Needs Block,Central Support and Other Recharges,689988,Unclassified E690,05/05/2021,3863817-YS21/22TOPUP,"5,621.00",POLAM HALL SCHOOL LTD.
Dedicated Schools Grant BG0015,DSG High Needs Block,Central Support and Other Recharges,689988,Unclassified E690,05/05/2021,3863854-YS21/22TOPUP,"1,523.00",SAMUEL KINGS SCHOOL.
Dedicated Schools Grant BG0015,DSG High Needs Block,Central Support and Other Recharges,689989,Unclassified E690,05/05/2021,3863854-YS21/22TOPUP1,"2,458.00",SAMUEL KINGS SCHOOL.
Dedicated Schools Grant BG0015,DSG High Needs Block,Central Support and Other Recharges,689987,Unclassified E690,05/05/2021,3863885-YS21/22TOPUP,"2,088.00",SUNDERLAND CITY COUNCIL.
Dedicated Schools Grant BG0015,DSG High Needs Block,Central Support and Other Recharges,689988,Unclassified E690,05/05/2021,3863886-YS21/22TOPUP,"3,350.00",SUNNYSIDE ACADEMY.
Dedicated Schools Grant BG0015,DSG High Needs Block,Central Support and Other Recharges,689987,Unclassified E690,05/05/2021,3863900-YS21/22TOPUP,"8,746.00",THE CEDARS ACADEMY TRUST.
Dedicated Schools Grant BG0015,DSG High Needs Block,Central Support and Other Recharges,689987,Unclassified E690,05/05/2021,3863928-YS21/22TOPUP,"24,601.00",TRINITY ACADEMY NEW BRIDGE.*
Dedicated Schools Grant BG0015,DSG High Needs Block,Central Support and Other Recharges,689988,Unclassified E690,05/05/2021,3863941-YS21/22TOPUP,"1,579.00",VENERABLE BEDE CHURCH OF ENGLAND ACADEMY.
Dedicated Schools Grant BG0015,DSG High Needs Block,Central Support and Other Recharges,689986,Unclassified E690,05/05/2021,3863961-YS21/22TOPUP,"3,460.00",WHICKHAM SCHOOL & SPORTS COLLEGE.
Dedicated Schools Grant BG0015,DSG High Needs Block,Central Support and Other Recharges,689987,Unclassified E690,05/05/2021,3863679-YS21/22TOPUP,"62,618.00",HOPE WOOD ACADEMY.
Dedicated Schools Grant BG0015,DSG High Needs Block,Third Party Payments,440080,Other third party payments E440,05/05/2021,3863476-YS21/22TOPUP2,"9,979.00",BARBARA PRIESTMAN ACADEMY.
Dedicated Schools Grant BG0015,DSG High Needs Block,Third Party Payments,440080,Other third party payments E440,05/05/2021,3863491-YS21/22TOPUP,"54,178.00",BISHOP AUCKLAND COLLEGE.
Dedicated Schools Grant BG0015,DSG High Needs Block,Third Party Payments,440080,Other third party payments E440,05/05/2021,3863491-YS21/22TOPUP1,"14,331.00",BISHOP AUCKLAND COLLEGE.
Dedicated Schools Grant BG0015,DSG High Needs Block,Third Party Payments,440080,Other third party payments E440,05/05/2021,3863495-YS21/22TOPUP1,"4,971.00",BISHOP HOGARTH CATHOLIC EDUCATION TRUST T/A  ST JOHN`S SCHOOL & SIXTH FORM COLLEGE.
Dedicated Schools Grant BG0015,DSG High Needs Block,Third Party Payments,440080,Other third party payments E440,05/05/2021,3863530-YS21/22TOPUP,"9,705.00",CATCH 22.*
Dedicated Schools Grant BG0015,DSG High Needs Block,Third Party Payments,440080,Other third party payments E440,05/05/2021,3863545-YS21/22TOPUP,"6,799.00",CITY OF SUNDERLAND COLLEGE.
Dedicated Schools Grant BG0015,DSG High Needs Block,Third Party Payments,440080,Other third party payments E440,05/05/2021,3863577-YS21/22TOPUP,"6,515.00",DARLINGTON COLLEGE.
Dedicated Schools Grant BG0015,DSG High Needs Block,Third Party Payments,440080,Other third party payments E440,05/05/2021,3863598-YS21/22TOPUP1,"2,764.00",EDEN ACADEMY T/A HEXHAM PRIORY SCHOOL.
Dedicated Schools Grant BG0015,DSG High Needs Block,Third Party Payments,440080,Other third party payments E440,05/05/2021,3863668-YS21/22TOPUP,"2,070.00",HARTLEPOOL COLLEGE OF FURTHER EDUCATION.
Dedicated Schools Grant BG0015,DSG High Needs Block,Third Party Payments,440080,Other third party payments E440,05/05/2021,3863670-YS21/22TOPUP,"5,703.00",HEALTH EDUCATION ENGLAND.
Dedicated Schools Grant BG0015,DSG High Needs Block,Third Party Payments,440080,Other third party payments E440,05/05/2021,3863679-YS21/22TOPUP1,"76,891.00",HOPE WOOD ACADEMY.
Dedicated Schools Grant BG0015,DSG High Needs Block,Third Party Payments,440080,Other third party payments E440,05/05/2021,3863687-YS21/22TOPUP,"21,194.00",HUMANKIND CHARITY.
Dedicated Schools Grant BG0015,DSG High Needs Block,Third Party Payments,440080,Other third party payments E440,05/05/2021,3863724-YS21/22TOPUP1,"1,911.00",KING JAMES I ACADEMY.
Dedicated Schools Grant BG0015,DSG High Needs Block,Third Party Payments,440080,Other third party payments E440,05/05/2021,3863754-YS21/22TOPUP,"1,963.00",MIDDLESBROUGH COLLEGE.
Dedicated Schools Grant BG0015,DSG High Needs Block,Third Party Payments,440080,Other third party payments E440,05/05/2021,3863773-YS21/22TOPUP,"43,328.00",NEW COLLEGE DURHAM.
Dedicated Schools Grant BG0015,DSG High Needs Block,Third Party Payments,440080,Other third party payments E440,05/05/2021,3863774-YS21/22TOPUP,"1,987.00",NEWCASTLE COLLEGE.
Dedicated Schools Grant BG0015,DSG High Needs Block,Third Party Payments,440080,Other third party payments E440,05/05/2021,3863819-YS21/22TOPUP,"2,332.00",PORTLAND ACADEMY.
Dedicated Schools Grant BG0015,DSG High Needs Block,Third Party Payments,440080,Other third party payments E440,05/05/2021,3863830-YS21/22TOPUP,"1,112.00",QUEEN ELIZABETH 6TH FORM COLLEGE.
Dedicated Schools Grant BG0015,DSG High Needs Block,Third Party Payments,440080,Other third party payments E440,05/05/2021,3863905-YS21/22TOPUP,"1,077.00",THE EDUCATION TRAINING COLLEGE (ETC) T/A STOCKTON RIVERSIDE COLLEGE.
Dedicated Schools Grant BG0015,DSG High Needs Block,Third Party Payments,440080,Other third party payments E440,05/05/2021,3863928-YS21/22TOPUP1,"6,634.00",TRINITY ACADEMY NEW BRIDGE.*
Neighbourhoods and Climate Change,Environmental Services,Supplies and Services,304221,Equipment and Materials,05/05/2021,3863938-41426,"2,868.00",UK CONTAINER MAINTENANCE LTD.
Neighbourhoods and Climate Change,Environmental Services,Supplies and Services,304999,Equipment and Materials,05/05/2021,3863621-01555601,"1,352.41",ERIKS UK.
Neighbourhoods and Climate Change,Environmental Services,Supplies and Services,304221,Equipment and Materials,05/05/2021,3863840-RSIN0370577,"3,240.00",RIGBY TAYLOR LTD.
Neighbourhoods and Climate Change,Environmental Services,Supplies and Services,304221,Equipment and Materials,05/05/2021,3863963-53368,"1,062.96",WILLOWCRETE MANUFACTURING COMPANY LTD (MFG).
Neighbourhoods and Climate Change,Environmental Services,Supplies and Services,304221,Equipment and Materials,05/05/2021,3863963-53369,"1,482.84",WILLOWCRETE MANUFACTURING COMPANY LTD (MFG).
Neighbourhoods and Climate Change,Environmental Services,Supplies and Services,304221,Equipment and Materials,05/05/2021,3863799-36624,"4,600.00",ONE51 ES PLASTICS (UK) LTD T/A MGB PLASTICS.*
Neighbourhoods and Climate Change,Environmental Services,Transport,230710,Contract Hire,05/05/2021,3863871-105/21/9999,"18,000.00",SOCIETE GENERALE EQUIPMENT FINANCE LTD.
Neighbourhoods and Climate Change,Environmental Services,Transport,230710,Contract Hire,05/05/2021,3863871-105/21/10161,"5,035.00",SOCIETE GENERALE EQUIPMENT FINANCE LTD.
Neighbourhoods and Climate Change,Environmental Services,Supplies and Services,304259,Equipment and Materials,05/05/2021,3863646-I251725,890.84,GEMCO SERVICE LTD.
Neighbourhoods and Climate Change,Environmental Services,Transport,230710,Contract Hire,05/05/2021,3863871-105/21/10001,"9,497.00",SOCIETE GENERALE EQUIPMENT FINANCE LTD.
Neighbourhoods and Climate Change,Environmental Services,Transport,230710,Contract Hire,05/05/2021,3863871-105/21/10002,"4,664.00",SOCIETE GENERALE EQUIPMENT FINANCE LTD.
Neighbourhoods and Climate Change,Environmental Services,Transport,230710,Contract Hire,05/05/2021,3863871-105/21/10160,"1,516.00",SOCIETE GENERALE EQUIPMENT FINANCE LTD.
Neighbourhoods and Climate Change,Environmental Services,Transport,230710,Contract Hire,05/05/2021,3863871-105/21/10162,"19,550.00",SOCIETE GENERALE EQUIPMENT FINANCE LTD.
Neighbourhoods and Climate Change,Environmental Services,Transport,230710,Contract Hire,05/05/2021,3863871-105/21/9998,"1,345.00",SOCIETE GENERALE EQUIPMENT FINANCE LTD.
Neighbourhoods and Climate Change,Environmental Services,Supplies and Services,304221,Equipment and Materials,05/05/2021,3863474-98490590,"1,032.03",BALL COLEGRAVE LTD.
Neighbourhoods and Climate Change,Environmental Services,Supplies and Services,304221,Equipment and Materials,05/05/2021,3863474-98490591,"2,004.10",BALL COLEGRAVE LTD.
Neighbourhoods and Climate Change,Environmental Services,Supplies and Services,304221,Equipment and Materials,05/05/2021,3863597-0000065696,705.00,EAST RIDING HORTICULTURE LTD.
Neighbourhoods and Climate Change,Environmental Services,Supplies and Services,338027,Services,05/05/2021,3863872-0000879920,"1,124.85",SOCOTEC UK LTD.
Neighbourhoods and Climate Change,Environmental Services,Supplies and Services,304999,Equipment and Materials,05/05/2021,3863691-84620,"1,264.10",IN-SITU EUROPE LTD.
Neighbourhoods and Climate Change,Environmental Services,Supplies and Services,304259,Equipment and Materials,05/05/2021,3863827-SI/112683,948.34,QED ENVIRONMENTAL SYSTEMS LTD.
Neighbourhoods and Climate Change,Environmental Services,Transport,215022,Running Costs of Vehicles,05/05/2021,3863798-748846,527.97,OIL NRG LTD.
Neighbourhoods and Climate Change,Environmental Services,Third Party Payments,430113,Rendered by Private Contractors,05/05/2021,3863865-173364,"6,335.70",SHOWSEC INTERNATIONAL LTD.
Neighbourhoods and Climate Change,Environmental Services,Third Party Payments,430113,Rendered by Private Contractors,05/05/2021,3863865-173367,"2,253.80",SHOWSEC INTERNATIONAL LTD.
Neighbourhoods and Climate Change,Environmental Services,Third Party Payments,430100,Rendered by Private Contractors,05/05/2021,3863791-00016155,573.24,NSL LTD.
Neighbourhoods and Climate Change,Environmental Services,Supplies and Services,384199,Miscellaneous Expenses,05/05/2021,3863595-109303,"1,782.00",E3 ECOLOGY LTD.
Neighbourhoods and Climate Change,Environmental Services,Supplies and Services,338066,Services,05/05/2021,3863460-BURSARY-APRIL,605.69,ANNA HOLLIDAY (NATURE RESTORATION TRAINEE).
Neighbourhoods and Climate Change,Technical Services CM0300,Third Party Payments,430128,Rendered by Private Contractors,05/05/2021,3863553-3396,"3,797.50",CN WHITAKER.
Neighbourhoods and Climate Change,Technical Services CM0300,Other expenses A914,914002,Capital - Advertisments,05/05/2021,3863776-36580485,"1,772.64",NEWSQUEST (YORKSHIRE & NORTH EAST) LTD.
Neighbourhoods and Climate Change,Technical Services CM0300,Stock A926,926900,Stock in hand-Inventory system,05/05/2021,3863555-ZWI013953,"1,967.76",COLAS LTD.
Neighbourhoods and Climate Change,Technical Services CM0300,Stock A926,926900,Stock in hand-Inventory system,05/05/2021,3863666-SI-6672,519.00,HARELAW SAWMILL LTD.
Neighbourhoods and Climate Change,Technical Services CM0300,Stock A926,926900,Stock in hand-Inventory system,05/05/2021,3863666-SI-6677,519.00,HARELAW SAWMILL LTD.
Neighbourhoods and Climate Change,Technical Services CM0300,Stock A926,926900,Stock in hand-Inventory system,05/05/2021,3863815-1417046,556.08,PILKINGTON UNITED KINGDOM LTD.
Neighbourhoods and Climate Change,Technical Services CM0300,Stock A926,926900,Stock in hand-Inventory system,05/05/2021,3863920-104663,"1,344.00",TOTAL RENTAL SOLUTIONS.
Neighbourhoods and Climate Change,Technical Services CM0300,Stock A926,926900,Stock in hand-Inventory system,05/05/2021,3863920-104664,"6,190.00",TOTAL RENTAL SOLUTIONS.
Neighbourhoods and Climate Change,Technical Services CM0300,Stock A926,926900,Stock in hand-Inventory system,05/05/2021,3863920-104666,570.00,TOTAL RENTAL SOLUTIONS.
Neighbourhoods and Climate Change,Technical Services CM0300,Stock A926,926900,Stock in hand-Inventory system,05/05/2021,3863920-104668,"3,375.00",TOTAL RENTAL SOLUTIONS.
Neighbourhoods and Climate Change,Technical Services CM0300,Stock A926,926900,Stock in hand-Inventory system,05/05/2021,3863920-104669,"3,124.50",TOTAL RENTAL SOLUTIONS.
Neighbourhoods and Climate Change,Technical Services CM0300,Stock A926,926900,Stock in hand-Inventory system,05/05/2021,3863920-104670,720.00,TOTAL RENTAL SOLUTIONS.
Neighbourhoods and Climate Change,Technical Services CM0300,Stock A926,926900,Stock in hand-Inventory system,05/05/2021,3863976-145419154,"2,597.38",ZG LIGHTING (UK) LTD.
Neighbourhoods and Climate Change,Technical Services CM0300,Third Party Payments,430100,Rendered by Private Contractors,05/05/2021,3863829-13267,"7,395.35",QUANTUM POWER CONNECTIONS LTD.
Neighbourhoods and Climate Change,Technical Services CM0300,Third Party Payments,430100,Rendered by Private Contractors,05/05/2021,3863889-INV-0270,"1,113.50",SUPAMOLE DIRECTIONAL DRILLING SPECIALISTS.
Neighbourhoods and Climate Change,Technical Services CM0300,Supplies and Services,304221,Equipment and Materials,05/05/2021,3863654-1017579,540.00,GRAB & DELIVER LTD.
Neighbourhoods and Climate Change,Technical Services CM0300,Third Party Payments,430100,Rendered by Private Contractors,05/05/2021,3863674-3226,"7,293.00",HIGHWAY CONSTRUCTION SERVICES LTD.
Neighbourhoods and Climate Change,Technical Services CM0300,Third Party Payments,430100,Rendered by Private Contractors,05/05/2021,3863674-3227,"3,740.00",HIGHWAY CONSTRUCTION SERVICES LTD.
Neighbourhoods and Climate Change,Technical Services CM0300,Supplies and Services,304221,Equipment and Materials,05/05/2021,3863734-CINV-082559,649.41,LIMELIGHT SIGNS LTD.
Neighbourhoods and Climate Change,Technical Services CM0300,Supplies and Services,304221,Equipment and Materials,05/05/2021,3863780-31303,748.00,NORTH EAST CONCRETE LTD.
Neighbourhoods and Climate Change,Technical Services CM0300,Supplies and Services,304221,Equipment and Materials,05/05/2021,3863936-221162,571.43,TYNEDALE ROADSTONE LTD.
Neighbourhoods and Climate Change,Technical Services CM0300,Third Party Payments,460053,Contract Payments,05/05/2021,3863698-25177,"1,314.54",JACK COUPE & SONS LTD T/A COUPE LINE.
Neighbourhoods and Climate Change,Technical Services CM0300,Third Party Payments,460053,Contract Payments,05/05/2021,3863698-25185,688.97,JACK COUPE & SONS LTD T/A COUPE LINE.
Neighbourhoods and Climate Change,Technical Services CM0300,Supplies and Services,336005,Advertising E336,05/05/2021,3863714-434955,900.00,JPI MEDIA PUBLISHING LTD T/A SHEFFIELD NEWSPAPERS.
Non-Service Specific,Insurances,Supplies and Services,338045,Services,05/05/2021,3863575-3074547,"1,222.50",DAC BEACHCROFT LLP.
"Regeneration, Economy and Growth",Business Durham CL0850,Supplies and Services,384899,Miscellaneous Expenses,05/05/2021,3863477-DBRG-05-2021-02,"3,375.00",BARBICAN ARMOURY.
"Regeneration, Economy and Growth",Business Durham CL0850,Supplies and Services,384899,Miscellaneous Expenses,05/05/2021,3863477-DBRG-05-2021-03,"1,123.37",BARBICAN ARMOURY.
"Regeneration, Economy and Growth",Business Durham CL0850,Supplies and Services,384899,Miscellaneous Expenses,05/05/2021,3863730-DBRG-05-2021-06,"4,192.50",LD FIRST CLASS FITNESS LTD T/A CROSSFIT FCF.
"Regeneration, Economy and Growth",Business Durham CL0850,Employees,080025,Agency Staff,05/05/2021,3863845-12874,"4,522.66",RTC NORTH LTD.
"Regeneration, Economy and Growth",Business Durham CL0850,Supplies and Services,384899,Miscellaneous Expenses,05/05/2021,3863876-DBRG-05-2021-01,"6,809.42",SPARTAN PERFORMANCE LTD.
"Regeneration, Economy and Growth",Corporate Property and Land,Supplies and Services,384199,Miscellaneous Expenses,05/05/2021,3863711-0000083095,"1,650.00",JOHN WADE (HAULAGE) LTD.
"Regeneration, Economy and Growth",Corporate Property and Land,Supplies and Services,384199,Miscellaneous Expenses,05/05/2021,3863711-0000083110,"1,150.00",JOHN WADE (HAULAGE) LTD.
"Regeneration, Economy and Growth",Corporate Property and Land,Supplies and Services,384199,Miscellaneous Expenses,05/05/2021,3863711-0000083111,"1,525.00",JOHN WADE (HAULAGE) LTD.
"Regeneration, Economy and Growth",Corporate Property and Land,Third Party Payments,430100,Rendered by Private Contractors,05/05/2021,3863453-SI18648,500.00,AMBIC LTD.
"Regeneration, Economy and Growth",Corporate Property and Land,Supplies and Services,304221,Equipment and Materials,05/05/2021,3863526-10480193,714.46,CARPET & FLOORING (TRADING) LTD.
"Regeneration, Economy and Growth",Corporate Property and Land,Supplies and Services,304221,Equipment and Materials,05/05/2021,3863920-104667,775.00,TOTAL RENTAL SOLUTIONS.
"Regeneration, Economy and Growth",Corporate Property and Land,Supplies and Services,304999,Equipment and Materials,05/05/2021,3863920-104665,"1,138.00",TOTAL RENTAL SOLUTIONS.
"Regeneration, Economy and Growth",Corporate Property and Land,Third Party Payments,430100,Rendered by Private Contractors,05/05/2021,3863556-9404,"4,446.00",COMMERCIAL COVERINGS LTD.
"Regeneration, Economy and Growth",Corporate Property and Land,Supplies and Services,304221,Equipment and Materials,05/05/2021,3863867-36037872,"2,972.87",SIG AIR HANDLING UK LTD T/A SK SALES.
"Regeneration, Economy and Growth",Corporate Property and Land,Third Party Payments,430100,Rendered by Private Contractors,05/05/2021,3863533-560,"1,564.99",CEILINGS DIRECT LTD.
"Regeneration, Economy and Growth",Corporate Property and Land,Supplies and Services,304221,Equipment and Materials,05/05/2021,3863605-059-280893,"1,774.50",EDMUNDSON ELECTRICAL LTD.
"Regeneration, Economy and Growth",Corporate Property and Land,Third Party Payments,430100,Rendered by Private Contractors,05/05/2021,3863703-46771,580.00,JBL SERVICES LTD.
"Regeneration, Economy and Growth",Corporate Property and Land,Third Party Payments,430100,Rendered by Private Contractors,05/05/2021,3863800-10594-86,"1,200.72",OPUS BUILDING SERVICES LTD.
"Regeneration, Economy and Growth",Corporate Property and Land,Third Party Payments,430100,Rendered by Private Contractors,05/05/2021,3863800-10594-89,"1,196.62",OPUS BUILDING SERVICES LTD.
"Regeneration, Economy and Growth",Corporate Property and Land,Supplies and Services,304221,Equipment and Materials,05/05/2021,3863697-19555,798.00,J & L ELEVATOR COMPONENTS LTD.
"Regeneration, Economy and Growth",Corporate Property and Land,Third Party Payments,430100,Rendered by Private Contractors,05/05/2021,3863471-2085,"1,350.00",AWR ROOFING & ALUMIN RAINWATER SYSTEMS LTD.
"Regeneration, Economy and Growth",Corporate Property and Land,Third Party Payments,430100,Rendered by Private Contractors,05/05/2021,3863471-2086,"2,386.00",AWR ROOFING & ALUMIN RAINWATER SYSTEMS LTD.
"Regeneration, Economy and Growth",Culture Sport and Tourism,Supplies and Services,304337,Equipment and Materials,05/05/2021,3863746-4236002738,817.00,MARES SPA.
"Regeneration, Economy and Growth",Culture Sport and Tourism,Supplies and Services,372009,Subscriptions E372,05/05/2021,3863509-INV-11189,"9,080.00",BRAMBLE HUB LTD.
"Regeneration, Economy and Growth",Culture Sport and Tourism,Premises,120037,Energy Costs,05/05/2021,3863521-33907671,674.52,CALOR GAS LTD.
"Regeneration, Economy and Growth",Development and Housing,Supplies and Services,338027,Services,05/05/2021,3863564-INV-0495,"1,750.00",CP VIABILITY LTD.
"Regeneration, Economy and Growth",Development and Housing,Supplies and Services,336005,Advertising E336,05/05/2021,3863776-36580456,902.25,NEWSQUEST (YORKSHIRE & NORTH EAST) LTD.
"Regeneration, Economy and Growth",Development and Housing,Supplies and Services,336005,Advertising E336,05/05/2021,3863833-5528091,"1,024.80",REACH PUBLISHING SERVICES LTD.*
"Regeneration, Economy and Growth",Transport and Contracted Services,Supplies and Services,384540,Miscellaneous Expenses,05/05/2021,3863657-INV-0433,"5,782.50",GRM MAPPING LTD.
"Regeneration, Economy and Growth",Transport and Contracted Services,Construction work A908,908105,Construction work,05/05/2021,3863752-DURHAM-BUS-STATION,"103,356.15",MGL DEMOLITION LTD.
"Regeneration, Economy and Growth",Transport and Contracted Services,Third Party Payments,430100,Rendered by Private Contractors,05/05/2021,3863463-CONCFAREPAY21-1APRV1,"1,983,499.33",ARRIVA DURHAM COUNTY LTD.
"Regeneration, Economy and Growth",Transport and Contracted Services,Third Party Payments,430100,Rendered by Private Contractors,05/05/2021,3863570-CONCFAREPAY21-1APRV1,"2,875.88",CUMBRIA CLASSIC COACHES LTD.
"Regeneration, Economy and Growth",Transport and Contracted Services,Third Party Payments,430100,Rendered by Private Contractors,05/05/2021,3863653-CONCFAREPAY21-1APRV1,"1,727,576.68",GO GATESHEAD LTD.
"Regeneration, Economy and Growth",Transport and Contracted Services,Third Party Payments,430100,Rendered by Private Contractors,05/05/2021,3863655-CONCFAREPAY21-1APRV1,888.20,GRAHAMS MOTOR SERVICES LTD.
"Regeneration, Economy and Growth",Transport and Contracted Services,Third Party Payments,430100,Rendered by Private Contractors,05/05/2021,3863676-CONCFAREPAY21-1APRV1,"5,666.46",HODGSONS COACH OPERATORS LTD.
"Regeneration, Economy and Growth",Transport and Contracted Services,Third Party Payments,430100,Rendered by Private Contractors,05/05/2021,3863728-CONCFAREPAY21-1APRV1,"1,720.82",LANCHESTER PARTNERSHIP.
"Regeneration, Economy and Growth",Transport and Contracted Services,Third Party Payments,430100,Rendered by Private Contractors,05/05/2021,3863857-CONCFAREPAY21-1APRV1,"140,348.55",SCARLET BAND BUS & COACH LTD.
"Regeneration, Economy and Growth",Transport and Contracted Services,Third Party Payments,430100,Rendered by Private Contractors,05/05/2021,3863881-CONCFAREPAY21-1APRV1,"41,583.79",STANLEY TRAVEL (NORTH EAST) LTD.
"Regeneration, Economy and Growth",Transport and Contracted Services,Third Party Payments,430100,Rendered by Private Contractors,05/05/2021,3863953-CONCFAREPAY21-1APRV1,"1,728.72",WEARDALE COMMUNITY TRANSPORT LTD.
"Regeneration, Economy and Growth",Transport and Contracted Services,Third Party Payments,430100,Rendered by Private Contractors,05/05/2021,3863954-CONCFAREPAY21-1APRV1,"176,114.38",WEARDALE MOTOR SERVICES LTD.
"Regeneration, Economy and Growth",Transport and Contracted Services,Third Party Payments,430100,Rendered by Private Contractors,05/05/2021,3863954-CONCFAREPAY21-1APRV1X21,"10,689.26",WEARDALE MOTOR SERVICES LTD.
Resources - C A C,Non Distributed Costs,Supplies and Services,338059,Services,05/05/2021,3863645-P0046385,540.00,GEL LTD T/A HEALTHWORK.
Resources BK0010,Business Support,Supplies and Services,338099,Services,05/05/2021,3863451-C51507,"1,368.31",ALLIED PUBLICITY SERVICES (MANCHESTER) LTD.
Resources BK0010,Digital and Customer Services,Vehicles Equipment Furniture and Fittings,912701,Computer equipment,05/05/2021,3863692-5280180,"97,182.00",INSIGHT DIRECT (UK) LTD.
Resources BK0010,Digital and Customer Services,Vehicles Equipment Furniture and Fittings,912701,Computer equipment,05/05/2021,3863971-KZ11202,"89,760.00",XMA LTD.
Resources BK0010,Digital and Customer Services,Vehicles Equipment Furniture and Fittings,912701,Computer equipment,05/05/2021,3863971-KZ14145,"12,240.00",XMA LTD.
Resources BK0010,Digital and Customer Services,Supplies and Services,332029,Printing Stationery and Gen Off Exps,05/05/2021,3863822-693347,778.00,POTTS PRINTERS LTD.
Resources BK0010,Digital and Customer Services,Supplies and Services,332029,Printing Stationery and Gen Off Exps,05/05/2021,3863822-693360,"1,360.00",POTTS PRINTERS LTD.
Resources BK0010,Digital and Customer Services,Supplies and Services,332029,Printing Stationery and Gen Off Exps,05/05/2021,3863822-693361,810.00,POTTS PRINTERS LTD.
Resources BK0010,Internal Audit and Insurance,Supplies and Services,372009,Subscriptions E372,05/05/2021,3863899-3802938,"3,900.00",THE CABINET OFFICE..
Resources BK0010,Legal & Democratic Services,Supplies and Services,338042,Services,05/05/2021,3863584-350801/INVSPA377,850.00,DERE STREET BARRISTERS.
Resources BK0010,Legal & Democratic Services,Supplies and Services,338042,Services,05/05/2021,3863584-362581/INVCSM524,850.00,DERE STREET BARRISTERS.
Resources BK0010,Legal & Democratic Services,Supplies and Services,338042,Services,05/05/2021,3863929-281771/INVPG288,500.00,TRINITY CHAMBERS.
Adult and Health Services,Commissioning inc Supporting People,Third Party Payments,442002,Supporting People E442,06/05/2021,3864467-120,"5,500.00",WADDINGTON STREET CENTRE LTD.
Adult and Health Services,Commissioning inc Supporting People,Third Party Payments,479111,Purchase of Care,06/05/2021,3863999-0088,"4,225.00",APM CLEANING LTD.
Adult and Health Services,Commissioning inc Supporting People,Third Party Payments,440999,Other third party payments E440,06/05/2021,3864353-CAS-05-2021-035,"1,500.00",RESOLVE (CARE NORTHERN) LTD..
Adult and Health Services,Commissioning inc Supporting People,Third Party Payments,479111,Purchase of Care,06/05/2021,3864355-25206,"31,997.74",RETHINK MENTAL ILLNESS LTD.
Adult and Health Services,Head of Adults,Transport,230005,Contract Hire,06/05/2021,3864185-30-DM209,648.00,JOHN CRAKE & SONS MINI BUSES LTD.
Adult and Health Services,Head of Adults,Transport,230005,Contract Hire,06/05/2021,3864073-110599,800.82,CROFT BUSINESS SERVICES (UK) LTD T/A CROFT TAXIS.
Adult and Health Services,Head of Adults,Transport,230005,Contract Hire,06/05/2021,3864254-202108,715.52,MR JR FORT T/A JRF TAXIS.
Adult and Health Services,Head of Adults,Transport,230005,Contract Hire,06/05/2021,3864160-IR2104002APRIL,"1,960.00",I & R EXECUTIVE TRAVEL.
Adult and Health Services,Head of Adults,Transport,230005,Contract Hire,06/05/2021,3864185-33-2021,"1,200.00",JOHN CRAKE & SONS MINI BUSES LTD.
Adult and Health Services,Head of Adults,Transport,230005,Contract Hire,06/05/2021,3864008-04217,656.76,ATLAS TAXIS CONSETT.
Adult and Health Services,Head of Adults,Transport,230005,Contract Hire,06/05/2021,3864024-8076-2021,"1,362.00",BOBBY DOVE PRIVATE HIRE.
Adult and Health Services,Head of Adults,Supplies and Services,342051,Computers and Communications,06/05/2021,3864319-16934,"2,229.79",OXFORD COMPUTER CONSULTANTS LTD.
Adult and Health Services,Head of Adults,Supplies and Services,342051,Computers and Communications,06/05/2021,3864319-16936,"3,773.54",OXFORD COMPUTER CONSULTANTS LTD.
Adult and Health Services,Head of Adults,Third Party Payments,478151,Purchase of Care,06/05/2021,3864018-1/2122/MULB,555.88,BERNICIA GROUP LTD.*
Adult and Health Services,Head of Adults,Third Party Payments,478151,Purchase of Care,06/05/2021,3864027-CB29,"2,164.29",BONDCARE WILLINGTON LTD.
Adult and Health Services,Head of Adults,Third Party Payments,478151,Purchase of Care,06/05/2021,3864088-INV-0765,"2,521.41",DEACONSTAR LTD.
Adult and Health Services,Head of Adults,Third Party Payments,478151,Purchase of Care,06/05/2021,3864088-INV-0766,"1,713.60",DEACONSTAR LTD.
Adult and Health Services,Head of Adults,Third Party Payments,478151,Purchase of Care,06/05/2021,3864088-INV-0767,926.80,DEACONSTAR LTD.
Adult and Health Services,Head of Adults,Third Party Payments,478151,Purchase of Care,06/05/2021,3864088-INV-0768,840.00,DEACONSTAR LTD.
Adult and Health Services,Head of Adults,Third Party Payments,478151,Purchase of Care,06/05/2021,3864244-18,"2,300.00",MOORLAND HOLDINGS (NE) LTD.
Adult and Health Services,Head of Adults,Third Party Payments,478151,Purchase of Care,06/05/2021,3864466-NEA005374,"3,939.60",VOYAGE 1 LTD.
Adult and Health Services,Public Health CC0450,Third Party Payments,460803,Contract Payments,06/05/2021,3864161-VIO497,"83,200.00",IF U CARE SHARE FOUNDATION.
Adult and Health Services,Public Health CC0450,Third Party Payments,460803,Contract Payments,06/05/2021,3864145-DCCDA014,"40,400.09",HARBOUR SUPPORT SERVICES.
Children and Young Peoples Services,Head of Childrens Social Care,Third Party Payments,425021,Rendered by Voluntary Organisations,06/05/2021,3864003-INV-1475,"6,435.00",ARTEMIS SUPPORT LTD.
Children and Young Peoples Services,Head of Childrens Social Care,Third Party Payments,425023,Rendered by Voluntary Organisations,06/05/2021,3864003-INV-1455,"17,000.00",ARTEMIS SUPPORT LTD.
Children and Young Peoples Services,Head of Childrens Social Care,Third Party Payments,425021,Rendered by Voluntary Organisations,06/05/2021,3864341-249817,"12,205.95",PRIMARY CARE RECRUITMENT LTD.
Children and Young Peoples Services,Head of Childrens Social Care,Third Party Payments,440047,Other third party payments E440,06/05/2021,3864151-01106,527.00,HOHMLOGICS LTD.
Children and Young Peoples Services,Head of Childrens Social Care,Supplies and Services,384500,Miscellaneous Expenses,06/05/2021,3864383-SW073,"4,924.76",SENSORY WORX.
Children and Young Peoples Services,Head of Childrens Social Care,Supplies and Services,384500,Miscellaneous Expenses,06/05/2021,3864383-SW125,"2,462.28",SENSORY WORX.
Children and Young Peoples Services,Head of Childrens Social Care,Supplies and Services,384500,Miscellaneous Expenses,06/05/2021,3864383-SW126,"2,462.28",SENSORY WORX.
Children and Young Peoples Services,Head of Childrens Social Care,Supplies and Services,338043,Services,06/05/2021,3864092-RDA/NS/68452/1,500.00,DMA LAW LTD.
Children and Young Peoples Services,Head of Childrens Social Care,Supplies and Services,338044,Services,06/05/2021,3864096-2021/910,582.08,DR PETER MORRELL.
Children and Young Peoples Services,Head of Childrens Social Care,Supplies and Services,338044,Services,06/05/2021,3864098-SI-1042,714.80,DR SUSAN COOPER.
Children and Young Peoples Services,Head of Childrens Social Care,Supplies and Services,338044,Services,06/05/2021,3864373-INV-301A,"2,199.00",SARAH SEEKINS CONSULTANCY LTD.
Children and Young Peoples Services,Head of Childrens Social Care,Supplies and Services,338045,Services,06/05/2021,3864432-43662,"2,520.46",THE RICHMOND PARTNERSHIP.
Children and Young Peoples Services,Head of Childrens Social Care,Supplies and Services,384302,Miscellaneous Expenses,06/05/2021,3864431-PIG_94354,"4,860.00",THE PSYCHOLOGY SPACE (DR LAURA SANGER).
Children and Young Peoples Services,Head of Childrens Social Care,Employees,080025,Agency Staff,06/05/2021,3864134-2448343,"169,232.57",GEOMETRIC RESULTS INTERNATIONAL.
Children and Young Peoples Services,Head of Education and Skills,Construction work A908,908105,Construction work,06/05/2021,3864215-132472,"1,760.00",LUCION ENVIRONMENTAL LLP LTD.
Children and Young Peoples Services,Head of Education and Skills,Transport,230012,Contract Hire,06/05/2021,3864248-CHPK04-21,"1,360.50",MR CT WALKER T/A CW TAXIS.
Children and Young Peoples Services,Head of Education and Skills,Transport,230008,Contract Hire,06/05/2021,3864091-19,"2,075.50",DEXTERS PRIVATE HIRE.
Children and Young Peoples Services,Head of Education and Skills,Transport,230034,Contract Hire,06/05/2021,3864177-85-1250,"1,830.00",JAYS TAXIS/JOHN GARLAND (TAXIS).
Children and Young Peoples Services,Head of Education and Skills,Transport,230006,Contract Hire,06/05/2021,3863982-AC2021,784.20,ACE TAXIS (WINSTON).
Children and Young Peoples Services,Head of Education and Skills,Transport,230035,Contract Hire,06/05/2021,3864248-HERM04-21,"1,146.00",MR CT WALKER T/A CW TAXIS.
Children and Young Peoples Services,Head of Education and Skills,Transport,230003,Contract Hire,06/05/2021,3864047-47207,"4,665.00",CHRISTOPHER JAMES GRIERSON T/A GRIERSONS COACHES.
Children and Young Peoples Services,Head of Education and Skills,Transport,230003,Contract Hire,06/05/2021,3864047-47208,"2,490.00",CHRISTOPHER JAMES GRIERSON T/A GRIERSONS COACHES.
Children and Young Peoples Services,Head of Education and Skills,Transport,230007,Contract Hire,06/05/2021,3864187-CORPTRAVWPAAPR21,630.00,JOHN W CROOK T/A CORPORATE TRAVEL.
Children and Young Peoples Services,Head of Education and Skills,Transport,230007,Contract Hire,06/05/2021,3863982-AC2022,900.00,ACE TAXIS (WINSTON).
Children and Young Peoples Services,Head of Education and Skills,Transport,230034,Contract Hire,06/05/2021,3864008-04221,960.00,ATLAS TAXIS CONSETT.
Children and Young Peoples Services,Head of Education and Skills,Transport,230008,Contract Hire,06/05/2021,3863985-08/21,720.00,ADVANCE TRAVEL.
Children and Young Peoples Services,Head of Education and Skills,Transport,230008,Contract Hire,06/05/2021,3863985-08/21GAP,738.00,ADVANCE TRAVEL.
Children and Young Peoples Services,Head of Education and Skills,Transport,230007,Contract Hire,06/05/2021,3864138-75984,"6,402.90",GO GATESHEAD LTD.
Children and Young Peoples Services,Head of Education and Skills,Transport,230007,Contract Hire,06/05/2021,3864248-DJS04-21,"1,358.85",MR CT WALKER T/A CW TAXIS.
Children and Young Peoples Services,Head of Education and Skills,Transport,230007,Contract Hire,06/05/2021,3864479-008,827.70,WILLIAM PINDER T/A FEATHERBED TAXIS.
Children and Young Peoples Services,Head of Education and Skills,Transport,230003,Contract Hire,06/05/2021,3864133-5673,"2,052.60",GEM TRAVEL.
Children and Young Peoples Services,Head of Education and Skills,Transport,230003,Contract Hire,06/05/2021,3864133-5674,"1,970.10",GEM TRAVEL.
Children and Young Peoples Services,Head of Education and Skills,Transport,230008,Contract Hire,06/05/2021,3864012-8APR21,840.00,B&C YELLOWCAB TAXI`S.
Children and Young Peoples Services,Head of Education and Skills,Transport,230008,Contract Hire,06/05/2021,3864049-A072-SP0421,"1,437.15",CJ`S EXECUTIVE TRAVEL LTD.
Children and Young Peoples Services,Head of Education and Skills,Transport,230006,Contract Hire,06/05/2021,3864073-110589,"4,364.70",CROFT BUSINESS SERVICES (UK) LTD T/A CROFT TAXIS.
Children and Young Peoples Services,Head of Education and Skills,Transport,230008,Contract Hire,06/05/2021,3864073-110587,"3,809.10",CROFT BUSINESS SERVICES (UK) LTD T/A CROFT TAXIS.
Children and Young Peoples Services,Head of Education and Skills,Transport,230008,Contract Hire,06/05/2021,3864073-110588,"1,755.00",CROFT BUSINESS SERVICES (UK) LTD T/A CROFT TAXIS.
Children and Young Peoples Services,Head of Education and Skills,Transport,230008,Contract Hire,06/05/2021,3864073-110590,"2,533.50",CROFT BUSINESS SERVICES (UK) LTD T/A CROFT TAXIS.
Children and Young Peoples Services,Head of Education and Skills,Transport,230008,Contract Hire,06/05/2021,3864073-110598,"2,200.20",CROFT BUSINESS SERVICES (UK) LTD T/A CROFT TAXIS.
Children and Young Peoples Services,Head of Education and Skills,Transport,230006,Contract Hire,06/05/2021,3864084-84,670.00,DAVID WILKINSON (TAXIS).
Children and Young Peoples Services,Head of Education and Skills,Transport,230006,Contract Hire,06/05/2021,3864176-0803,"1,450.00",JACKSON`S TAXI.
Children and Young Peoples Services,Head of Education and Skills,Transport,230008,Contract Hire,06/05/2021,3864177-86-A021,"1,230.00",JAYS TAXIS/JOHN GARLAND (TAXIS).
Children and Young Peoples Services,Head of Education and Skills,Transport,230008,Contract Hire,06/05/2021,3864177-88,"2,430.00",JAYS TAXIS/JOHN GARLAND (TAXIS).
Children and Young Peoples Services,Head of Education and Skills,Transport,230008,Contract Hire,06/05/2021,3864177-90,"2,430.00",JAYS TAXIS/JOHN GARLAND (TAXIS).
Children and Young Peoples Services,Head of Education and Skills,Transport,230008,Contract Hire,06/05/2021,3864196-1164,"2,126.50",K & R TAXIS (STANLEY).
Children and Young Peoples Services,Head of Education and Skills,Transport,230008,Contract Hire,06/05/2021,3864200-131,990.00,KINGSWAY CABS LTD.
Children and Young Peoples Services,Head of Education and Skills,Transport,230008,Contract Hire,06/05/2021,3864200-134,990.00,KINGSWAY CABS LTD.
Children and Young Peoples Services,Head of Education and Skills,Transport,230008,Contract Hire,06/05/2021,3864200-136,"1,111.00",KINGSWAY CABS LTD.
Children and Young Peoples Services,Head of Education and Skills,Transport,230008,Contract Hire,06/05/2021,3864200-137,"2,437.35",KINGSWAY CABS LTD.
Children and Young Peoples Services,Head of Education and Skills,Transport,230008,Contract Hire,06/05/2021,3864330-68,"1,565.70",PHILLIP BOYD T/A FILS TAXIS.
Children and Young Peoples Services,Head of Education and Skills,Transport,230007,Contract Hire,06/05/2021,3864008-04214,673.02,ATLAS TAXIS CONSETT.
Children and Young Peoples Services,Head of Education and Skills,Transport,230008,Contract Hire,06/05/2021,3864073-110597,"1,082.88",CROFT BUSINESS SERVICES (UK) LTD T/A CROFT TAXIS.
Children and Young Peoples Services,Head of Education and Skills,Supplies and Services,338045,Services,06/05/2021,3864478-INTERIM6,"8,390.00",WILLIAM J MARSHALL & PARTNERS.
Children and Young Peoples Services,Head of Education and Skills,Supplies and Services,342055,Computers and Communications,06/05/2021,3864421-DMS0009,"2,500.00",TEACHING GADGET LTD.
Children and Young Peoples Services,Head of Education and Skills,Transport,230008,Contract Hire,06/05/2021,3864049-E031-KC0421,"3,816.25",CJ`S EXECUTIVE TRAVEL LTD.
Children and Young Peoples Services,Head of Education and Skills,Transport,230008,Contract Hire,06/05/2021,3864073-110593,"2,147.85",CROFT BUSINESS SERVICES (UK) LTD T/A CROFT TAXIS.
Children and Young Peoples Services,Head of Education and Skills,Transport,230008,Contract Hire,06/05/2021,3864073-110595,"2,617.20",CROFT BUSINESS SERVICES (UK) LTD T/A CROFT TAXIS.
Children and Young Peoples Services,Head of Education and Skills,Transport,230008,Contract Hire,06/05/2021,3864073-110596,"2,805.00",CROFT BUSINESS SERVICES (UK) LTD T/A CROFT TAXIS.
Children and Young Peoples Services,Head of Education and Skills,Transport,230008,Contract Hire,06/05/2021,3864200-133,"1,494.00",KINGSWAY CABS LTD.
Children and Young Peoples Services,Head of Education and Skills,Transport,230008,Contract Hire,06/05/2021,3864247-2APR21,930.00,MR BW YOUNG T/A ESH TAXIS.
Children and Young Peoples Services,Head of Education and Skills,Transport,230008,Contract Hire,06/05/2021,3864049-N115-CB0421,"1,575.00",CJ`S EXECUTIVE TRAVEL LTD.
Children and Young Peoples Services,Head of Education and Skills,Transport,230008,Contract Hire,06/05/2021,3864139-76,"1,697.28",GP TAXIS.
Children and Young Peoples Services,Head of Education and Skills,Transport,230008,Contract Hire,06/05/2021,3864196-1165,"2,475.00",K & R TAXIS (STANLEY).
Children and Young Peoples Services,Head of Education and Skills,Transport,230008,Contract Hire,06/05/2021,3864200-130,"1,584.00",KINGSWAY CABS LTD.
Children and Young Peoples Services,Head of Education and Skills,Transport,230008,Contract Hire,06/05/2021,3864250-APR21-M054,"1,230.00",MR DOMINICK JONES T/A DJ PRIVATE HIRE.
Children and Young Peoples Services,Head of Education and Skills,Transport,230008,Contract Hire,06/05/2021,3864250-APR21-N120,"1,680.00",MR DOMINICK JONES T/A DJ PRIVATE HIRE.
Children and Young Peoples Services,Head of Education and Skills,Transport,230008,Contract Hire,06/05/2021,3864073-110594,"1,960.65",CROFT BUSINESS SERVICES (UK) LTD T/A CROFT TAXIS.
Children and Young Peoples Services,Head of Education and Skills,Transport,230008,Contract Hire,06/05/2021,3864079-3630,"2,002.35",DAVES MINIBUSES.
Children and Young Peoples Services,Head of Education and Skills,Transport,230008,Contract Hire,06/05/2021,3864079-3631,"1,500.00",DAVES MINIBUSES.
Children and Young Peoples Services,Head of Education and Skills,Transport,230008,Contract Hire,06/05/2021,3864175-0771,837.85,JACKSON`S TAXI.
Children and Young Peoples Services,Head of Education and Skills,Transport,230008,Contract Hire,06/05/2021,3864175-0802,"1,402.50",JACKSON`S TAXI.
Children and Young Peoples Services,Head of Education and Skills,Transport,230008,Contract Hire,06/05/2021,3864250-APR21-W003,"2,160.45",MR DOMINICK JONES T/A DJ PRIVATE HIRE.
Children and Young Peoples Services,Head of Education and Skills,Transport,230008,Contract Hire,06/05/2021,3864263-3166,"3,545.85",MR S BOWERS T/A DH7 TAXIS.
Children and Young Peoples Services,Head of Education and Skills,Transport,230008,Contract Hire,06/05/2021,3864007-DCC04APRIL21,"1,980.00",ATLAS TAXIS BISHOP AUCKLAND.
Children and Young Peoples Services,Head of Education and Skills,Transport,230008,Contract Hire,06/05/2021,3864299-267,"1,530.00",NEVILLE FORBES T/A FORBES TAXIS.
Children and Young Peoples Services,Head of Education and Skills,Transport,230008,Contract Hire,06/05/2021,3864079-3632,"1,372.00",DAVES MINIBUSES.
Children and Young Peoples Services,Head of Education and Skills,Transport,230008,Contract Hire,06/05/2021,3864176-0804,"1,669.15",JACKSON`S TAXI.
Children and Young Peoples Services,Head of Education and Skills,Transport,230008,Contract Hire,06/05/2021,3864024-8029-2021,"1,555.68",BOBBY DOVE PRIVATE HIRE.
Children and Young Peoples Services,Head of Education and Skills,Transport,230006,Contract Hire,06/05/2021,3864049-N112-GHH0421,"1,468.55",CJ`S EXECUTIVE TRAVEL LTD.
Children and Young Peoples Services,Head of Education and Skills,Transport,230008,Contract Hire,06/05/2021,3864160-IR2104003,"2,414.16",I & R EXECUTIVE TRAVEL.
Children and Young Peoples Services,Head of Education and Skills,Transport,230016,Contract Hire,06/05/2021,3864177-91,"2,580.00",JAYS TAXIS/JOHN GARLAND (TAXIS).
Children and Young Peoples Services,Head of Education and Skills,Transport,230008,Contract Hire,06/05/2021,3864200-132,"1,809.00",KINGSWAY CABS LTD.
Children and Young Peoples Services,Head of Education and Skills,Transport,230006,Contract Hire,06/05/2021,3864250-APR21-E102,658.00,MR DOMINICK JONES T/A DJ PRIVATE HIRE.
Children and Young Peoples Services,Head of Education and Skills,Transport,230008,Contract Hire,06/05/2021,3864250-APR21-E046,728.00,MR DOMINICK JONES T/A DJ PRIVATE HIRE.
Children and Young Peoples Services,Head of Education and Skills,Transport,230008,Contract Hire,06/05/2021,3864028-DC04/21,"1,476.00",BOWES TRAVEL.
Children and Young Peoples Services,Head of Education and Skills,Transport,230008,Contract Hire,06/05/2021,3864073-110592,"2,010.00",CROFT BUSINESS SERVICES (UK) LTD T/A CROFT TAXIS.
Children and Young Peoples Services,Head of Education and Skills,Transport,230008,Contract Hire,06/05/2021,3864079-3628,"1,833.90",DAVES MINIBUSES.
Children and Young Peoples Services,Head of Education and Skills,Transport,230008,Contract Hire,06/05/2021,3864079-3629,"1,397.70",DAVES MINIBUSES.
Children and Young Peoples Services,Head of Education and Skills,Transport,230008,Contract Hire,06/05/2021,3864079-3633,"1,581.00",DAVES MINIBUSES.
Children and Young Peoples Services,Head of Education and Skills,Transport,230016,Contract Hire,06/05/2021,3864160-IR2104002,"1,541.70",I & R EXECUTIVE TRAVEL.
Children and Young Peoples Services,Head of Education and Skills,Transport,230008,Contract Hire,06/05/2021,3864175-0769,828.75,JACKSON`S TAXI.
Children and Young Peoples Services,Head of Education and Skills,Transport,230008,Contract Hire,06/05/2021,3864176-0801,"1,923.00",JACKSON`S TAXI.
Children and Young Peoples Services,Head of Education and Skills,Transport,230016,Contract Hire,06/05/2021,3864177-89,"1,380.00",JAYS TAXIS/JOHN GARLAND (TAXIS).
Children and Young Peoples Services,Head of Education and Skills,Transport,230006,Contract Hire,06/05/2021,3864196-1169,"1,890.00",K & R TAXIS (STANLEY).
Children and Young Peoples Services,Head of Education and Skills,Transport,230008,Contract Hire,06/05/2021,3864196-1166,"2,419.50",K & R TAXIS (STANLEY).
Children and Young Peoples Services,Head of Education and Skills,Transport,230008,Contract Hire,06/05/2021,3864196-1167,"1,891.80",K & R TAXIS (STANLEY).
Children and Young Peoples Services,Head of Education and Skills,Transport,230008,Contract Hire,06/05/2021,3864196-1168,"1,620.00",K & R TAXIS (STANLEY).
Children and Young Peoples Services,Head of Education and Skills,Transport,230008,Contract Hire,06/05/2021,3864263-3165,"1,905.00",MR S BOWERS T/A DH7 TAXIS.
Children and Young Peoples Services,Head of Education and Skills,Transport,230006,Contract Hire,06/05/2021,3864326-APRIL21,"1,200.00",PAUL GREEN T/A GREEN TAXIS.
Children and Young Peoples Services,Head of Education and Skills,Transport,230006,Contract Hire,06/05/2021,3864007-DCC6APRIL2021,"1,005.00",ATLAS TAXIS BISHOP AUCKLAND.
Children and Young Peoples Services,Head of Education and Skills,Transport,230008,Contract Hire,06/05/2021,3864007-DCC03APRIL21,"1,980.00",ATLAS TAXIS BISHOP AUCKLAND.
Children and Young Peoples Services,Head of Education and Skills,Transport,230008,Contract Hire,06/05/2021,3864007-DCC7APRIL21,"2,529.30",ATLAS TAXIS BISHOP AUCKLAND.
Children and Young Peoples Services,Head of Education and Skills,Transport,230008,Contract Hire,06/05/2021,3864049-M011-AA0421,"1,448.40",CJ`S EXECUTIVE TRAVEL LTD.
Children and Young Peoples Services,Head of Education and Skills,Transport,230008,Contract Hire,06/05/2021,3864087-0421-001,"1,518.90",DCM TAXIS.
Children and Young Peoples Services,Head of Education and Skills,Transport,230008,Contract Hire,06/05/2021,3864137-015APR21,"1,659.00",GMC TAXIS NORTH EAST.
Children and Young Peoples Services,Head of Education and Skills,Transport,230006,Contract Hire,06/05/2021,3864196-1171,"2,571.75",K & R TAXIS (STANLEY).
Children and Young Peoples Services,Head of Education and Skills,Transport,230008,Contract Hire,06/05/2021,3864248-OAK1-04-21,"1,512.00",MR CT WALKER T/A CW TAXIS.
Children and Young Peoples Services,Head of Education and Skills,Transport,230008,Contract Hire,06/05/2021,3864248-OAK2-04-21,"1,782.00",MR CT WALKER T/A CW TAXIS.
Children and Young Peoples Services,Head of Education and Skills,Transport,230008,Contract Hire,06/05/2021,3863995-0114,"1,380.00",ANDREW SIMPSON T/A ANDY`S CABS.
Children and Young Peoples Services,Head of Education and Skills,Transport,230008,Contract Hire,06/05/2021,3864007-DCC10APRIL21,"3,030.00",ATLAS TAXIS BISHOP AUCKLAND.
Children and Young Peoples Services,Head of Education and Skills,Transport,230008,Contract Hire,06/05/2021,3864181-21AAPR21,"1,522.50",JL EBDON. T/A DIAL-A-CAB.
Children and Young Peoples Services,Head of Education and Skills,Transport,230008,Contract Hire,06/05/2021,3864181-21C,"2,130.00",JL EBDON. T/A DIAL-A-CAB.
Children and Young Peoples Services,Head of Education and Skills,Transport,230008,Contract Hire,06/05/2021,3864263-3164,"1,357.20",MR S BOWERS T/A DH7 TAXIS.
Children and Young Peoples Services,Head of Education and Skills,Transport,230008,Contract Hire,06/05/2021,3864365-0019APR21,"2,025.00",RONS TAXI (CHESTER LE ST).
Children and Young Peoples Services,Head of Education and Skills,Transport,230006,Contract Hire,06/05/2021,3864073-110586,"3,128.82",CROFT BUSINESS SERVICES (UK) LTD T/A CROFT TAXIS.
Children and Young Peoples Services,Head of Education and Skills,Transport,230008,Contract Hire,06/05/2021,3864177-87,"1,830.00",JAYS TAXIS/JOHN GARLAND (TAXIS).
Children and Young Peoples Services,Head of Education and Skills,Transport,230008,Contract Hire,06/05/2021,3864083-0076,"3,315.00",DAVID WALKER TAXIS.
Children and Young Peoples Services,Head of Education and Skills,Transport,230010,Contract Hire,06/05/2021,3863989-014APRIL2021,"1,416.10",AIRPORT TRANSFER DURHAM.
Children and Young Peoples Services,Head of Education and Skills,Transport,230010,Contract Hire,06/05/2021,3864135-4C,"1,395.24",GERARD MCLOUGHLIN T/A GMAC TAXIS.
Children and Young Peoples Services,Head of Education and Skills,Transport,230010,Contract Hire,06/05/2021,3864177-92,"1,278.00",JAYS TAXIS/JOHN GARLAND (TAXIS).
Children and Young Peoples Services,Head of Education and Skills,Transport,230006,Contract Hire,06/05/2021,3864070-43,"1,300.16",CRAIG MASSEY`S TAXIS.
Children and Young Peoples Services,Head of Education and Skills,Transport,230006,Contract Hire,06/05/2021,3864077-DPHCAPR2101,930.00,DALELINK PRIVATE HIRE.
Children and Young Peoples Services,Head of Education and Skills,Transport,230006,Contract Hire,06/05/2021,3864479-AA8,540.00,WILLIAM PINDER T/A FEATHERBED TAXIS.
Dedicated Schools Grant BG0015,DSG High Needs Block,Central Support and Other Recharges,615092,Support Services,06/05/2021,3864405-CAS-05-2021-037,900.00,STANLEY LEARNING PARTNERSHIP.
Dedicated Schools Grant BG0015,DSG High Needs Block,Central Support and Other Recharges,689996,Unclassified E690,06/05/2021,3864154-CAS-05-2021-033,"117,942.00",HOPE WOOD ACADEMY.
Neighbourhoods and Climate Change,Environmental Services,Supplies and Services,304221,Equipment and Materials,06/05/2021,3864369-94,"1,450.00",S & R LANDSCAPES.
Neighbourhoods and Climate Change,Environmental Services,Premises,108099,Service Repairs and Maintenance,06/05/2021,3864293-4100723475,680.00,MURRAY MEMORIALS.
Neighbourhoods and Climate Change,Environmental Services,Third Party Payments,430100,Rendered by Private Contractors,06/05/2021,3864052-JOB001/20321,525.00,COLIN JOBLING T/A RAINBOW INTERNATIONAL.
Neighbourhoods and Climate Change,Environmental Services,Supplies and Services,304259,Equipment and Materials,06/05/2021,3864483-52984,"1,640.00",WIRELESS CCTV LTD.
Neighbourhoods and Climate Change,Environmental Services,Supplies and Services,304259,Equipment and Materials,06/05/2021,3864357-756593,"1,885.85",RICKERBY LTD.
Neighbourhoods and Climate Change,Environmental Services,Supplies and Services,304221,Equipment and Materials,06/05/2021,3864358-RSIN0370776,515.00,RIGBY TAYLOR LTD.
Neighbourhoods and Climate Change,Environmental Services,Transport,230005,Contract Hire,06/05/2021,3864112-8171425,"2,198.56",ENTERPRISE FLEX-E-RENT T/A BURNT TREE GROUP LTD.
Neighbourhoods and Climate Change,Environmental Services,Transport,215005,Running Costs of Vehicles,06/05/2021,3864314-746399,"12,702.30",OIL NRG LTD.
Neighbourhoods and Climate Change,Environmental Services,Supplies and Services,304221,Equipment and Materials,06/05/2021,3864113-6887418,"12,888.00",ESE WORLD LTD.
Neighbourhoods and Climate Change,Environmental Services,Supplies and Services,304221,Equipment and Materials,06/05/2021,3864013-98455768,"1,519.28",BALL COLEGRAVE LTD.
Neighbourhoods and Climate Change,Environmental Services,Supplies and Services,304221,Equipment and Materials,06/05/2021,3864013-98455771,686.00,BALL COLEGRAVE LTD.
Neighbourhoods and Climate Change,Environmental Services,Supplies and Services,304221,Equipment and Materials,06/05/2021,3864013-98469227,"1,602.96",BALL COLEGRAVE LTD.
Neighbourhoods and Climate Change,Environmental Services,Supplies and Services,304221,Equipment and Materials,06/05/2021,3864013-98469231,608.74,BALL COLEGRAVE LTD.
Neighbourhoods and Climate Change,Environmental Services,Supplies and Services,304221,Equipment and Materials,06/05/2021,3864013-98490597,749.14,BALL COLEGRAVE LTD.
Neighbourhoods and Climate Change,Environmental Services,Supplies and Services,304221,Equipment and Materials,06/05/2021,3864300-065257,"1,064.40",NEW ROW FARM NURSERIES.
Neighbourhoods and Climate Change,Environmental Services,Third Party Payments,430113,Rendered by Private Contractors,06/05/2021,3864387-173361,"6,266.70",SHOWSEC INTERNATIONAL LTD.
Neighbourhoods and Climate Change,Environmental Services,Supplies and Services,384199,Miscellaneous Expenses,06/05/2021,3864304-152,"4,000.00",NICOLA BALFOUR T/A THE BARN AT EASINGTON.
Neighbourhoods and Climate Change,Environmental Services,Supplies and Services,338066,Services,06/05/2021,3864370-DCCFFLP5521,"1,900.00",S WHALLEY LTD.
Neighbourhoods and Climate Change,Technical Services CM0300,Third Party Payments,430127,Rendered by Private Contractors,06/05/2021,3864173-5306130,675.00,JA GILSON (AGRICULTURAL CONTRACTORS) LTD.
Neighbourhoods and Climate Change,Technical Services CM0300,Third Party Payments,430128,Rendered by Private Contractors,06/05/2021,3864198-3578,928.00,KEVIN SNOWDON GROUNDWORKS LTD.
Neighbourhoods and Climate Change,Technical Services CM0300,Third Party Payments,430100,Rendered by Private Contractors,06/05/2021,3864346-13243,"18,759.18",QUANTUM POWER CONNECTIONS LTD.
Neighbourhoods and Climate Change,Technical Services CM0300,Third Party Payments,430100,Rendered by Private Contractors,06/05/2021,3864346-13247,949.74,QUANTUM POWER CONNECTIONS LTD.
Neighbourhoods and Climate Change,Technical Services CM0300,Third Party Payments,430100,Rendered by Private Contractors,06/05/2021,3864346-13253,"2,898.40",QUANTUM POWER CONNECTIONS LTD.
Neighbourhoods and Climate Change,Technical Services CM0300,Third Party Payments,430100,Rendered by Private Contractors,06/05/2021,3864346-13256,"1,089.17",QUANTUM POWER CONNECTIONS LTD.
Neighbourhoods and Climate Change,Technical Services CM0300,Third Party Payments,430100,Rendered by Private Contractors,06/05/2021,3864346-13257,"1,899.48",QUANTUM POWER CONNECTIONS LTD.
Neighbourhoods and Climate Change,Technical Services CM0300,Third Party Payments,430100,Rendered by Private Contractors,06/05/2021,3864346-13259,864.62,QUANTUM POWER CONNECTIONS LTD.
Neighbourhoods and Climate Change,Technical Services CM0300,Third Party Payments,430100,Rendered by Private Contractors,06/05/2021,3864346-13261,"2,969.60",QUANTUM POWER CONNECTIONS LTD.
Neighbourhoods and Climate Change,Technical Services CM0300,Third Party Payments,430100,Rendered by Private Contractors,06/05/2021,3864346-13263,"2,143.68",QUANTUM POWER CONNECTIONS LTD.
Neighbourhoods and Climate Change,Technical Services CM0300,Supplies and Services,338066,Services,06/05/2021,3864398-2021-231,"3,855.00",SOLMEK LTD.
Neighbourhoods and Climate Change,Technical Services CM0300,Supplies and Services,304221,Equipment and Materials,06/05/2021,3864194-0101/00346393,"1,065.88",JT DOVE LTD.
Neighbourhoods and Climate Change,Technical Services CM0300,Third Party Payments,430100,Rendered by Private Contractors,06/05/2021,3864333-6130,"5,416.29",PINKNEY BUILDING CONTRACTORS LTD.
Neighbourhoods and Climate Change,Technical Services CM0300,Third Party Payments,430100,Rendered by Private Contractors,06/05/2021,3864333-6131,"3,224.43",PINKNEY BUILDING CONTRACTORS LTD.
Neighbourhoods and Climate Change,Technical Services CM0300,Third Party Payments,430100,Rendered by Private Contractors,06/05/2021,3864346-13262,509.49,QUANTUM POWER CONNECTIONS LTD.
Neighbourhoods and Climate Change,Technical Services CM0300,Supplies and Services,304358,Equipment and Materials,06/05/2021,3864369-0012,857.75,S & R LANDSCAPES.
Neighbourhoods and Climate Change,Technical Services CM0300,Supplies and Services,304358,Equipment and Materials,06/05/2021,3864369-100-2021,630.00,S & R LANDSCAPES.
Neighbourhoods and Climate Change,Technical Services CM0300,Supplies and Services,304358,Equipment and Materials,06/05/2021,3864369-2601,682.00,S & R LANDSCAPES.
Neighbourhoods and Climate Change,Technical Services CM0300,Supplies and Services,304358,Equipment and Materials,06/05/2021,3864369-2682,896.00,S & R LANDSCAPES.
Neighbourhoods and Climate Change,Technical Services CM0300,Supplies and Services,304358,Equipment and Materials,06/05/2021,3864369-56,"1,297.00",S & R LANDSCAPES.
Neighbourhoods and Climate Change,Technical Services CM0300,Supplies and Services,336005,Advertising E336,06/05/2021,3864192-433211,765.00,JPI MEDIA PUBLISHING LTD T/A SHEFFIELD NEWSPAPERS.
"Regeneration, Economy and Growth",Business Durham CL0850,Supplies and Services,338027,Services,06/05/2021,3864017-INV-0094,650.00,BEDROCK 42 LTD.
"Regeneration, Economy and Growth",Corporate Property and Land,Supplies and Services,372009,Subscriptions E372,06/05/2021,3864452-48868,"5,690.29",UK TELEMATICS LTD.
"Regeneration, Economy and Growth",Corporate Property and Land,Supplies and Services,384199,Miscellaneous Expenses,06/05/2021,3863993-0000849526,550.00,AMTECH GROUP LTD.
"Regeneration, Economy and Growth",Corporate Property and Land,Premises,108099,Service Repairs and Maintenance,06/05/2021,3864302-169560,945.00,NEWGATE (NEWARK) LTD.
"Regeneration, Economy and Growth",Corporate Property and Land,Premises,108251,Service Repairs and Maintenance,06/05/2021,3864408-16856,"2,498.49",STEADFAST SECURITY SOLUTIONS LTD.
"Regeneration, Economy and Growth",Corporate Property and Land,Supplies and Services,338078,Services,06/05/2021,3864371-13753,"1,075.00",SAFEGUARD SECURITY (NE) LTD.
"Regeneration, Economy and Growth",Corporate Property and Land,Third Party Payments,430100,Rendered by Private Contractors,06/05/2021,3864010-33123,"11,139.00",AYCLIFFE FABRICATIONS LTD.
"Regeneration, Economy and Growth",Corporate Property and Land,Third Party Payments,430100,Rendered by Private Contractors,06/05/2021,3864402-7539,"53,105.18",ST ASTIER LTD.
"Regeneration, Economy and Growth",Corporate Property and Land,Third Party Payments,430100,Rendered by Private Contractors,06/05/2021,3864055-4263/SW4263,"1,265.00",COMPLETE CLADDING SYSTEMS LTD.
"Regeneration, Economy and Growth",Corporate Property and Land,Third Party Payments,430100,Rendered by Private Contractors,06/05/2021,3864136-INV-0567,"1,080.11",GLENFIELD ENERGY SOLUTIONS LTD.
"Regeneration, Economy and Growth",Corporate Property and Land,Supplies and Services,304221,Equipment and Materials,06/05/2021,3864194-0108/00351752,934.17,JT DOVE LTD.
"Regeneration, Economy and Growth",Corporate Property and Land,Third Party Payments,430100,Rendered by Private Contractors,06/05/2021,3864318-10594-92,"1,120.12",OPUS BUILDING SERVICES LTD.
"Regeneration, Economy and Growth",Corporate Property and Land,Supplies and Services,304221,Equipment and Materials,06/05/2021,3864106-106987,800.47,ELEVATOR EQUIPMENT LTD.
"Regeneration, Economy and Growth",Culture Sport and Tourism,Premises,145023,Cleaning and Domestic Supplies,06/05/2021,3864141-06/119616,799.92,GREENHAM TRADING LTD.
"Regeneration, Economy and Growth",Culture Sport and Tourism,Supplies and Services,304337,Equipment and Materials,06/05/2021,3864224-4236015605,505.12,MARES SPA.
"Regeneration, Economy and Growth",Culture Sport and Tourism,Supplies and Services,384302,Miscellaneous Expenses,06/05/2021,3864148-INV-1074,"2,500.00",HELIX ARTS LTD.
"Regeneration, Economy and Growth",Culture Sport and Tourism,Supplies and Services,384199,Miscellaneous Expenses,06/05/2021,3864046-FESTIVAL2021,"1,000.00",REDACTED - PAYMENT TO INDIVIDUAL
"Regeneration, Economy and Growth",Culture Sport and Tourism,Supplies and Services,384237,Miscellaneous Expenses,06/05/2021,3864120-7532,500.00,FANE LTD.
"Regeneration, Economy and Growth",Culture Sport and Tourism,Supplies and Services,312013,Newspapers books and periodicals E312,06/05/2021,3864026-56976,"1,366.76",BOLINDA DIGITAL LTD.
"Regeneration, Economy and Growth",Culture Sport and Tourism,Supplies and Services,312013,Newspapers books and periodicals E312,06/05/2021,3864026-61916,"1,000.00",BOLINDA DIGITAL LTD.
"Regeneration, Economy and Growth",Culture Sport and Tourism,Fees,901002,Consultants fees 901002,06/05/2021,3864021-40223,"4,265.62",BGP CONSULTING LTD T/A BILLINGHURST GEORGE & PARTNERS.
"Regeneration, Economy and Growth",Development and Housing,Supplies and Services,384999,Miscellaneous Expenses,06/05/2021,3864233-24ALEXANDRINAST,500.00,MICHAEL BAULCH T/A KEYLINE PROPERTY.
"Regeneration, Economy and Growth",Development and Housing,Supplies and Services,384999,Miscellaneous Expenses,06/05/2021,3864458-4100723858,796.16,VENTURE PROPERTIES LTD.
"Regeneration, Economy and Growth",Development and Housing,Construction work A908,908105,Construction work,06/05/2021,3864118-135344/10,834.75,FAIRHURST (CONSULTING ENGINEERS).
"Regeneration, Economy and Growth",Development and Housing,Supplies and Services,304221,Equipment and Materials,06/05/2021,3864076-02433,"1,299.00",DAB GRAPHICS LTD.
"Regeneration, Economy and Growth",Transport and Contracted Services,Supplies and Services,384199,Miscellaneous Expenses,06/05/2021,3864387-173368,"2,065.00",SHOWSEC INTERNATIONAL LTD.
Resources - C A C,Centrally Administered costs 069006,Supplies and Services,372009,Subscriptions E372,06/05/2021,3864068-39917,"22,200.00",COUNTY COUNCILS NETWORK.
Resources BK0010,Business Support,Supplies and Services,384199,Miscellaneous Expenses,06/05/2021,3864456-UKSI13030,645.25,VALTECH LTD.
Resources BK0010,Digital and Customer Services,Vehicles Equipment Furniture and Fittings,912701,Computer equipment,06/05/2021,3864168-5277408,"30,261.75",INSIGHT DIRECT (UK) LTD.
Resources BK0010,Digital and Customer Services,Supplies and Services,342033,Computers and Communications,06/05/2021,3864417-136589,"1,884.00",SWITCHSHOP LTD.
Resources BK0010,Digital and Customer Services,Supplies and Services,332029,Printing Stationery and Gen Off Exps,06/05/2021,3864390-25671,"5,995.00",SIMPLY STRIPES (THE SIGNMAKERS) LTD.
Resources BK0010,Digital and Customer Services,Supplies and Services,304303,Equipment and Materials,06/05/2021,3864005-208835,"4,065.51",ASPIRE TECHNOLOGY SOLUTIONS.
Resources BK0010,Digital and Customer Services,Supplies and Services,342051,Computers and Communications,06/05/2021,3864396-INV02917509,"5,055.75",SOFTCAT LTD.
Resources BK0010,Digital and Customer Services,Stock A926,926900,Stock in hand-Inventory system,06/05/2021,3864089-7402709867,"4,889.40",DELL COMPUTER CORPORATION LTD.
Resources BK0010,Digital and Customer Services,Stock A926,926900,Stock in hand-Inventory system,06/05/2021,3864089-7402709872,"1,908.17",DELL COMPUTER CORPORATION LTD.
Resources BK0010,Digital and Customer Services,Stock A926,926900,Stock in hand-Inventory system,06/05/2021,3864089-7402710277,"1,455.57",DELL COMPUTER CORPORATION LTD.
Resources BK0010,Digital and Customer Services,Stock A926,926900,Stock in hand-Inventory system,06/05/2021,3864486-KZ16985,"1,267.35",XMA LTD.
Resources BK0010,Digital and Customer Services,Stock A926,926900,Stock in hand-Inventory system,06/05/2021,3864486-KZ17240,964.44,XMA LTD.
Resources BK0010,Legal & Democratic Services,Supplies and Services,338042,Services,06/05/2021,3864447-282968/INVLM144,"13,950.00",TRINITY CHAMBERS.
Resources BK0010,Legal & Democratic Services,Supplies and Services,338045,Services,06/05/2021,3864062-INVPC17,"6,500.00",CORNERSTONE BARRISTERS.
Resources BK0010,People & Talent Management,Supplies and Services,372009,Subscriptions E372,06/05/2021,3864307-30861,"22,691.00",NORTH EAST REGIONAL EMPLOYERS ORGANISATION (NEREO).
Adult and Health Services,Head of Adults,Supplies and Services,338366,Services,07/05/2021,3864534-75415,"1,185.80",CARE ABILITY HEALTHCARE LTD.
Adult and Health Services,Head of Adults,Supplies and Services,338366,Services,07/05/2021,3864534-75416,647.10,CARE ABILITY HEALTHCARE LTD.
Adult and Health Services,Head of Adults,Supplies and Services,338366,Services,07/05/2021,3864534-75417,"1,293.00",CARE ABILITY HEALTHCARE LTD.
Adult and Health Services,Head of Adults,Supplies and Services,338366,Services,07/05/2021,3864534-75418,"1,444.40",CARE ABILITY HEALTHCARE LTD.
Adult and Health Services,Head of Adults,Supplies and Services,338366,Services,07/05/2021,3864534-75419,"1,092.20",CARE ABILITY HEALTHCARE LTD.
Adult and Health Services,Head of Adults,Supplies and Services,338366,Services,07/05/2021,3864534-75420,"1,099.00",CARE ABILITY HEALTHCARE LTD.
Adult and Health Services,Head of Adults,Supplies and Services,338366,Services,07/05/2021,3864534-75421,542.10,CARE ABILITY HEALTHCARE LTD.
Adult and Health Services,Head of Adults,Supplies and Services,338366,Services,07/05/2021,3864534-75422,"1,499.00",CARE ABILITY HEALTHCARE LTD.
Adult and Health Services,Head of Adults,Supplies and Services,338366,Services,07/05/2021,3864534-75423,728.90,CARE ABILITY HEALTHCARE LTD.
Adult and Health Services,Head of Adults,Supplies and Services,338366,Services,07/05/2021,3864534-75424,"1,444.10",CARE ABILITY HEALTHCARE LTD.
Adult and Health Services,Head of Adults,Third Party Payments,470101,Purchase of Care,07/05/2021,3864560-BT1,"262,678.13",CYGNET OE LTD.
Adult and Health Services,Public Health CC0450,Third Party Payments,460803,Contract Payments,07/05/2021,3864605-2510039637,"2,564.03",HARROGATE & DISTRICT NHS FOUNDATION TRUST.
Adult and Health Services,Public Health CC0450,Third Party Payments,460803,Contract Payments,07/05/2021,3864605-2510039638,"2,564.03",HARROGATE & DISTRICT NHS FOUNDATION TRUST.
Adult and Health Services,Public Health CC0450,Third Party Payments,460803,Contract Payments,07/05/2021,3864605-2510039640,"2,564.03",HARROGATE & DISTRICT NHS FOUNDATION TRUST.
Adult and Health Services,Public Health CC0450,Third Party Payments,460803,Contract Payments,07/05/2021,3864605-2510039659,"929,266.67",HARROGATE & DISTRICT NHS FOUNDATION TRUST.
Adult and Health Services,Public Health CC0450,Third Party Payments,460803,Contract Payments,07/05/2021,3864605-2510039660,"929,266.67",HARROGATE & DISTRICT NHS FOUNDATION TRUST.
Adult and Health Services,Public Health CC0450,Third Party Payments,460803,Contract Payments,07/05/2021,3864605-2510039661,"929,266.67",HARROGATE & DISTRICT NHS FOUNDATION TRUST.
Adult and Health Services,Public Health CC0450,Third Party Payments,460803,Contract Payments,07/05/2021,3864619-VI0498,"40,865.00",IF U CARE SHARE FOUNDATION.
Adult and Health Services,Public Health CC0450,Third Party Payments,460803,Contract Payments,07/05/2021,3864691-17/180344,"13,714.00",OPEN CLASP THEATRE CO.
Chief Executive's Office,Communications Management,Supplies and Services,332029,Printing Stationery and Gen Off Exps,07/05/2021,3864499-68851,"15,941.03",ACORN WEB OFFSET LTD.
Chief Executive's Office,Communications Management,Supplies and Services,312010,Newspapers books and periodicals E312,07/05/2021,3864736-55922,"18,532.42",SMART DISTBRIBUTION SOLUTIONS LTD.
Children and Young Peoples Services,Head of Education and Skills,Supplies and Services,372009,Subscriptions E372,07/05/2021,3864675-61833674,"15,876.53",NCER CIC.
Children and Young Peoples Services,Head of Education and Skills,Supplies and Services,338044,Services,07/05/2021,3864565-CAS-05-2021-046,750.00,DO RE MI DAY NURSERY.
Children and Young Peoples Services,Head of Education and Skills,Fees,901002,Consultants fees 901002,07/05/2021,3864586-21018517,"1,250.00",FAITHFUL & GOULD LTD.*
Children and Young Peoples Services,Head of Education and Skills,Construction work A908,908105,Construction work,07/05/2021,3864649-133663,"1,600.00",LUCION ENVIRONMENTAL LLP LTD.
Children and Young Peoples Services,Head of Education and Skills,Supplies and Services,338045,Services,07/05/2021,3864593-242075,"7,021.50",FREETHS LLP.
Dedicated Schools Grant BG0015,DSG High Needs Block,Third Party Payments,410037,Rendered by Other Local Authorities,07/05/2021,3864707-51608863,"1,136.72",PROTOCOL EDUCATION LTD.*
Neighbourhoods and Climate Change,Environmental Services,Supplies and Services,304221,Equipment and Materials,07/05/2021,3864768-62479,600.00,TURF CARE SPECIALISTS LTD.
Neighbourhoods and Climate Change,Environmental Services,Supplies and Services,304259,Equipment and Materials,07/05/2021,3864541-419942,558.00,CARRS BILLINGTON AGRICULTURE.
Neighbourhoods and Climate Change,Environmental Services,Supplies and Services,328041,Clothing uniforms and laundry E328,07/05/2021,3864761-NSIN00054423,546.00,THOMAS OWEN & SONS (NEWCASTLE) LTD.
Neighbourhoods and Climate Change,Environmental Services,Third Party Payments,430100,Rendered by Private Contractors,07/05/2021,3864504-INV-3906,"1,566.51",ANNFIELD AUTO SERVICES.
Neighbourhoods and Climate Change,Environmental Services,Transport,210057,Repair and Maintenance of Vehicles,07/05/2021,3864531-61975776,615.60,BUCHER MUNICIPAL LTD.
Neighbourhoods and Climate Change,Environmental Services,Transport,210057,Repair and Maintenance of Vehicles,07/05/2021,3864563-DE11398460,685.12,DENNIS EAGLE LTD.
Neighbourhoods and Climate Change,Environmental Services,Transport,210057,Repair and Maintenance of Vehicles,07/05/2021,3864518-15184248,515.46,BELL TRUCK SALES LTD T/A BELL TRUCK & VAN.
Neighbourhoods and Climate Change,Environmental Services,Transport,210057,Repair and Maintenance of Vehicles,07/05/2021,3864548-723920,630.00,CHATFIELDS T/A EVANS HALSHAW.
Neighbourhoods and Climate Change,Environmental Services,Third Party Payments,430100,Rendered by Private Contractors,07/05/2021,3864686-IW05579021,622.36,NORTHGATE VEHICLE HIRE LTD.
Neighbourhoods and Climate Change,Environmental Services,Transport,210057,Repair and Maintenance of Vehicles,07/05/2021,3864608-274056,"1,800.00",HL SMITH (TRANSMISSIONS) LTD.
Neighbourhoods and Climate Change,Environmental Services,Transport,210057,Repair and Maintenance of Vehicles,07/05/2021,3864684-1902599,543.05,NORTH EAST TRUCK & VAN LTD.
Neighbourhoods and Climate Change,Environmental Services,Fees,901002,Consultants fees 901002,07/05/2021,3864522-40204,"1,693.50",BGP CONSULTING LTD T/A BILLINGHURST GEORGE & PARTNERS.
Neighbourhoods and Climate Change,Environmental Services,Fees,901002,Consultants fees 901002,07/05/2021,3864721-TEC570853,"3,548.00",RPS CONSULTING SERVICES LTD.
Neighbourhoods and Climate Change,Environmental Services,Third Party Payments,430100,Rendered by Private Contractors,07/05/2021,3864572-INV-649,"2,100.00",ECO ENTERPRISES LTD.
Neighbourhoods and Climate Change,Environmental Services,Supplies and Services,384956,Miscellaneous Expenses,07/05/2021,3864580-PAS00002705YT,"16,750.40",ENVIRONMENT AGENCY.
Neighbourhoods and Climate Change,Environmental Services,Transport,210057,Repair and Maintenance of Vehicles,07/05/2021,3864682-P79961,"5,834.40",NORPLAST LTD.
Neighbourhoods and Climate Change,Environmental Services,Supplies and Services,342215,Computers and Communications,07/05/2021,3864772-45566,"3,991.96",UK TELEMATICS LTD.
Neighbourhoods and Climate Change,Environmental Services,Supplies and Services,338027,Services,07/05/2021,3864570-346684,"15,000.00",DURHAM UNIVERSITY.
Neighbourhoods and Climate Change,Environmental Services,Supplies and Services,338066,Services,07/05/2021,3864620-BURSARY-MAY21,818.98,IMOGEN COVERDALE.
Neighbourhoods and Climate Change,Environmental Services,Supplies and Services,384899,Miscellaneous Expenses,07/05/2021,3864543-RED-05-2021-029,"1,270.46",CASTLESIDE & DISTRICT COMMUNITY ASSOCIATION.
Neighbourhoods and Climate Change,Partnerships & Community Engagement Div.,Supplies and Services,384086,Miscellaneous Expenses,07/05/2021,3864739-VOUCHERCOCI04-20,542.00,SOUTH HETTON PARISH COUNCIL.
Neighbourhoods and Climate Change,Partnerships & Community Engagement Div.,Supplies and Services,384086,Miscellaneous Expenses,07/05/2021,3864787-VOUCHERYORR06-20,999.00,WITTON PARK COMMUNITY ASSOCIATION.
Neighbourhoods and Climate Change,Technical Services CM0300,Construction work A908,908105,Construction work,07/05/2021,3864625-25184,"1,301.68",JACK COUPE & SONS LTD T/A COUPE LINE.
Neighbourhoods and Climate Change,Technical Services CM0300,Other expenses A914,914002,Capital - Advertisments,07/05/2021,3864678-36328050,603.05,NEWSQUEST (YORKSHIRE & NORTH EAST) LTD.
Neighbourhoods and Climate Change,Technical Services CM0300,Stock A926,926900,Stock in hand-Inventory system,07/05/2021,3864585-136886,"12,626.00",FABRIKAT (NOTTINGHAM) LTD.
Neighbourhoods and Climate Change,Technical Services CM0300,Stock A926,926900,Stock in hand-Inventory system,07/05/2021,3864794-145419742,"5,830.00",ZG LIGHTING (UK) LTD.
Neighbourhoods and Climate Change,Technical Services CM0300,Third Party Payments,430100,Rendered by Private Contractors,07/05/2021,3864632-0303/00353119,592.60,JT DOVE LTD.
Neighbourhoods and Climate Change,Technical Services CM0300,Third Party Payments,430100,Rendered by Private Contractors,07/05/2021,3864745-INV-0269,"2,028.50",SUPAMOLE DIRECTIONAL DRILLING SPECIALISTS.
Neighbourhoods and Climate Change,Technical Services CM0300,Third Party Payments,430100,Rendered by Private Contractors,07/05/2021,3864523-207R01037A,"1,841.00",BIFFA WASTE SERVICES LTD.
Neighbourhoods and Climate Change,Technical Services CM0300,Third Party Payments,430100,Rendered by Private Contractors,07/05/2021,3864523-207R1048,741.30,BIFFA WASTE SERVICES LTD.
Neighbourhoods and Climate Change,Technical Services CM0300,Third Party Payments,430100,Rendered by Private Contractors,07/05/2021,3864582-170051A,"1,400.20",ESH CONSTRUCTION LTD FORMERLY LUMSDEN & CARROLL CONSTRUCTION LTD.
Neighbourhoods and Climate Change,Technical Services CM0300,Supplies and Services,304221,Equipment and Materials,07/05/2021,3864598-000121,900.00,GRAEME HOPPER LTD.
Neighbourhoods and Climate Change,Technical Services CM0300,Supplies and Services,304221,Equipment and Materials,07/05/2021,3864632-0113/00344998,"1,316.00",JT DOVE LTD.
Neighbourhoods and Climate Change,Technical Services CM0300,Supplies and Services,304221,Equipment and Materials,07/05/2021,3864633-323499,999.46,KAEFER LTD.
Neighbourhoods and Climate Change,Technical Services CM0300,Third Party Payments,430100,Rendered by Private Contractors,07/05/2021,3864633-323502,"1,438.34",KAEFER LTD.
Neighbourhoods and Climate Change,Technical Services CM0300,Supplies and Services,304221,Equipment and Materials,07/05/2021,3864671-0000099168,720.90,NAL LTD.
Neighbourhoods and Climate Change,Technical Services CM0300,Third Party Payments,430100,Rendered by Private Contractors,07/05/2021,3864743-13699,"1,520.40",STONEGRAVE AGGREGATES LTD.
Neighbourhoods and Climate Change,Technical Services CM0300,Third Party Payments,430100,Rendered by Private Contractors,07/05/2021,3864747-32757,550.00,SURVEY OPERATIONS LTD.
Neighbourhoods and Climate Change,Technical Services CM0300,Supplies and Services,304221,Equipment and Materials,07/05/2021,3864770-220795,502.23,TYNEDALE ROADSTONE LTD.
Neighbourhoods and Climate Change,Technical Services CM0300,Supplies and Services,304221,Equipment and Materials,07/05/2021,3864770-221024,"1,588.33",TYNEDALE ROADSTONE LTD.
Neighbourhoods and Climate Change,Technical Services CM0300,Supplies and Services,304221,Equipment and Materials,07/05/2021,3864770-221262,574.02,TYNEDALE ROADSTONE LTD.
Neighbourhoods and Climate Change,Technical Services CM0300,Supplies and Services,304221,Equipment and Materials,07/05/2021,3864770-221269,705.88,TYNEDALE ROADSTONE LTD.
Neighbourhoods and Climate Change,Technical Services CM0300,Supplies and Services,304221,Equipment and Materials,07/05/2021,3864770-221307,891.48,TYNEDALE ROADSTONE LTD.
Neighbourhoods and Climate Change,Technical Services CM0300,Supplies and Services,304221,Equipment and Materials,07/05/2021,3864770-221407,698.95,TYNEDALE ROADSTONE LTD.
Neighbourhoods and Climate Change,Technical Services CM0300,Supplies and Services,304221,Equipment and Materials,07/05/2021,3864781-25581,656.00,WARD TIMBER LTD.
Neighbourhoods and Climate Change,Technical Services CM0300,Third Party Payments,460224,Contract Payments,07/05/2021,3864732-22745,"402,639.50",SEYMOUR (CIVIL ENGINEERING CONTRACTORS) LTD.
"Regeneration, Economy and Growth",Business Durham CL0850,Supplies and Services,304259,Equipment and Materials,07/05/2021,3864579-ELMWC-6052,994.00,ELMTRONICS LTD.
"Regeneration, Economy and Growth",Business Durham CL0850,Supplies and Services,338066,Services,07/05/2021,3864773-INV-14089,"39,242.42",UMI COMMERCIAL LTD.
"Regeneration, Economy and Growth",Business Durham CL0850,Supplies and Services,368008,Incentives to Industrialists,07/05/2021,3864677-RED-05-2021-028,800.00,NETWORKING KNOWHO LTD.
"Regeneration, Economy and Growth",Corporate Property and Land,Supplies and Services,384199,Miscellaneous Expenses,07/05/2021,3864511-21013359,"25,000.00",ATKINS GLOBAL.
"Regeneration, Economy and Growth",Corporate Property and Land,Supplies and Services,384199,Miscellaneous Expenses,07/05/2021,3864522-40195,"1,250.00",BGP CONSULTING LTD T/A BILLINGHURST GEORGE & PARTNERS.
"Regeneration, Economy and Growth",Corporate Property and Land,Supplies and Services,384199,Miscellaneous Expenses,07/05/2021,3864721-TEC570854,"1,514.00",RPS CONSULTING SERVICES LTD.
"Regeneration, Economy and Growth",Corporate Property and Land,Construction work A908,908105,Construction work,07/05/2021,3864685-DI20360579,"17,781.08",NORTHERN POWERGRID (NORTHEAST) LTD.
"Regeneration, Economy and Growth",Corporate Property and Land,Fees,901002,Consultants fees 901002,07/05/2021,3864721-TEC570859,"4,672.00",RPS CONSULTING SERVICES LTD.
"Regeneration, Economy and Growth",Corporate Property and Land,Premises,108099,Service Repairs and Maintenance,07/05/2021,3864610-7080890027,577.78,HONEYWELL NOVAR SYSTEMS LTD.
"Regeneration, Economy and Growth",Corporate Property and Land,Supplies and Services,304221,Equipment and Materials,07/05/2021,3864573-059-276226,548.58,EDMUNDSON ELECTRICAL LTD.
"Regeneration, Economy and Growth",Corporate Property and Land,Third Party Payments,430100,Rendered by Private Contractors,07/05/2021,3864786-473,640.00,WHORLTON LAND SURVEYS LTD.
"Regeneration, Economy and Growth",Corporate Property and Land,Third Party Payments,430100,Rendered by Private Contractors,07/05/2021,3864512-7852,790.00,ATLAS WASHROOM SYSTEMS LTD.
"Regeneration, Economy and Growth",Corporate Property and Land,Third Party Payments,430100,Rendered by Private Contractors,07/05/2021,3864621-10813,"6,407.10",INGLEFORD SCAFFOLDING LTD.
"Regeneration, Economy and Growth",Corporate Property and Land,Supplies and Services,304221,Equipment and Materials,07/05/2021,3864749-581614,"2,017.19",T CROSSLING & CO LTD.
"Regeneration, Economy and Growth",Corporate Property and Land,Supplies and Services,304221,Equipment and Materials,07/05/2021,3864573-059-273536,716.60,EDMUNDSON ELECTRICAL LTD.
"Regeneration, Economy and Growth",Corporate Property and Land,Supplies and Services,304221,Equipment and Materials,07/05/2021,3864573-059-280747,"2,976.82",EDMUNDSON ELECTRICAL LTD.
"Regeneration, Economy and Growth",Corporate Property and Land,Supplies and Services,304221,Equipment and Materials,07/05/2021,3864692-10594-88,"1,128.38",OPUS BUILDING SERVICES LTD.
"Regeneration, Economy and Growth",Corporate Property and Land,Third Party Payments,430100,Rendered by Private Contractors,07/05/2021,3864692-10594-87,"1,128.38",OPUS BUILDING SERVICES LTD.
"Regeneration, Economy and Growth",Corporate Property and Land,Third Party Payments,430100,Rendered by Private Contractors,07/05/2021,3864692-10594-94,"1,172.32",OPUS BUILDING SERVICES LTD.
"Regeneration, Economy and Growth",Corporate Property and Land,Third Party Payments,430100,Rendered by Private Contractors,07/05/2021,3864692-10594-95,"1,136.32",OPUS BUILDING SERVICES LTD.
"Regeneration, Economy and Growth",Corporate Property and Land,Supplies and Services,304221,Equipment and Materials,07/05/2021,3864573-059-280858,763.10,EDMUNDSON ELECTRICAL LTD.
"Regeneration, Economy and Growth",Corporate Property and Land,Third Party Payments,430100,Rendered by Private Contractors,07/05/2021,3864545-6416,"2,250.00",CENTURY FABRICATIONS LTD.
"Regeneration, Economy and Growth",Corporate Property and Land,Third Party Payments,430100,Rendered by Private Contractors,07/05/2021,3864621-10811,"5,087.95",INGLEFORD SCAFFOLDING LTD.
"Regeneration, Economy and Growth",Corporate Property and Land,Third Party Payments,430100,Rendered by Private Contractors,07/05/2021,3864694-169084,558.00,PALINTEST LTD.
"Regeneration, Economy and Growth",Corporate Property and Land,Supplies and Services,372009,Subscriptions E372,07/05/2021,3864717-03129602FTI,"4,135.00",RICS BOOKS.*
"Regeneration, Economy and Growth",Culture Sport and Tourism,Premises,106082,Centrally Controlled Rep and Maint,07/05/2021,3864594-19044,"1,467.00",FT LEISURE LTD.
"Regeneration, Economy and Growth",Culture Sport and Tourism,Supplies and Services,384199,Miscellaneous Expenses,07/05/2021,3864687-00016154,"1,669.14",NSL LTD.
"Regeneration, Economy and Growth",Culture Sport and Tourism,Premises,106080,Centrally Controlled Rep and Maint,07/05/2021,3864727-99803074,675.00,SCHNEIDER ELECTRIC LTD.
"Regeneration, Economy and Growth",Culture Sport and Tourism,Supplies and Services,338094,Services,07/05/2021,3864679-3638,855.00,NEWTON AYCLIFFE YOUTH & COMMUNITY CENTRE.
"Regeneration, Economy and Growth",Culture Sport and Tourism,Premises,106082,Centrally Controlled Rep and Maint,07/05/2021,3864714-2021-068,"3,310.94",REVINSON FIRE LTD.
"Regeneration, Economy and Growth",Culture Sport and Tourism,Supplies and Services,384956,Miscellaneous Expenses,07/05/2021,3864703-SIN1642605,"1,395.49",PPL PRS LTD.
"Regeneration, Economy and Growth",Culture Sport and Tourism,Supplies and Services,304337,Equipment and Materials,07/05/2021,3864734-0000021373,995.00,SITELINK COMMUNICATIONS LTD.
"Regeneration, Economy and Growth",Culture Sport and Tourism,Premises,106083,Centrally Controlled Rep and Maint,07/05/2021,3864610-7080889604,"4,596.08",HONEYWELL NOVAR SYSTEMS LTD.
"Regeneration, Economy and Growth",Culture Sport and Tourism,Premises,106082,Centrally Controlled Rep and Maint,07/05/2021,3864714-2021-069,"1,813.87",REVINSON FIRE LTD.
"Regeneration, Economy and Growth",Development and Housing,Supplies and Services,384700,Miscellaneous Expenses,07/05/2021,3864741-RED-05-2021-022,"1,000.00",SPENNYMOOR YOUTH & COMMUNITY ASSOCIATION.
